Workbook

Sheet Main
B10: 2021-06-24
B12: Sheet No. | C12: Template Name | D12: Summary
B13: 1 | C13: Future Intra | D13: For Intraday trading in F&O segment
B14: 2 | C14: Cash Intra | D14: For Intraday trading in cash market segment
B15: 3 | C15: Mid-cap Intra | D15: For Intraday trading in Mid-cap stocks
B16: 4 | C16: Bulk Deals | D16: Reveals Bulk Deals carried on NSE & BSE
B17: 5 | C17: Call Tracker
K27: `

Sheet Future Intra
M5: Back to Main Page
A6: FOR INTRA DAY TRADING | L6: =Main!B10 -> 2021-06-24
A9: Sr.no | B9: Sector | C9: Scrip | D9: Expiry Date | E9: CLOSE RATE | F9: Pivot Point | G9: Supports | J9: Resistances
B10: Sector | E10: Point | F10: Point | G10: S1 | H10: S2 | I10: S3 | J10: R1 | K10: R2 | L10: R3 | M10: HIGH | N10: LOW | O10: OI | P10: % Change in OI
A11: 1 | B11: Index | C11: BANKNIFTY | D11: 2021-06-24 | E11: 34611.90 | F11: 34713.00 | G11: 34454.00 | H11: 34296.10 | I11: 34037.10 | J11: 34870.90 | K11: 35129.90 | L11: 35287.80 | M11: 34972 | N11: 34555.1 | O11: 2076725 | P11: 4.58%
A12: 2 | B12: Index | C12: NIFTY | D12: 2021-06-24 | E12: 15695.90 | F12: 15745.83 | G12: 15627.07 | H12: 15558.23 | I12: 15439.47 | J12: 15814.67 | K12: 15933.43 | L12: 16002.27 | M12: 15864.6 | N12: 15677 | O12: 10426225 | P12: -3.01%
A13: 3 | B13: Index | C13: FINNIFTY | D13: 2021-06-24 | E13: 16452.15 | F13: 16486.10 | G13: 16397.85 | H13: 16343.55 | I13: 16255.30 | J13: 16540.40 | K13: 16628.65 | L13: 16682.95 | M13: 16574.35 | N13: 16431.8 | O13: 12160 | P13: -1.30%
A14: 4 | B14: Chemical | C14: AARTIIND | D14: 2021-06-24 | E14: 864.65 | F14: 870.13 | G14: 856.07 | H14: 847.48 | I14: 833.42 | J14: 878.72 | K14: 892.78 | L14: 901.37 | M14: 884.2 | N14: 861.55 | O14: 2708100 | P14: 3.21%
A15: 5 | B15: Cement | C15: ACC | D15: 2021-06-24 | E15: 2032.70 | F15: 2040.40 | G15: 2019.80 | H15: 2006.90 | I15: 1986.30 | J15: 2053.30 | K15: 2073.90 | L15: 2086.80 | M15: 2061 | N15: 2027.5 | O15: 2511500 | P15: -2.12%
A16: 6 | B16: Others | C16: ADANIENT | D16: 2021-06-24 | E16: 1502.75 | F16: 1517.32 | G16: 1465.43 | H16: 1428.12 | I16: 1376.23 | J16: 1554.63 | K16: 1606.52 | L16: 1643.83 | M16: 1569.2 | N16: 1480 | O16: 17937000 | P16: -0.42%
A17: 7 | B17: Others | C17: ADANIPORTS | D17: 2021-06-24 | E17: 714.00 | F17: 725.57 | G17: 698.53 | H17: 683.07 | I17: 656.03 | J17: 741.03 | K17: 768.07 | L17: 783.53 | M17: 752.6 | N17: 710.1 | O17: 81661250 | P17: -1.91%
A18: 8 | B18: Pharma | C18: ALKEM | D18: 2021-06-24 | E18: 3104.85 | F18: 3112.88 | G18: 3079.32 | H18: 3053.78 | I18: 3020.22 | J18: 3138.42 | K18: 3171.98 | L18: 3197.52 | M18: 3146.45 | N18: 3087.35 | O18: 547000 | P18: -2.36%
A19: 9 | B19: Automobile | C19: AMARAJABAT | D19: 2021-06-24 | E19: 749.40 | F19: 748.05 | G19: 741.35 | H19: 733.30 | I19: 726.60 | J19: 756.10 | K19: 762.80 | L19: 770.85 | M19: 754.75 | N19: 740 | O19: 9818000 | P19: -1.86%
A20: 10 | B20: Cement | C20: AMBUJACEM | D20: 2021-06-24 | E20: 345.75 | F20: 346.03 | G20: 343.32 | H20: 340.88 | I20: 338.17 | J20: 348.47 | K20: 351.18 | L20: 353.62 | M20: 348.75 | N20: 343.6 | O20: 20172000 | P20: -2.47%
A21: 11 | B21: Pharma | C21: APLLTD | D21: 2021-06-24 | E21: 982.75 | F21: 986.47 | G21: 976.38 | H21: 970.02 | I21: 959.93 | J21: 992.83 | K21: 1002.92 | L21: 1009.28 | M21: 996.55 | N21: 980.1 | O21: 1531750 | P21: -0.89%
A22: 12 | B22: Others | C22: APOLLOHOSP | D22: 2021-06-24 | E22: 3241.25 | F22: 3240.90 | G22: 3208.80 | H22: 3176.35 | I22: 3144.25 | J22: 3273.35 | K22: 3305.45 | L22: 3337.90 | M22: 3273 | N22: 3208.45 | O22: 1754750 | P22: 0.27%
A23: 13 | B23: Automobile | C23: APOLLOTYRE | D23: 2021-06-24 | E23: 224.35 | F23: 226.60 | G23: 221.45 | H23: 218.55 | I23: 213.40 | J23: 229.50 | K23: 234.65 | L23: 237.55 | M23: 231.75 | N23: 223.7 | O23: 13515000 | P23: -12.61%
A24: 14 | B24: Automobile | C24: ASHOKLEY | D24: 2021-06-24 | E24: 119.10 | F24: 119.03 | G24: 117.92 | H24: 116.73 | I24: 115.62 | J24: 120.22 | K24: 121.33 | L24: 122.52 | M24: 120.15 | N24: 117.85 | O24: 42979500 | P24: 3.11%
A25: 15 | B25: FMCG | C25: ASIANPAINT | D25: 2021-06-24 | E25: 2992.15 | F25: 3002.77 | G25: 2977.43 | H25: 2962.72 | I25: 2937.38 | J25: 3017.48 | K25: 3042.82 | L25: 3057.53 | M25: 3028.1 | N25: 2988.05 | O25: 4019100 | P25: -4.60%
A26: 16 | B26: Banking | C26: AUBANK | D26: 2021-06-24 | E26: 1016.60 | F26: 1024.67 | G26: 1004.88 | H26: 993.17 | I26: 973.38 | J26: 1036.38 | K26: 1056.17 | L26: 1067.88 | M26: 1044.45 | N26: 1012.95 | O26: 2622000 | P26: 3.07%
A27: 17 | B27: Pharma | C27: AUROPHARMA | D27: 2021-06-24 | E27: 945.00 | F27: 947.40 | G27: 939.90 | H27: 934.80 | I27: 927.30 | J27: 952.50 | K27: 960.00 | L27: 965.10 | M27: 954.9 | N27: 942.3 | O27: 11638900 | P27: -2.46%
A28: 18 | B28: Banking | C28: AXISBANK | D28: 2021-06-24 | E28: 733.50 | F28: 736.73 | G28: 728.77 | H28: 724.03 | I28: 716.07 | J28: 741.47 | K28: 749.43 | L28: 754.17 | M28: 744.7 | N28: 732 | O28: 33474000 | P28: -0.79%
A29: 19 | B29: Automobile | C29: BAJAJ-AUTO | D29: 2021-06-24 | E29: 4202.10 | F29: 4220.82 | G29: 4176.88 | H29: 4151.67 | I29: 4107.73 | J29: 4246.03 | K29: 4289.97 | L29: 4315.18 | M29: 4264.75 | N29: 4195.6 | O29: 1645000 | P29: 5.40%
A30: 20 | B30: Finance | C30: BAJAJFINSV | D30: 2021-06-24 | E30: 12296.75 | F30: 12267.85 | G30: 12108.60 | H30: 11920.45 | I30: 11761.20 | J30: 12456.00 | K30: 12615.25 | L30: 12803.40 | M30: 12427.1 | N30: 12079.7 | O30: 711550 | P30: 3.83%
A31: 21 | B31: Finance | C31: BAJFINANCE | D31: 2021-06-24 | E31: 6016.35 | F31: 6045.97 | G31: 5971.93 | H31: 5927.52 | I31: 5853.48 | J31: 6090.38 | K31: 6164.42 | L31: 6208.83 | M31: 6120 | N31: 6001.55 | O31: 3663000 | P31: -2.13%
A32: 22 | B32: Automobile | C32: BALKRISIND | D32: 2021-06-24 | E32: 2198.00 | F32: 2203.88 | G32: 2184.77 | H32: 2171.53 | I32: 2152.42 | J32: 2217.12 | K32: 2236.23 | L32: 2249.47 | M32: 2223 | N32: 2190.65 | O32: 1208800 | P32: 3.39%
A33: 23 | B33: Banking | C33: BANDHANBNK | D33: 2021-06-24 | E33: 333.50 | F33: 337.13 | G33: 328.77 | H33: 324.03 | I33: 315.67 | J33: 341.87 | K33: 350.23 | L33: 354.97 | M33: 345.5 | N33: 332.4 | O33: 14488200 | P33: -11.96%
A34: 24 | B34: Banking | C34: BANKBARODA | D34: 2021-06-24 | E34: 82.15 | F34: 82.32 | G34: 80.93 | H34: 79.72 | I34: 78.33 | J34: 83.53 | K34: 84.92 | L34: 86.13 | M34: 83.7 | N34: 81.1 | O34: 153223200 | P34: -5.82%
A35: 25 | B35: FMCG | C35: BATAINDIA | D35: 2021-06-24 | E35: 1662.20 | F35: 1663.58 | G35: 1650.67 | H35: 1639.13 | I35: 1626.22 | J35: 1675.12 | K35: 1688.03 | L35: 1699.57 | M35: 1676.5 | N35: 1652.05 | O35: 1250150 | P35: -6.88%
A36: 26 | B36: Capital_Goods | C36: BEL | D36: 2021-06-24 | E36: 168.55 | F36: 163.70 | G36: 157.40 | H36: 146.25 | I36: 139.95 | J36: 174.85 | K36: 181.15 | L36: 192.30 | M36: 170 | N36: 152.55 | O36: 30187200 | P36: -0.13%
A37: 27 | B37: FMCG | C37: BERGEPAINT | D37: 2021-06-24 | E37: 806.50 | F37: 807.50 | G37: 802.85 | H37: 799.20 | I37: 794.55 | J37: 811.15 | K37: 815.80 | L37: 819.45 | M37: 812.15 | N37: 803.85 | O37: 3399000 | P37: -5.85%
A38: 28 | B38: Automobile | C38: BHARATFORG | D38: 2021-06-24 | E38: 730.15 | F38: 736.75 | G38: 722.45 | H38: 714.75 | I38: 700.45 | J38: 744.45 | K38: 758.75 | L38: 766.45 | M38: 751.05 | N38: 729.05 | O38: 6801000 | P38: -4.06%
A39: 29 | B39: Telecom | C39: BHARTIARTL | D39: 2021-06-24 | E39: 533.95 | F39: 535.25 | G39: 531.60 | H39: 529.25 | I39: 525.60 | J39: 537.60 | K39: 541.25 | L39: 543.60 | M39: 538.9 | N39: 532.9 | O39: 109518117 | P39: -1.65%
A40: 30 | B40: Capital_Goods | C40: BHEL | D40: 2021-06-24 | E40: 65.95 | F40: 66.55 | G40: 65.10 | H40: 64.25 | I40: 62.80 | J40: 67.40 | K40: 68.85 | L40: 69.70 | M40: 68 | N40: 65.7 | O40: 90342000 | P40: -2.89%
A41: 31 | B41: Pharma | C41: BIOCON | D41: 2021-06-24 | E41: 397.45 | F41: 399.28 | G41: 395.07 | H41: 392.68 | I41: 388.47 | J41: 401.67 | K41: 405.88 | L41: 408.27 | M41: 403.5 | N41: 396.9 | O41: 14027700 | P41: -2.10%
A42: 32 | B42: Automobile | C42: BOSCHLTD | D42: 2021-06-24 | E42: 15105.45 | F42: 15147.47 | G42: 15014.93 | H42: 14924.42 | I42: 14791.88 | J42: 15237.98 | K42: 15370.52 | L42: 15461.03 | M42: 15280 | N42: 15056.95 | O42: 131100 | P42: 3.15%
A43: 33 | B43: Oil_Gas | C43: BPCL | D43: 2021-06-24 | E43: 470.25 | F43: 471.75 | G43: 468.30 | H43: 466.35 | I43: 462.90 | J43: 473.70 | K43: 477.15 | L43: 479.10 | M43: 475.2 | N43: 469.8 | O43: 33669000 | P43: -3.42%
A44: 34 | B44: FMCG | C44: BRITANNIA | D44: 2021-06-24 | E44: 3657.50 | F44: 3657.15 | G44: 3634.40 | H44: 3611.30 | I44: 3588.55 | J44: 3680.25 | K44: 3703.00 | L44: 3726.10 | M44: 3679.9 | N44: 3634.05 | O44: 1871400 | P44: 6.67%
A45: 35 | B45: Pharma | C45: CADILAHC | D45: 2021-06-24 | E45: 624.20 | F45: 627.22 | G45: 619.93 | H45: 615.67 | I45: 608.38 | J45: 631.48 | K45: 638.77 | L45: 643.03 | M45: 634.5 | N45: 622.95 | O45: 24840200 | P45: -1.39%
A46: 36 | B46: Banking | C46: CANBK | D46: 2021-06-24 | E46: 152.00 | F46: 152.40 | G46: 150.40 | H46: 148.80 | I46: 146.80 | J46: 154.00 | K46: 156.00 | L46: 157.60 | M46: 154.4 | N46: 150.8 | O46: 55517400 | P46: -0.30%
A47: 37 | B47: Finance | C47: CHOLAFIN | D47: 2021-06-24 | E47: 536.65 | F47: 539.17 | G47: 532.93 | H47: 529.22 | I47: 522.98 | J47: 542.88 | K47: 549.12 | L47: 552.83 | M47: 545.4 | N47: 535.45 | O47: 8020000 | P47: -2.67%
A48: 38 | B48: Pharma | C48: CIPLA | D48: 2021-06-24 | E48: 956.55 | F48: 958.77 | G48: 952.13 | H48: 947.72 | I48: 941.08 | J48: 963.18 | K48: 969.82 | L48: 974.23 | M48: 965.4 | N48: 954.35 | O48: 9477000 | P48: -1.35%
A49: 39 | B49: Others | C49: COALINDIA | D49: 2021-06-24 | E49: 148.55 | F49: 149.05 | G49: 147.75 | H49: 146.95 | I49: 145.65 | J49: 149.85 | K49: 151.15 | L49: 151.95 | M49: 150.35 | N49: 148.25 | O49: 64751400 | P49: -1.15%
A50: 40 | B50: Technology | C50: COFORGE | D50: 2021-06-24 | E50: 3935.70 | F50: 3956.83 | G50: 3890.37 | H50: 3845.03 | I50: 3778.57 | J50: 4002.17 | K50: 4068.63 | L50: 4113.97 | M50: 4023.3 | N50: 3911.5 | O50: 720025 | P50: -7.41%
A51: 41 | B51: FMCG | C51: COLPAL | D51: 2021-06-24 | E51: 1687.10 | F51: 1688.43 | G51: 1679.47 | H51: 1671.83 | I51: 1662.87 | J51: 1696.07 | K51: 1705.03 | L51: 1712.67 | M51: 1697.4 | N51: 1680.8 | O51: 2622200 | P51: -0.78%
A52: 42 | B52: Others | C52: CONCOR | D52: 2021-06-24 | E52: 699.20 | F52: 703.72 | G52: 691.63 | H52: 684.07 | I52: 671.98 | J52: 711.28 | K52: 723.37 | L52: 730.93 | M52: 715.8 | N52: 696.15 | O52: 6981921 | P52: -8.41%
A53: 43 | B53: Banking | C53: CUB | D53: 2021-06-24 | E53: 167.70 | F53: 166.55 | G53: 164.75 | H53: 161.80 | I53: 160.00 | J53: 169.50 | K53: 171.30 | L53: 174.25 | M53: 168.35 | N53: 163.6 | O53: 9932400 | P53: -8.54%
A54: 44 | B54: Capital_Goods | C54: CUMMINSIND | D54: 2021-06-24 | E54: 827.35 | F54: 832.12 | G54: 820.73 | H54: 814.12 | I54: 802.73 | J54: 838.73 | K54: 850.12 | L54: 856.73 | M54: 843.5 | N54: 825.5 | O54: 2759400 | P54: 0.79%
A55: 45 | B55: FMCG | C55: DABUR | D55: 2021-06-24 | E55: 567.05 | F55: 566.20 | G55: 562.00 | H55: 556.95 | I55: 552.75 | J55: 571.25 | K55: 575.45 | L55: 580.50 | M55: 570.4 | N55: 561.15 | O55: 7171250 | P55: -11.21%
A56: 46 | B56: Chemical | C56: DEEPAKNTR | D56: 2021-06-24 | E56: 1755.95 | F56: 1762.97 | G56: 1744.03 | H56: 1732.12 | I56: 1713.18 | J56: 1774.88 | K56: 1793.82 | L56: 1805.73 | M56: 1781.9 | N56: 1751.05 | O56: 2868000 | P56: -2.15%
A57: 47 | B57: Pharma | C57: DIVISLAB | D57: 2021-06-24 | E57: 4230.80 | F57: 4259.45 | G57: 4199.20 | H57: 4167.60 | I57: 4107.35 | J57: 4291.05 | K57: 4351.30 | L57: 4382.90 | M57: 4319.7 | N57: 4227.85 | O57: 2442800 | P57: -1.81%
A58: 48 | B58: Realty | C58: DLF | D58: 2021-06-24 | E58: 293.30 | F58: 295.53 | G58: 290.32 | H58: 287.33 | I58: 282.12 | J58: 298.52 | K58: 303.73 | L58: 306.72 | M58: 300.75 | N58: 292.55 | O58: 35788500 | P58: -1.16%
A59: 49 | B59: Pharma | C59: DRREDDY | D59: 2021-06-24 | E59: 5298.10 | F59: 5310.87 | G59: 5273.93 | H59: 5249.77 | I59: 5212.83 | J59: 5335.03 | K59: 5371.97 | L59: 5396.13 | M59: 5347.8 | N59: 5286.7 | O59: 2417625 | P59: -5.10%
A60: 50 | B60: Automobile | C60: EICHERMOT | D60: 2021-06-24 | E60: 2731.90 | F60: 2735.68 | G60: 2707.97 | H60: 2684.03 | I60: 2656.32 | J60: 2759.62 | K60: 2787.33 | L60: 2811.27 | M60: 2763.4 | N60: 2711.75 | O60: 1866200 | P60: -0.63%
A61: 51 | B61: Automobile | C61: ESCORTS | D61: 2021-06-24 | E61: 1166.20 | F61: 1171.97 | G61: 1156.93 | H61: 1147.67 | I61: 1132.63 | J61: 1181.23 | K61: 1196.27 | L61: 1205.53 | M61: 1187 | N61: 1162.7 | O61: 5262950 | P61: -6.24%
A62: 52 | B62: Automobile | C62: EXIDEIND | D62: 2021-06-24 | E62: 184.85 | F62: 185.28 | G62: 184.07 | H62: 183.28 | I62: 182.07 | J62: 186.07 | K62: 187.28 | L62: 188.07 | M62: 186.5 | N62: 184.5 | O62: 13320000 | P62: -3.75%
A63: 53 | B63: Banking | C63: FEDERALBNK | D63: 2021-06-24 | E63: 84.75 | F63: 85.22 | G63: 84.08 | H63: 83.42 | I63: 82.28 | J63: 85.88 | K63: 87.02 | L63: 87.68 | M63: 86.35 | N63: 84.55 | O63: 85530000 | P63: 1.74%
A64: 54 | B64: Oil_Gas | C64: GAIL | D64: 2021-06-24 | E64: 153.55 | F64: 154.30 | G64: 152.15 | H64: 150.75 | I64: 148.60 | J64: 155.70 | K64: 157.85 | L64: 159.25 | M64: 156.45 | N64: 152.9 | O64: 31945700 | P64: -1.76%
A65: 55 | B65: Pharma | C65: GLENMARK | D65: 2021-06-24 | E65: 638.10 | F65: 640.10 | G65: 633.65 | H65: 629.20 | I65: 622.75 | J65: 644.55 | K65: 651.00 | L65: 655.45 | M65: 646.55 | N65: 635.65 | O65: 7719950 | P65: -3.12%
A66: 56 | B66: Infrastructure | C66: GMRINFRA | D66: 2021-06-24 | E66: 32.45 | F66: 32.80 | G66: 31.75 | H66: 31.05 | I66: 30.00 | J66: 33.50 | K66: 34.55 | L66: 35.25 | M66: 33.85 | N66: 32.1 | O66: 124087500 | P66: 0.71%
A67: 57 | B67: FMCG | C67: GODREJCP | D67: 2021-06-24 | E67: 880.00 | F67: 880.62 | G67: 875.23 | H67: 870.47 | I67: 865.08 | J67: 885.38 | K67: 890.77 | L67: 895.53 | M67: 886 | N67: 875.85 | O67: 3647000 | P67: 0.97%
A68: 58 | B68: Realty | C68: GODREJPROP | D68: 2021-06-24 | E68: 1404.95 | F68: 1405.77 | G68: 1395.73 | H68: 1386.52 | I68: 1376.48 | J68: 1414.98 | K68: 1425.02 | L68: 1434.23 | M68: 1415.8 | N68: 1396.55 | O68: 1840800 | P68: -2.21%
A69: 59 | B69: Pharma | C69: GRANULES | D69: 2021-06-24 | E69: 314.25 | F69: 315.42 | G69: 312.63 | H69: 311.02 | I69: 308.23 | J69: 317.03 | K69: 319.82 | L69: 321.43 | M69: 318.2 | N69: 313.8 | O69: 12183000 | P69: -1.64%
A70: 60 | B70: Cement | C70: GRASIM | D70: 2021-06-24 | E70: 1496.30 | F70: 1496.73 | G70: 1482.07 | H70: 1467.83 | I70: 1453.17 | J70: 1510.97 | K70: 1525.63 | L70: 1539.87 | M70: 1511.4 | N70: 1482.5 | O70: 11889725 | P70: -3.25%
A71: 61 | B71: Oil_Gas | C71: GUJGASLTD | D71: 2021-06-24 | E71: 654.45 | F71: 661.95 | G71: 645.30 | H71: 636.15 | I71: 619.50 | J71: 671.10 | K71: 687.75 | L71: 696.90 | M71: 678.6 | N71: 652.8 | O71: 2735000 | P71: -7.01%
A72: 62 | B72: Capital_Goods | C72: HAVELLS | D72: 2021-06-24 | E72: 999.90 | F72: 1000.77 | G72: 993.28 | H72: 986.67 | I72: 979.18 | J72: 1007.38 | K72: 1014.87 | L72: 1021.48 | M72: 1008.25 | N72: 994.15 | O72: 6575000 | P72: 2.83%
A73: 63 | B73: Technology | C73: HCLTECH | D73: 2021-06-24 | E73: 973.55 | F73: 976.72 | G73: 968.48 | H73: 963.42 | I73: 955.18 | J73: 981.78 | K73: 990.02 | L73: 995.08 | M73: 984.95 | N73: 971.65 | O73: 20643700 | P73: -2.20%
A74: 64 | B74: Finance | C74: HDFC | D74: 2021-06-24 | E74: 2499.70 | F74: 2511.10 | G74: 2484.55 | H74: 2469.40 | I74: 2442.85 | J74: 2526.25 | K74: 2552.80 | L74: 2567.95 | M74: 2537.65 | N74: 2495.95 | O74: 16046700 | P74: -1.80%
A75: 65 | B75: Finance | C75: HDFCAMC | D75: 2021-06-24 | E75: 2947.00 | F75: 2956.88 | G75: 2926.42 | H75: 2905.83 | I75: 2875.37 | J75: 2977.47 | K75: 3007.93 | L75: 3028.52 | M75: 2987.35 | N75: 2936.3 | O75: 558200 | P75: -0.75%
A76: 66 | B76: Banking | C76: HDFCBANK | D76: 2021-06-24 | E76: 1487.70 | F76: 1488.82 | G76: 1479.88 | H76: 1472.07 | I76: 1463.13 | J76: 1496.63 | K76: 1505.57 | L76: 1513.38 | M76: 1497.75 | N76: 1481 | O76: 24992000 | P76: 4.94%
A77: 67 | B77: Finance | C77: HDFCLIFE | D77: 2021-06-24 | E77: 717.10 | F77: 718.70 | G77: 714.40 | H77: 711.70 | I77: 707.40 | J77: 721.40 | K77: 725.70 | L77: 728.40 | M77: 723 | N77: 716 | O77: 9403900 | P77: -1.65%
A78: 68 | B78: Automobile | C78: HEROMOTOCO | D78: 2021-06-24 | E78: 2932.25 | F78: 2951.47 | G78: 2905.78 | H78: 2879.32 | I78: 2833.63 | J78: 2977.93 | K78: 3023.62 | L78: 3050.08 | M78: 2997.15 | N78: 2925 | O78: 4208700 | P78: -2.53%
A79: 69 | B79: Metals | C79: HINDALCO | D79: 2021-06-24 | E79: 368.65 | F79: 371.22 | G79: 364.98 | H79: 361.32 | I79: 355.08 | J79: 374.88 | K79: 381.12 | L79: 384.78 | M79: 377.45 | N79: 367.55 | O79: 27244800 | P79: -1.48%
A80: 70 | B80: Oil_Gas | C80: HINDPETRO | D80: 2021-06-24 | E80: 300.30 | F80: 301.32 | G80: 297.88 | H80: 295.47 | I80: 292.03 | J80: 303.73 | K80: 307.17 | L80: 309.58 | M80: 304.75 | N80: 298.9 | O80: 22766400 | P80: -1.51%
A81: 71 | B81: FMCG | C81: HINDUNILVR | D81: 2021-06-24 | E81: 2482.25 | F81: 2486.62 | G81: 2459.18 | H81: 2436.12 | I81: 2408.68 | J81: 2509.68 | K81: 2537.12 | L81: 2560.18 | M81: 2514.05 | N81: 2463.55 | O81: 6658500 | P81: -7.32%
A82: 72 | B82: Finance | C82: IBULHSGFIN | D82: 2021-06-24 | E82: 268.30 | F82: 271.23 | G82: 263.47 | H82: 258.63 | I82: 250.87 | J82: 276.07 | K82: 283.83 | L82: 288.67 | M82: 279 | N82: 266.4 | O82: 30135100 | P82: -3.94%
A83: 73 | B83: Banking | C83: ICICIBANK | D83: 2021-06-24 | E83: 626.00 | F83: 628.78 | G83: 621.92 | H83: 617.83 | I83: 610.97 | J83: 632.87 | K83: 639.73 | L83: 643.82 | M83: 635.65 | N83: 624.7 | O83: 70686000 | P83: 1.51%
A84: 74 | B84: Finance | C84: ICICIGI | D84: 2021-06-24 | E84: 1536.00 | F84: 1536.13 | G84: 1520.02 | H84: 1504.03 | I84: 1487.92 | J84: 1552.12 | K84: 1568.23 | L84: 1584.22 | M84: 1552.25 | N84: 1520.15 | O84: 1169600 | P84: -5.91%
A85: 75 | B85: Finance | C85: ICICIPRULI | D85: 2021-06-24 | E85: 605.05 | F85: 605.13 | G85: 598.57 | H85: 592.08 | I85: 585.52 | J85: 611.62 | K85: 618.18 | L85: 624.67 | M85: 611.7 | N85: 598.65 | O85: 5580000 | P85: 10.52%
A86: 76 | B86: Telecom | C86: IDEA | D86: 2021-06-24 | E86: 9.95 | F86: 9.98 | G86: 9.82 | H86: 9.68 | I86: 9.52 | J86: 10.12 | K86: 10.28 | L86: 10.42 | M86: 10.15 | N86: 9.85 | O86: 794570000 | P86: -3.57%
A87: 77 | B87: Banking | C87: IDFCFIRSTB | D87: 2021-06-24 | E87: 57.70 | F87: 58.00 | G87: 57.20 | H87: 56.70 | I87: 55.90 | J87: 58.50 | K87: 59.30 | L87: 59.80 | M87: 58.8 | N87: 57.5 | O87: 129076500 | P87: -0.99%
A88: 78 | B88: Oil_Gas | C88: IGL | D88: 2021-06-24 | E88: 518.90 | F88: 522.35 | G88: 514.05 | H88: 509.20 | I88: 500.90 | J88: 527.20 | K88: 535.50 | L88: 540.35 | M88: 530.65 | N88: 517.5 | O88: 9461375 | P88: -2.44%
A89: 79 | B89: Others | C89: INDIGO | D89: 2021-06-24 | E89: 1712.15 | F89: 1720.75 | G89: 1696.50 | H89: 1680.85 | I89: 1656.60 | J89: 1736.40 | K89: 1760.65 | L89: 1776.30 | M89: 1745 | N89: 1705.1 | O89: 3148000 | P89: -0.40%
A90: 80 | B90: Banking | C90: INDUSINDBK | D90: 2021-06-24 | E90: 1000.20 | F90: 1005.90 | G90: 992.30 | H90: 984.40 | I90: 970.80 | J90: 1013.80 | K90: 1027.40 | L90: 1035.30 | M90: 1019.5 | N90: 998 | O90: 19388700 | P90: 3.93%
A91: 81 | B91: Telecom | C91: INDUSTOWER | D91: 2021-06-24 | E91: 242.95 | F91: 244.70 | G91: 239.90 | H91: 236.85 | I91: 232.05 | J91: 247.75 | K91: 252.55 | L91: 255.60 | M91: 249.5 | N91: 241.65 | O91: 12051200 | P91: 8.74%
A92: 82 | B92: Technology | C92: INFY | D92: 2021-06-24 | E92: 1503.55 | F92: 1508.85 | G92: 1494.55 | H92: 1485.55 | I92: 1471.25 | J92: 1517.85 | K92: 1532.15 | L92: 1541.15 | M92: 1523.15 | N92: 1499.85 | O92: 33009600 | P92: -0.07%
A93: 83 | B93: Oil_Gas | C93: IOC | D93: 2021-06-24 | E93: 112.95 | F93: 113.33 | G93: 112.32 | H93: 111.68 | I93: 110.67 | J93: 113.97 | K93: 114.98 | L93: 115.62 | M93: 114.35 | N93: 112.7 | O93: 55165500 | P93: 6.98%
A94: 84 | B94: Others | C94: IRCTC | D94: 2021-06-24 | E94: 2077.15 | F94: 2084.80 | G94: 2060.70 | H94: 2044.25 | I94: 2020.15 | J94: 2101.25 | K94: 2125.35 | L94: 2141.80 | M94: 2108.9 | N94: 2068.35 | O94: 1922050 | P94: -2.65%
A95: 85 | B95: FMCG | C95: ITC | D95: 2021-06-24 | E95: 204.15 | F95: 204.57 | G95: 203.33 | H95: 202.52 | I95: 201.28 | J95: 205.38 | K95: 206.62 | L95: 207.43 | M95: 205.8 | N95: 203.75 | O95: 176988800 | P95: -0.67%
A96: 86 | B96: Metals | C96: JINDALSTEL | D96: 2021-06-24 | E96: 384.95 | F96: 387.38 | G96: 380.47 | H96: 375.98 | I96: 369.07 | J96: 391.87 | K96: 398.78 | L96: 403.27 | M96: 394.3 | N96: 382.9 | O96: 32490000 | P96: -2.00%
A97: 87 | B97: Metals | C97: JSWSTEEL | D97: 2021-06-24 | E97: 665.90 | F97: 671.87 | G97: 658.33 | H97: 650.77 | I97: 637.23 | J97: 679.43 | K97: 692.97 | L97: 700.53 | M97: 685.4 | N97: 664.3 | O97: 39495600 | P97: 0.26%
A98: 88 | B98: Others | C98: JUBLFOOD | D98: 2021-06-24 | E98: 3225.45 | F98: 3219.57 | G98: 3189.18 | H98: 3152.92 | I98: 3122.53 | J98: 3255.83 | K98: 3286.22 | L98: 3322.48 | M98: 3249.95 | N98: 3183.3 | O98: 1347000 | P98: -1.07%
A99: 89 | B99: Banking | C99: KOTAKBANK | D99: 2021-06-24 | E99: 1736.75 | F99: 1743.48 | G99: 1724.12 | H99: 1711.48 | I99: 1692.12 | J99: 1756.12 | K99: 1775.48 | L99: 1788.12 | M99: 1762.85 | N99: 1730.85 | O99: 14574000 | P99: 7.69%
A100: 90 | B100: Finance | C100: L&TFH | D100: 2021-06-24 | E100: 94.90 | F100: 94.30 | G100: 93.00 | H100: 91.10 | I100: 89.80 | J100: 96.20 | K100: 97.50 | L100: 99.40 | M100: 95.6 | N100: 92.4 | O100: 58496820 | P100: -14.64%
A101: 91 | B101: Others | C101: LALPATHLAB | D101: 2021-06-24 | E101: 3231.90 | F101: 3214.73 | G101: 3149.47 | H101: 3067.03 | I101: 3001.77 | J101: 3297.17 | K101: 3362.43 | L101: 3444.87 | M101: 3280 | N101: 3132.3 | O101: 336750 | P101: -11.61%
A102: 92 | B102: Finance | C102: LICHSGFIN | D102: 2021-06-24 | E102: 465.30 | F102: 468.63 | G102: 460.77 | H102: 456.23 | I102: 448.37 | J102: 473.17 | K102: 481.03 | L102: 485.57 | M102: 476.5 | N102: 464.1 | O102: 14068000 | P102: 2.78%
A103: 93 | B103: Capital_Goods | C103: LT | D103: 2021-06-24 | E103: 1480.10 | F103: 1488.15 | G103: 1468.25 | H103: 1456.40 | I103: 1436.50 | J103: 1500.00 | K103: 1519.90 | L103: 1531.75 | M103: 1508.05 | N103: 1476.3 | O103: 14983350 | P103: 7.90%
A104: 94 | B104: Technology | C104: LTI | D104: 2021-06-24 | E104: 4120.65 | F104: 4130.93 | G104: 4095.92 | H104: 4071.18 | I104: 4036.17 | J104: 4155.67 | K104: 4190.68 | L104: 4215.42 | M104: 4165.95 | N104: 4106.2 | O104: 585000 | P104: -1.14%
A105: 95 | B105: Technology | C105: LTTS | D105: 2021-06-24 | E105: 2822.60 | F105: 2828.13 | G105: 2806.27 | H105: 2789.93 | I105: 2768.07 | J105: 2844.47 | K105: 2866.33 | L105: 2882.67 | M105: 2850 | N105: 2811.8 | O105: 445800 | P105: -5.99%
A106: 96 | B106: Pharma | C106: LUPIN | D106: 2021-06-24 | E106: 1155.00 | F106: 1159.77 | G106: 1147.98 | H106: 1140.97 | I106: 1129.18 | J106: 1166.78 | K106: 1178.57 | L106: 1185.58 | M106: 1171.55 | N106: 1152.75 | O106: 7817450 | P106: 0.46%
A107: 97 | B107: Automobile | C107: M&M | D107: 2021-06-24 | E107: 782.90 | F107: 782.03 | G107: 776.82 | H107: 770.73 | I107: 765.52 | J107: 788.12 | K107: 793.33 | L107: 799.42 | M107: 787.25 | N107: 775.95 | O107: 9816100 | P107: 1.12%
A108: 98 | B108: Finance | C108: M&MFIN | D108: 2021-06-24 | E108: 156.80 | F108: 157.42 | G108: 155.83 | H108: 154.87 | I108: 153.28 | J108: 158.38 | K108: 159.97 | L108: 160.93 | M108: 159 | N108: 156.45 | O108: 45572000 | P108: -3.00%
A109: 99 | B109: Finance | C109: MANAPPURAM | D109: 2021-06-24 | E109: 161.80 | F109: 162.52 | G109: 160.03 | H109: 158.27 | I109: 155.78 | J109: 164.28 | K109: 166.77 | L109: 168.53 | M109: 165 | N109: 160.75 | O109: 24954000 | P109: -5.95%
A110: 100 | B110: FMCG | C110: MARICO | D110: 2021-06-24 | E110: 516.30 | F110: 516.42 | G110: 514.18 | H110: 512.07 | I110: 509.83 | J110: 518.53 | K110: 520.77 | L110: 522.88 | M110: 518.65 | N110: 514.3 | O110: 5830000 | P110: -4.65%
A111: 101 | B111: Automobile | C111: MARUTI | D111: 2021-06-24 | E111: 7422.10 | F111: 7379.08 | G111: 7278.17 | H111: 7134.23 | I111: 7033.32 | J111: 7523.02 | K111: 7623.93 | L111: 7767.87 | M111: 7480 | N111: 7235.15 | O111: 2127200 | P111: 5.29%
A112: 102 | B112: FMCG | C112: MCDOWELL-N | D112: 2021-06-24 | E112: 665.15 | F112: 670.32 | G112: 655.83 | H112: 646.52 | I112: 632.03 | J112: 679.63 | K112: 694.12 | L112: 703.43 | M112: 684.8 | N112: 661 | O112: 10433750 | P112: -3.03%
A113: 103 | B113: Finance | C113: MFSL | D113: 2021-06-24 | E113: 1013.05 | F113: 1009.58 | G113: 999.92 | H113: 986.78 | I113: 977.12 | J113: 1022.72 | K113: 1032.38 | L113: 1045.52 | M113: 1019.25 | N113: 996.45 | O113: 2221700 | P113: -7.27%
A114: 104 | B114: Oil_Gas | C114: MGL | D114: 2021-06-24 | E114: 1165.90 | F114: 1173.18 | G114: 1155.37 | H114: 1144.83 | I114: 1127.02 | J114: 1183.72 | K114: 1201.53 | L114: 1212.07 | M114: 1191 | N114: 1162.65 | O114: 1925400 | P114: -2.34%
A115: 105 | B115: Technology | C115: MINDTREE | D115: 2021-06-24 | E115: 2481.35 | F115: 2488.77 | G115: 2469.53 | H115: 2457.72 | I115: 2438.48 | J115: 2500.58 | K115: 2519.82 | L115: 2531.63 | M115: 2508 | N115: 2476.95 | O115: 1761600 | P115: -1.96%
A116: 106 | B116: Automobile | C116: MOTHERSUMI | D116: 2021-06-24 | E116: 237.50 | F116: 239.15 | G116: 235.00 | H116: 232.50 | I116: 228.35 | J116: 241.65 | K116: 245.80 | L116: 248.30 | M116: 243.3 | N116: 236.65 | O116: 30054500 | P116: -3.03%
A117: 107 | B117: Technology | C117: MPHASIS | D117: 2021-06-24 | E117: 1987.60 | F117: 2003.15 | G117: 1966.50 | H117: 1945.40 | I117: 1908.75 | J117: 2024.25 | K117: 2060.90 | L117: 2082.00 | M117: 2039.8 | N117: 1982.05 | O117: 657150 | P117: 1.92%
A118: 108 | B118: Automobile | C118: MRF | D118: 2021-06-24 | E118: 81954.95 | F118: 82047.90 | G118: 81507.30 | H118: 81059.65 | I118: 80519.05 | J118: 82495.55 | K118: 83036.15 | L118: 83483.80 | M118: 82588.5 | N118: 81600.25 | O118: 42040 | P118: -4.69%
A119: 109 | B119: Finance | C119: MUTHOOTFIN | D119: 2021-06-24 | E119: 1479.15 | F119: 1487.52 | G119: 1465.03 | H119: 1450.92 | I119: 1428.43 | J119: 1501.63 | K119: 1524.12 | L119: 1538.23 | M119: 1510 | N119: 1473.4 | O119: 2955000 | P119: -5.83%
A120: 110 | B120: Others | C120: NAM-INDIA | D120: 2021-06-24 | E120: 358.15 | F120: 356.82 | G120: 353.93 | H120: 349.72 | I120: 346.83 | J120: 361.03 | K120: 363.92 | L120: 368.13 | M120: 359.7 | N120: 352.6 | O120: 2358400 | P120: -10.88%
A121: 111 | B121: Metals | C121: NATIONALUM | D121: 2021-06-24 | E121: 69.10 | F121: 69.58 | G121: 68.32 | H121: 67.53 | I121: 66.27 | J121: 70.37 | K121: 71.63 | L121: 72.42 | M121: 70.85 | N121: 68.8 | O121: 87108000 | P121: 3.70%
A122: 112 | B122: Others | C122: NAUKRI | D122: 2021-06-24 | E122: 4787.85 | F122: 4822.98 | G122: 4737.77 | H122: 4687.68 | I122: 4602.47 | J122: 4873.07 | K122: 4958.28 | L122: 5008.37 | M122: 4908.2 | N122: 4772.9 | O122: 1250500 | P122: -2.90%
A123: 113 | B123: Chemical | C123: NAVINFLUOR | D123: 2021-06-24 | E123: 3402.20 | F123: 3418.88 | G123: 3372.22 | H123: 3342.23 | I123: 3295.57 | J123: 3448.87 | K123: 3495.53 | L123: 3525.52 | M123: 3465.55 | N123: 3388.9 | O123: 315450 | P123: -5.65%
A124: 114 | B124: FMCG | C124: NESTLEIND | D124: 2021-06-24 | E124: 17442.60 | F124: 17457.40 | G124: 17345.20 | H124: 17247.80 | I124: 17135.60 | J124: 17554.80 | K124: 17667.00 | L124: 17764.40 | M124: 17569.6 | N124: 17360 | O124: 252850 | P124: -1.90%
A125: 115 | B125: Metals | C125: NMDC | D125: 2021-06-24 | E125: 178.90 | F125: 182.12 | G125: 175.03 | H125: 171.17 | I125: 164.08 | J125: 185.98 | K125: 193.07 | L125: 196.93 | M125: 189.2 | N125: 178.25 | O125: 84574100 | P125: 7.82%
A126: 116 | B126: Power | C126: NTPC | D126: 2021-06-24 | E126: 117.25 | F126: 117.58 | G126: 116.42 | H126: 115.58 | I126: 114.42 | J126: 118.42 | K126: 119.58 | L126: 120.42 | M126: 118.75 | N126: 116.75 | O126: 76744800 | P126: 3.69%
A127: 117 | B127: Oil_Gas | C127: ONGC | D127: 2021-06-24 | E127: 123.55 | F127: 123.23 | G127: 122.02 | H127: 120.48 | I127: 119.27 | J127: 124.77 | K127: 125.98 | L127: 127.52 | M127: 124.45 | N127: 121.7 | O127: 82251400 | P127: 5.54%
A128: 118 | B128: Textile | C128: PAGEIND | D128: 2021-06-24 | E128: 29405.10 | F128: 29477.73 | G128: 29255.47 | H128: 29105.83 | I128: 28883.57 | J128: 29627.37 | K128: 29849.63 | L128: 29999.27 | M128: 29700 | N128: 29328.1 | O128: 80280 | P128: -2.41%
A129: 119 | B129: Pharma | C129: PEL | D129: 2021-06-24 | E129: 2430.70 | F129: 2450.13 | G129: 2398.77 | H129: 2366.83 | I129: 2315.47 | J129: 2482.07 | K129: 2533.43 | L129: 2565.37 | M129: 2501.5 | N129: 2418.2 | O129: 3356650 | P129: -5.12%
A130: 120 | B130: Oil_Gas | C130: PETRONET | D130: 2021-06-24 | E130: 230.85 | F130: 231.03 | G130: 229.77 | H130: 228.68 | I130: 227.42 | J130: 232.12 | K130: 233.38 | L130: 234.47 | M130: 232.3 | N130: 229.95 | O130: 24765000 | P130: -2.37%
A131: 121 | B131: Finance | C131: PFC | D131: 2021-06-24 | E131: 123.15 | F131: 123.92 | G131: 121.58 | H131: 120.02 | I131: 117.68 | J131: 125.48 | K131: 127.82 | L131: 129.38 | M131: 126.25 | N131: 122.35 | O131: 40740200 | P131: -16.62%
A132: 122 | B132: Pharma | C132: PFIZER | D132: 2021-06-24 | E132: 5590.25 | F132: 5577.88 | G132: 5492.22 | H132: 5394.18 | I132: 5308.52 | J132: 5675.92 | K132: 5761.58 | L132: 5859.62 | M132: 5663.55 | N132: 5479.85 | O132: 368625 | P132: -2.67%
A133: 123 | B133: FMCG | C133: PIDILITIND | D133: 2021-06-24 | E133: 2132.50 | F133: 2137.05 | G133: 2111.85 | H133: 2091.20 | I133: 2066.00 | J133: 2157.70 | K133: 2182.90 | L133: 2203.55 | M133: 2162.25 | N133: 2116.4 | O133: 2323500 | P133: -2.31%
A134: 124 | B134: Chemical | C134: PIIND | D134: 2021-06-24 | E134: 2844.60 | F134: 2832.17 | G134: 2778.48 | H134: 2712.37 | I134: 2658.68 | J134: 2898.28 | K134: 2951.97 | L134: 3018.08 | M134: 2885.85 | N134: 2766.05 | O134: 701250 | P134: -0.95%
A135: 125 | B135: Banking | C135: PNB | D135: 2021-06-24 | E135: 42.20 | F135: 42.18 | G135: 41.37 | H135: 40.53 | I135: 39.72 | J135: 43.02 | K135: 43.83 | L135: 44.67 | M135: 43 | N135: 41.35 | O135: 332544000 | P135: 2.72%
A136: 126 | B136: Power | C136: POWERGRID | D136: 2021-06-24 | E136: 232.65 | F136: 233.53 | G136: 231.32 | H136: 229.98 | I136: 227.77 | J136: 234.87 | K136: 237.08 | L136: 238.42 | M136: 235.75 | N136: 232.2 | O136: 22516000 | P136: -5.33%
A137: 127 | B137: Media | C137: PVR | D137: 2021-06-24 | E137: 1414.40 | F137: 1412.28 | G137: 1400.12 | H137: 1385.83 | I137: 1373.67 | J137: 1426.57 | K137: 1438.73 | L137: 1453.02 | M137: 1424.45 | N137: 1398 | O137: 1479852 | P137: 12.99%
A138: 128 | B138: Cement | C138: RAMCOCEM | D138: 2021-06-24 | E138: 1021.25 | F138: 1020.45 | G138: 1010.80 | H138: 1000.35 | I138: 990.70 | J138: 1030.90 | K138: 1040.55 | L138: 1051.00 | M138: 1030.1 | N138: 1010 | O138: 1934600 | P138: -1.90%
A139: 129 | B139: Banking | C139: RBLBANK | D139: 2021-06-24 | E139: 208.75 | F139: 209.72 | G139: 207.18 | H139: 205.62 | I139: 203.08 | J139: 211.28 | K139: 213.82 | L139: 215.38 | M139: 212.25 | N139: 208.15 | O139: 22237200 | P139: -7.48%
A140: 130 | B140: Power | C140: RECLTD | D140: 2021-06-24 | E140: 144.70 | F140: 144.93 | G140: 143.77 | H140: 142.83 | I140: 141.67 | J140: 145.87 | K140: 147.03 | L140: 147.97 | M140: 146.1 | N140: 144 | O140: 24930000 | P140: 0.63%
A141: 131 | B141: Oil_Gas | C141: RELIANCE | D141: 2021-06-24 | E141: 2209.55 | F141: 2220.53 | G141: 2195.22 | H141: 2180.88 | I141: 2155.57 | J141: 2234.87 | K141: 2260.18 | L141: 2274.52 | M141: 2245.85 | N141: 2206.2 | O141: 36144250 | P141: -0.11%
A142: 132 | B142: Metals | C142: SAIL | D142: 2021-06-24 | E142: 124.00 | F142: 125.65 | G142: 121.95 | H142: 119.90 | I142: 116.20 | J142: 127.70 | K142: 131.40 | L142: 133.45 | M142: 129.35 | N142: 123.6 | O142: 176757000 | P142: -0.24%
A143: 133 | B143: Finance | C143: SBILIFE | D143: 2021-06-24 | E143: 1000.70 | F143: 1003.72 | G143: 995.53 | H143: 990.37 | I143: 982.18 | J143: 1008.88 | K143: 1017.07 | L143: 1022.23 | M143: 1011.9 | N143: 998.55 | O143: 6609750 | P143: 4.56%
A144: 134 | B144: Banking | C144: SBIN | D144: 2021-06-24 | E144: 418.60 | F144: 419.28 | G144: 413.67 | H144: 408.73 | I144: 403.12 | J144: 424.22 | K144: 429.83 | L144: 434.77 | M144: 424.9 | N144: 414.35 | O144: 83659500 | P144: -1.11%
A145: 135 | B145: Cement | C145: SHREECEM | D145: 2021-06-24 | E145: 28868.20 | F145: 29092.50 | G145: 28501.70 | H145: 28135.20 | I145: 27544.40 | J145: 29459.00 | K145: 30049.80 | L145: 30416.30 | M145: 29683.3 | N145: 28726 | O145: 124700 | P145: -5.55%
A146: 136 | B146: Capital_Goods | C146: SIEMENS | D146: 2021-06-24 | E146: 2027.10 | F146: 2023.05 | G146: 2000.10 | H146: 1973.10 | I146: 1950.15 | J146: 2050.05 | K146: 2073.00 | L146: 2100.00 | M146: 2046 | N146: 1996.05 | O146: 1057375 | P146: -4.54%
A147: 137 | B147: Textile | C147: SRF | D147: 2021-06-24 | E147: 6899.70 | F147: 6942.17 | G147: 6832.53 | H147: 6765.37 | I147: 6655.73 | J147: 7009.33 | K147: 7118.97 | L147: 7186.13 | M147: 7051.8 | N147: 6875 | O147: 301500 | P147: -2.03%
A148: 138 | B148: Finance | C148: SRTRANSFIN | D148: 2021-06-24 | E148: 1365.60 | F148: 1372.52 | G148: 1356.98 | H148: 1348.37 | I148: 1332.83 | J148: 1381.13 | K148: 1396.67 | L148: 1405.28 | M148: 1388.05 | N148: 1363.9 | O148: 5088400 | P148: -2.58%
A149: 139 | B149: Pharma | C149: SUNPHARMA | D149: 2021-06-24 | E149: 666.15 | F149: 668.03 | G149: 663.27 | H149: 660.38 | I149: 655.62 | J149: 670.92 | K149: 675.68 | L149: 678.57 | M149: 672.8 | N149: 665.15 | O149: 39305000 | P149: -0.93%
A150: 140 | B150: Media | C150: SUNTV | D150: 2021-06-24 | E150: 537.10 | F150: 542.68 | G150: 526.42 | H150: 515.73 | I150: 499.47 | J150: 553.37 | K150: 569.63 | L150: 580.32 | M150: 558.95 | N150: 532 | O150: 13750500 | P150: -2.82%
A151: 141 | B151: Chemical | C151: TATACHEM | D151: 2021-06-24 | E151: 714.20 | F151: 718.22 | G151: 708.58 | H151: 702.97 | I151: 693.33 | J151: 723.83 | K151: 733.47 | L151: 739.08 | M151: 727.85 | N151: 712.6 | O151: 7052000 | P151: -2.50%
A152: 142 | B152: FMCG | C152: TATACONSUM | D152: 2021-06-24 | E152: 756.35 | F152: 757.53 | G152: 750.97 | H152: 745.58 | I152: 739.02 | J152: 762.92 | K152: 769.48 | L152: 774.87 | M152: 764.1 | N152: 752.15 | O152: 7391250 | P152: 1.67%
A153: 143 | B153: Automobile | C153: TATAMOTORS | D153: 2021-06-24 | E153: 335.55 | F153: 337.77 | G153: 332.68 | H153: 329.82 | I153: 324.73 | J153: 340.63 | K153: 345.72 | L153: 348.58 | M153: 342.85 | N153: 334.9 | O153: 92003700 | P153: -1.48%
A154: 144 | B154: Power | C154: TATAPOWER | D154: 2021-06-24 | E154: 120.65 | F154: 121.40 | G154: 119.65 | H154: 118.65 | I154: 116.90 | J154: 122.40 | K154: 124.15 | L154: 125.15 | M154: 123.15 | N154: 120.4 | O154: 132813000 | P154: -0.89%
A155: 145 | B155: Metals | C155: TATASTEEL | D155: 2021-06-24 | E155: 1099.25 | F155: 1107.63 | G155: 1088.62 | H155: 1077.98 | I155: 1058.97 | J155: 1118.27 | K155: 1137.28 | L155: 1147.92 | M155: 1126.65 | N155: 1097 | O155: 47311850 | P155: -1.56%
A156: 146 | B156: Technology | C156: TCS | D156: 2021-06-24 | E156: 3267.00 | F156: 3283.63 | G156: 3243.87 | H156: 3220.73 | I156: 3180.97 | J156: 3306.77 | K156: 3346.53 | L156: 3369.67 | M156: 3323.4 | N156: 3260.5 | O156: 8230500 | P156: 0.24%
A157: 147 | B157: Technology | C157: TECHM | D157: 2021-06-24 | E157: 1055.60 | F157: 1052.67 | G157: 1041.58 | H157: 1027.57 | I157: 1016.48 | J157: 1066.68 | K157: 1077.77 | L157: 1091.78 | M157: 1063.75 | N157: 1038.65 | O157: 13663200 | P157: 5.86%
A158: 148 | B158: FMCG | C158: TITAN | D158: 2021-06-24 | E158: 1784.15 | F158: 1776.27 | G158: 1764.78 | H158: 1745.42 | I158: 1733.93 | J158: 1795.63 | K158: 1807.12 | L158: 1826.48 | M158: 1787.75 | N158: 1756.9 | O158: 4617000 | P158: -0.65%
A159: 149 | B159: Pharma | C159: TORNTPHARM | D159: 2021-06-24 | E159: 2899.30 | F159: 2909.20 | G159: 2879.20 | H159: 2859.10 | I159: 2829.10 | J159: 2929.30 | K159: 2959.30 | L159: 2979.40 | M159: 2939.2 | N159: 2889.1 | O159: 648750 | P159: -4.88%
A160: 150 | B160: Power | C160: TORNTPOWER | D160: 2021-06-24 | E160: 450.80 | F160: 450.15 | G160: 447.75 | H160: 444.70 | I160: 442.30 | J160: 453.20 | K160: 455.60 | L160: 458.65 | M160: 452.55 | N160: 447.1 | O160: 4207500 | P160: 1.23%
A161: 151 | B161: Others | C161: TRENT | D161: 2021-06-24 | E161: 859.00 | F161: 859.87 | G161: 849.73 | H161: 840.47 | I161: 830.33 | J161: 869.13 | K161: 879.27 | L161: 888.53 | M161: 870 | N161: 850.6 | O161: 899725 | P161: -3.65%
A162: 152 | B162: Automobile | C162: TVSMOTOR | D162: 2021-06-24 | E162: 618.95 | F162: 621.03 | G162: 614.67 | H162: 610.38 | I162: 604.02 | J162: 625.32 | K162: 631.68 | L162: 635.97 | M162: 627.4 | N162: 616.75 | O162: 6731200 | P162: 4.23%
A163: 153 | B163: FMCG | C163: UBL | D163: 2021-06-24 | E163: 1402.95 | F163: 1432.92 | G163: 1365.13 | H163: 1327.32 | I163: 1259.53 | J163: 1470.73 | K163: 1538.52 | L163: 1576.33 | M163: 1500.7 | N163: 1395.1 | O163: 2621500 | P163: -13.41%
A164: 154 | B164: Cement | C164: ULTRACEMCO | D164: 2021-06-24 | E164: 6900.90 | F164: 6879.50 | G164: 6798.10 | H164: 6695.30 | I164: 6613.90 | J164: 6982.30 | K164: 7063.70 | L164: 7166.50 | M164: 6960.9 | N164: 6776.7 | O164: 2327800 | P164: 4.46%
A165: 155 | B165: Chemical | C165: UPL | D165: 2021-06-24 | E165: 803.10 | F165: 803.05 | G165: 794.65 | H165: 786.20 | I165: 777.80 | J165: 811.50 | K165: 819.90 | L165: 828.35 | M165: 811.45 | N165: 794.6 | O165: 23838100 | P165: 2.52%
A166: 156 | B166: Metals | C166: VEDL | D166: 2021-06-24 | E166: 251.35 | F166: 252.65 | G166: 248.50 | H166: 245.65 | I166: 241.50 | J166: 255.50 | K166: 259.65 | L166: 262.50 | M166: 256.8 | N166: 249.8 | O166: 124579700 | P166: -0.40%
A167: 157 | B167: Capital_Goods | C167: VOLTAS | D167: 2021-06-24 | E167: 1030.90 | F167: 1032.37 | G167: 1018.13 | H167: 1005.37 | I167: 991.13 | J167: 1045.13 | K167: 1059.37 | L167: 1072.13 | M167: 1046.6 | N167: 1019.6 | O167: 3580000 | P167: -3.47%
A168: 158 | B168: Technology | C168: WIPRO | D168: 2021-06-24 | E168: 541.65 | F168: 547.53 | G168: 534.12 | H168: 526.58 | I168: 513.17 | J168: 555.07 | K168: 568.48 | L168: 576.02 | M168: 560.95 | N168: 540 | O168: 30990400 | P168: -1.92%
A169: 159 | B169: Media | C169: ZEEL | D169: 2021-06-24 | E169: 216.55 | F169: 218.35 | G169: 214.25 | H169: 211.95 | I169: 207.85 | J169: 220.65 | K169: 224.75 | L169: 227.05 | M169: 222.45 | N169: 216.05 | O169: 80328000 | P169: 2.39%
A175: Pivot Point: This is trigger point for intra day buy/sell based on the price range of the previous day
A176: As per the tool,the trader should take BUY position just above Pivot and keep the stop loss of pivot point and the first target would be Resistance 1(R1)
A177: If R1 is crossed then R2 becomes the next target with stop loss of at R1
A178: Similarly if price goes below pivot point then the trader should sell and keep a stop loss of pivot point and the first target would be S1
A179: If S1 is crossed then S2 becomes the next target with stop loss of at S1
A181: Disclaimer:
A182: This document has been prepared by the Retail Research Desk of Asit C Mehta
A183: Investment Intermediates Ltd. and is meant for use of the recipient only
A184: and is not for circulation. This document is not to be reported or
A185: copied or made available to others. It should not be considered to be
A186: taken as an offer to sell or a solicitation to buy any security. The
A187: information contained herein is from sources believed reliable. We do
A188: not represent that it is accurate or complete and it should not be
A189: relied upon as such. We may from time to time have positions in and buy
A190: and sell securities referred to herein

Sheet Cash Intra
M5: Back to Main Page
A6: FOR INTRA DAY TRADING | K6: =Main!B10 -> 2021-06-24
A8: Sr.no | C8: CLOSE RATE | D8: Pivot Point | E8: Supports | H8: Resistances
C9: Point | E9: S1 | F9: S2 | G9: S3 | H9: R1 | I9: R2 | J9: R3 | K9: HIGH | L9: LOW | M9: Total Trade Quanity in Lakhs
A10: 1 | B10: Nifty 50 | C10: 15686.95 | D10: 15741.28 | E10: 15619.62 | F10: 15552.28 | G10: 15430.62 | H10: 15808.62 | I10: 15930.28 | J10: 15997.62 | K10: 15862.95 | L10: 15673.95
A11: 2 | B11: Nifty Bank | C11: 34574 | D11: 34679.03 | E11: 34420.42 | F11: 34266.83 | G11: 34008.22 | H11: 34832.62 | I11: 35091.23 | J11: 35244.82 | K11: 34937.65 | L11: 34525.45
A12: 3 | B12: Nifty CPSE | C12: 2066.85 | D12: 2064.88 | E12: 2052.27 | F12: 2037.68 | G12: 2025.07 | H12: 2079.47 | I12: 2092.08 | J12: 2106.67 | K12: 2077.5 | L12: 2050.3
A13: 4 | B13: Nifty Infra | C13: 4392.65 | D13: 4410.83 | E13: 4370.52 | F13: 4348.38 | G13: 4308.07 | H13: 4432.97 | I13: 4473.28 | J13: 4495.42 | K13: 4451.15 | L13: 4388.7
A14: 5 | B14: Nifty IT | C14: 28258.5 | D14: 28402.50 | E14: 28085.35 | F14: 27912.20 | G14: 27595.05 | H14: 28575.65 | I14: 28892.80 | J14: 29065.95 | K14: 28719.65 | L14: 28229.35
A15: 6 | B15: Nifty PSE | C15: 3618.95 | D15: 3629.43 | E15: 3603.62 | F15: 3588.28 | G15: 3562.47 | H15: 3644.77 | I15: 3670.58 | J15: 3685.92 | K15: 3655.25 | L15: 3614.1
A16: 7 | B16: Nifty Midcap 50 | C16: 7384.4 | D16: 7405.13 | E16: 7357.52 | F16: 7330.63 | G16: 7283.02 | H16: 7432.02 | I16: 7479.63 | J16: 7506.52 | K16: 7452.75 | L16: 7378.25
A17: 8 | B17: ACC | C17: 2030.55 | D17: 2038.48 | E17: 2017.07 | F17: 2003.58 | G17: 1982.17 | H17: 2051.97 | I17: 2073.38 | J17: 2086.87 | K17: 2059.9 | L17: 2025 | M17: 2.68921
A18: 9 | B18: AUBANK | C18: 1017.15 | D18: 1026.27 | E18: 1005.38 | F18: 993.62 | G18: 972.73 | H18: 1038.03 | I18: 1058.92 | J18: 1070.68 | K18: 1047.15 | L18: 1014.5 | M18: 6.10559
A19: 10 | B19: AARTIIND | C19: 864.4 | D19: 870.87 | E19: 855.13 | F19: 845.87 | G19: 830.13 | H19: 880.13 | I19: 895.87 | J19: 905.13 | K19: 886.6 | L19: 861.6 | M19: 8.41152
A20: 11 | B20: ABBOTINDIA | C20: 16427.6 | D20: 16523.87 | E20: 16303.73 | F20: 16179.87 | G20: 15959.73 | H20: 16647.73 | I20: 16867.87 | J20: 16991.73 | K20: 16744 | L20: 16400 | M20: 0.10592
A21: 12 | B21: ADANIENT | C21: 1504.75 | D21: 1518.67 | E21: 1467.38 | F21: 1430.02 | G21: 1378.73 | H21: 1556.03 | I21: 1607.32 | J21: 1644.68 | K21: 1569.95 | L21: 1481.3 | M21: 126.79703
A22: 13 | B22: ADANIGREEN | C22: 1166.15 | D22: 1159.12 | E22: 1122.03 | F22: 1077.92 | G22: 1040.83 | H22: 1203.23 | I22: 1240.32 | J22: 1284.43 | K22: 1196.2 | L22: 1115 | M22: 12.21164
A23: 14 | B23: ADANIPORTS | C23: 718.7 | D23: 730.40 | E23: 703.80 | F23: 688.90 | G23: 662.30 | H23: 745.30 | I23: 771.90 | J23: 786.80 | K23: 757 | L23: 715.5 | M23: 311.68761
A24: 15 | B24: ATGL | C24: 1318.05 | D24: 1350.70 | E24: 1285.40 | F24: 1252.75 | G24: 1187.45 | H24: 1383.35 | I24: 1448.65 | J24: 1481.30 | K24: 1416 | L24: 1318.05 | M24: 5.79237
A25: 16 | B25: ADANITRANS | C25: 1321.45 | D25: 1343.12 | E25: 1277.23 | F25: 1233.02 | G25: 1167.13 | H25: 1387.33 | I25: 1453.22 | J25: 1497.43 | K25: 1409 | L25: 1298.9 | M25: 3.43449
A26: 17 | B26: ABCAPITAL | C26: 119.55 | D26: 119.97 | E26: 118.68 | F26: 117.82 | G26: 116.53 | H26: 120.83 | I26: 122.12 | J26: 122.98 | K26: 121.25 | L26: 119.1 | M26: 14.08249
A27: 18 | B27: ABFRL | C27: 212.2 | D27: 212.33 | E27: 209.12 | F27: 206.03 | G27: 202.82 | H27: 215.42 | I27: 218.63 | J27: 221.72 | K27: 215.55 | L27: 209.25 | M27: 32.74778
A28: 19 | B28: AJANTPHARM | C28: 1939.8 | D28: 1949.80 | E28: 1926.00 | F28: 1912.20 | G28: 1888.40 | H28: 1963.60 | I28: 1987.40 | J28: 2001.20 | K28: 1973.6 | L28: 1936 | M28: 0.2823
A29: 20 | B29: APLLTD | C29: 980.1 | D29: 987.55 | E29: 970.10 | F29: 960.10 | G29: 942.65 | H29: 997.55 | I29: 1015.00 | J29: 1025.00 | K29: 1005 | L29: 977.55 | M29: 1.83011
A30: 21 | B30: ALKEM | C30: 3109.95 | D30: 3119.28 | E30: 3083.77 | F30: 3057.58 | G30: 3022.07 | H30: 3145.47 | I30: 3180.98 | J30: 3207.17 | K30: 3154.8 | L30: 3093.1 | M30: 0.65488
A31: 22 | B31: AMARAJABAT | C31: 750 | D31: 751.08 | E31: 746.17 | F31: 742.33 | G31: 737.42 | H31: 754.92 | I31: 759.83 | J31: 763.67 | K31: 756 | L31: 747.25 | M31: 8.11408
A32: 23 | B32: AMBUJACEM | C32: 345.15 | D32: 345.72 | E32: 342.93 | F32: 340.72 | G32: 337.93 | H32: 347.93 | I32: 350.72 | J32: 352.93 | K32: 348.5 | L32: 343.5 | M32: 16.90045
A33: 24 | B33: APOLLOHOSP | C33: 3244.8 | D33: 3243.92 | E33: 3212.88 | F33: 3180.97 | G33: 3149.93 | H33: 3275.83 | I33: 3306.87 | J33: 3338.78 | K33: 3274.95 | L33: 3212 | M33: 5.04942
A34: 25 | B34: APOLLOTYRE | C34: 224.15 | D34: 226.45 | E34: 221.25 | F34: 218.35 | G34: 213.15 | H34: 229.35 | I34: 234.55 | J34: 237.45 | K34: 231.65 | L34: 223.55 | M34: 56.42837
A35: 26 | B35: ASHOKLEY | C35: 119.1 | D35: 119.05 | E35: 117.90 | F35: 116.70 | G35: 115.55 | H35: 120.25 | I35: 121.40 | J35: 122.60 | K35: 120.2 | L35: 117.85 | M35: 104.68704
A36: 27 | B36: ASIANPAINT | C36: 2987.35 | D36: 3000.28 | E36: 2970.57 | F36: 2953.78 | G36: 2924.07 | H36: 3017.07 | I36: 3046.78 | J36: 3063.57 | K36: 3030 | L36: 2983.5 | M36: 10.09007
A37: 28 | B37: AUROPHARMA | C37: 944.4 | D37: 947.22 | E37: 937.43 | F37: 930.47 | G37: 920.68 | H37: 954.18 | I37: 963.97 | J37: 970.93 | K37: 957 | L37: 940.25 | M37: 13.75688
A38: 29 | B38: DMART | C38: 3310.9 | D38: 3337.28 | E38: 3274.57 | F38: 3238.23 | G38: 3175.52 | H38: 3373.62 | I38: 3436.33 | J38: 3472.67 | K38: 3400 | L38: 3300.95 | M38: 2.4416
A39: 30 | B39: AXISBANK | C39: 732.35 | D39: 735.63 | E39: 727.52 | F39: 722.68 | G39: 714.57 | H39: 740.47 | I39: 748.58 | J39: 753.42 | K39: 743.75 | L39: 730.8 | M39: 61.54147
A40: 31 | B40: BAJAJ-AUTO | C40: 4198.6 | D40: 4216.50 | E40: 4173.35 | F40: 4148.10 | G40: 4104.95 | H40: 4241.75 | I40: 4284.90 | J40: 4310.15 | K40: 4259.65 | L40: 4191.25 | M40: 4.18053
A41: 32 | B41: BAJFINANCE | C41: 6015.6 | D41: 6043.87 | E41: 5972.73 | F41: 5929.87 | G41: 5858.73 | H41: 6086.73 | I41: 6157.87 | J41: 6200.73 | K41: 6115 | L41: 6001 | M41: 12.38215
A42: 33 | B42: BAJAJFINSV | C42: 12282.25 | D42: 12254.08 | E42: 12108.17 | F42: 11934.08 | G42: 11788.17 | H42: 12428.17 | I42: 12574.08 | J42: 12748.17 | K42: 12400 | L42: 12080 | M42: 3.78555
A43: 34 | B43: BAJAJHLDNG | C43: 3600.4 | D43: 3614.03 | E43: 3533.12 | F43: 3465.83 | G43: 3384.92 | H43: 3681.32 | I43: 3762.23 | J43: 3829.52 | K43: 3694.95 | L43: 3546.75 | M43: 1.16052
A44: 35 | B44: BALKRISIND | C44: 2195.9 | D44: 2201.18 | E44: 2181.92 | F44: 2167.93 | G44: 2148.67 | H44: 2215.17 | I44: 2234.43 | J44: 2248.42 | K44: 2220.45 | L44: 2187.2 | M44: 7.35128
A45: 36 | B45: BANDHANBNK | C45: 333.15 | D45: 336.52 | E45: 328.48 | F45: 323.82 | G45: 315.78 | H45: 341.18 | I45: 349.22 | J45: 353.88 | K45: 344.55 | L45: 331.85 | M45: 49.98318
A46: 37 | B46: BANKBARODA | C46: 82.3 | D46: 82.40 | E46: 81.15 | F46: 80.00 | G46: 78.75 | H46: 83.55 | I46: 84.80 | J46: 85.95 | K46: 83.65 | L46: 81.25 | M46: 483.68946
A47: 38 | B47: BANKINDIA | C47: 78.3 | D47: 78.62 | E47: 77.78 | F47: 77.27 | G47: 76.43 | H47: 79.13 | I47: 79.97 | J47: 80.48 | K47: 79.45 | L47: 78.1 | M47: 32.09585
A48: 39 | B48: BATAINDIA | C48: 1661.95 | D48: 1663.07 | E48: 1650.23 | F48: 1638.52 | G48: 1625.68 | H48: 1674.78 | I48: 1687.62 | J48: 1699.33 | K48: 1675.9 | L48: 1651.35 | M48: 2.23164
A49: 40 | B49: BERGEPAINT | C49: 806.1 | D49: 809.23 | E49: 800.62 | F49: 795.13 | G49: 786.52 | H49: 814.72 | I49: 823.33 | J49: 828.82 | K49: 817.85 | L49: 803.75 | M49: 4.84591
A50: 41 | B50: BEL | C50: 168.5 | D50: 163.67 | E50: 157.33 | F50: 146.17 | G50: 139.83 | H50: 174.83 | I50: 181.17 | J50: 192.33 | K50: 170 | L50: 152.5 | M50: 1212.97926
A51: 42 | B51: BHARATFORG | C51: 730.85 | D51: 737.28 | E51: 723.07 | F51: 715.28 | G51: 701.07 | H51: 745.07 | I51: 759.28 | J51: 767.07 | K51: 751.5 | L51: 729.5 | M51: 20.24549
A52: 43 | B52: BHEL | C52: 66.05 | D52: 66.60 | E52: 65.25 | F52: 64.45 | G52: 63.10 | H52: 67.40 | I52: 68.75 | J52: 69.55 | K52: 67.95 | L52: 65.8 | M52: 565.73877
A53: 44 | B53: BPCL | C53: 469.6 | D53: 471.25 | E53: 467.50 | F53: 465.40 | G53: 461.65 | H53: 473.35 | I53: 477.10 | J53: 479.20 | K53: 475 | L53: 469.15 | M53: 24.63779
A54: 45 | B54: BHARTIARTL | C54: 534.05 | D54: 535.32 | E54: 531.43 | F54: 528.82 | G54: 524.93 | H54: 537.93 | I54: 541.82 | J54: 544.43 | K54: 539.2 | L54: 532.7 | M54: 46.79563
A55: 46 | B55: BIOCON | C55: 397.55 | D55: 399.70 | E55: 394.45 | F55: 391.35 | G55: 386.10 | H55: 402.80 | I55: 408.05 | J55: 411.15 | K55: 404.95 | L55: 396.6 | M55: 18.24603
A56: 47 | B56: BBTC | C56: 1303.65 | D56: 1310.10 | E56: 1293.95 | F56: 1284.25 | G56: 1268.10 | H56: 1319.80 | I56: 1335.95 | J56: 1345.65 | K56: 1326.25 | L56: 1300.4 | M56: 0.50317
A57: 48 | B57: BOSCHLTD | C57: 15064.55 | D57: 15114.45 | E57: 14961.50 | F57: 14858.45 | G57: 14705.50 | H57: 15217.50 | I57: 15370.45 | J57: 15473.50 | K57: 15267.4 | L57: 15011.4 | M57: 0.43267
A58: 49 | B58: BRITANNIA | C58: 3659.3 | D58: 3658.20 | E58: 3632.10 | F58: 3604.90 | G58: 3578.80 | H58: 3685.40 | I58: 3711.50 | J58: 3738.70 | K58: 3684.3 | L58: 3631 | M58: 3.78997
A59: 50 | B59: CESC | C59: 765 | D59: 769.98 | E59: 759.02 | F59: 753.03 | G59: 742.07 | H59: 775.97 | I59: 786.93 | J59: 792.92 | K59: 780.95 | L59: 764 | M59: 3.47993
A60: 51 | B60: CADILAHC | C60: 623.55 | D60: 626.05 | E60: 618.90 | F60: 614.25 | G60: 607.10 | H60: 630.70 | I60: 637.85 | J60: 642.50 | K60: 633.2 | L60: 621.4 | M60: 30.43828
A61: 52 | B61: CANBK | C61: 151.95 | D61: 152.35 | E61: 150.50 | F61: 149.05 | G61: 147.20 | H61: 153.80 | I61: 155.65 | J61: 157.10 | K61: 154.2 | L61: 150.9 | M61: 117.03214
A62: 53 | B62: CASTROLIND | C62: 145.75 | D62: 146.33 | E62: 144.92 | F62: 144.08 | G62: 142.67 | H62: 147.17 | I62: 148.58 | J62: 149.42 | K62: 147.75 | L62: 145.5 | M62: 7.5092
A63: 54 | B63: CHOLAFIN | C63: 536.2 | D63: 539.50 | E63: 531.70 | F63: 527.20 | G63: 519.40 | H63: 544.00 | I63: 551.80 | J63: 556.30 | K63: 547.3 | L63: 535 | M63: 17.29953
A64: 55 | B64: CIPLA | C64: 957.75 | D64: 959.32 | E64: 952.63 | F64: 947.52 | G64: 940.83 | H64: 964.43 | I64: 971.12 | J64: 976.23 | K64: 966 | L64: 954.2 | M64: 18.07471
A65: 56 | B65: CUB | C65: 168.05 | D65: 166.97 | E65: 164.78 | F65: 161.52 | G65: 159.33 | H65: 170.23 | I65: 172.42 | J65: 175.68 | K65: 169.15 | L65: 163.7 | M65: 51.476
A66: 57 | B66: COALINDIA | C66: 148.45 | D66: 149.07 | E66: 147.53 | F66: 146.62 | G66: 145.08 | H66: 149.98 | I66: 151.52 | J66: 152.43 | K66: 150.6 | L66: 148.15 | M66: 79.8322
A67: 58 | B67: COFORGE | C67: 3935.85 | D67: 3961.52 | E67: 3894.33 | F67: 3852.82 | G67: 3785.63 | H67: 4003.03 | I67: 4070.22 | J67: 4111.73 | K67: 4028.7 | L67: 3920 | M67: 2.97161
A68: 59 | B68: COLPAL | C68: 1686.35 | D68: 1689.88 | E68: 1679.37 | F68: 1672.38 | G68: 1661.87 | H68: 1696.87 | I68: 1707.38 | J68: 1714.37 | K68: 1700.4 | L68: 1682.9 | M68: 1.9196
A69: 60 | B69: CONCOR | C69: 698.15 | D69: 703.72 | E69: 690.93 | F69: 683.72 | G69: 670.93 | H69: 710.93 | I69: 723.72 | J69: 730.93 | K69: 716.5 | L69: 696.5 | M69: 30.45052
A70: 61 | B70: COROMANDEL | C70: 890.65 | D70: 898.87 | E70: 872.78 | F70: 854.92 | G70: 828.83 | H70: 916.73 | I70: 942.82 | J70: 960.68 | K70: 924.95 | L70: 881 | M70: 3.64072
A71: 62 | B71: CROMPTON | C71: 416.2 | D71: 415.90 | E71: 413.30 | F71: 410.40 | G71: 407.80 | H71: 418.80 | I71: 421.40 | J71: 424.30 | K71: 418.5 | L71: 413 | M71: 9.52247
A72: 63 | B72: CUMMINSIND | C72: 825.55 | D72: 831.57 | E72: 817.63 | F72: 809.72 | G72: 795.78 | H72: 839.48 | I72: 853.42 | J72: 861.33 | K72: 845.5 | L72: 823.65 | M72: 5.58645
A73: 64 | B73: DLF | C73: 293.05 | D73: 295.28 | E73: 289.97 | F73: 286.88 | G73: 281.57 | H73: 298.37 | I73: 303.68 | J73: 306.77 | K73: 300.6 | L73: 292.2 | M73: 50.70124
A74: 65 | B74: DABUR | C74: 566.45 | D74: 565.57 | E74: 561.13 | F74: 555.82 | G74: 551.38 | H74: 570.88 | I74: 575.32 | J74: 580.63 | K74: 570 | L74: 560.25 | M74: 11.72122
A75: 66 | B75: DALBHARAT | C75: 1824.6 | D75: 1829.25 | E75: 1781.50 | F75: 1738.40 | G75: 1690.65 | H75: 1872.35 | I75: 1920.10 | J75: 1963.20 | K75: 1877 | L75: 1786.15 | M75: 1.05284
A76: 67 | B76: DHANI | C76: 180.2 | D76: 183.57 | E76: 176.13 | F76: 172.07 | G76: 164.63 | H76: 187.63 | I76: 195.07 | J76: 199.13 | K76: 191 | L76: 179.5 | M76: 9.21265
A77: 68 | B77: DIVISLAB | C77: 4224.6 | D77: 4252.02 | E77: 4193.83 | F77: 4163.07 | G77: 4104.88 | H77: 4282.78 | I77: 4340.97 | J77: 4371.73 | K77: 4310.2 | L77: 4221.25 | M77: 2.68303
A78: 69 | B78: LALPATHLAB | C78: 3231.05 | D78: 3213.52 | E78: 3147.53 | F78: 3064.02 | G78: 2998.03 | H78: 3297.03 | I78: 3363.02 | J78: 3446.53 | K78: 3279.5 | L78: 3130 | M78: 6.32815
A79: 70 | B79: DRREDDY | C79: 5299.35 | D79: 5312.17 | E79: 5274.38 | F79: 5249.42 | G79: 5211.63 | H79: 5337.13 | I79: 5374.92 | J79: 5399.88 | K79: 5349.95 | L79: 5287.2 | M79: 4.11143
A80: 71 | B80: EDELWEISS | C80: 74.45 | D80: 74.70 | E80: 73.65 | F80: 72.85 | G80: 71.80 | H80: 75.50 | I80: 76.55 | J80: 77.35 | K80: 75.75 | L80: 73.9 | M80: 24.23714
A81: 72 | B81: EICHERMOT | C81: 2728.6 | D81: 2733.40 | E81: 2703.80 | F81: 2679.00 | G81: 2649.40 | H81: 2758.20 | I81: 2787.80 | J81: 2812.60 | K81: 2763 | L81: 2708.6 | M81: 4.32919
A82: 73 | B82: EMAMILTD | C82: 549.7 | D82: 543.82 | E82: 536.13 | F82: 522.57 | G82: 514.88 | H82: 557.38 | I82: 565.07 | J82: 578.63 | K82: 551.5 | L82: 530.25 | M82: 7.8627
A83: 74 | B83: ENDURANCE | C83: 1535.75 | D83: 1538.23 | E83: 1522.47 | F83: 1509.18 | G83: 1493.42 | H83: 1551.52 | I83: 1567.28 | J83: 1580.57 | K83: 1554 | L83: 1524.95 | M83: 0.87068
A84: 75 | B84: ESCORTS | C84: 1167.3 | D84: 1171.98 | E84: 1158.92 | F84: 1150.53 | G84: 1137.47 | H84: 1180.37 | I84: 1193.43 | J84: 1201.82 | K84: 1185.05 | L84: 1163.6 | M84: 7.32658
A85: 76 | B85: EXIDEIND | C85: 184.7 | D85: 185.27 | E85: 183.73 | F85: 182.77 | G85: 181.23 | H85: 186.23 | I85: 187.77 | J85: 188.73 | K85: 186.8 | L85: 184.3 | M85: 13.76747
A86: 77 | B86: FEDERALBNK | C86: 84.8 | D86: 85.25 | E86: 84.15 | F86: 83.50 | G86: 82.40 | H86: 85.90 | I86: 87.00 | J86: 87.65 | K86: 86.35 | L86: 84.6 | M86: 135.67339
A87: 78 | B87: FORTIS | C87: 231.95 | D87: 232.73 | E87: 230.47 | F87: 228.98 | G87: 226.72 | H87: 234.22 | I87: 236.48 | J87: 237.97 | K87: 235 | L87: 231.25 | M87: 10.55758
A88: 79 | B88: FRETAIL | C88: 67.25 | D88: 67.35 | E88: 65.50 | F88: 63.75 | G88: 61.90 | H88: 69.10 | I88: 70.95 | J88: 72.70 | K88: 69.2 | L88: 65.6 | M88: 27.01383
A89: 80 | B89: GAIL | C89: 153.35 | D89: 154.35 | E89: 151.70 | F89: 150.05 | G89: 147.40 | H89: 156.00 | I89: 158.65 | J89: 160.30 | K89: 157 | L89: 152.7 | M89: 81.90583
A90: 81 | B90: GMRINFRA | C90: 32.4 | D90: 32.82 | E90: 31.73 | F90: 31.07 | G90: 29.98 | H90: 33.48 | I90: 34.57 | J90: 35.23 | K90: 33.9 | L90: 32.15 | M90: 1063.16248
A91: 82 | B91: GICRE | C91: 198.7 | D91: 200.23 | E91: 196.47 | F91: 194.23 | G91: 190.47 | H91: 202.47 | I91: 206.23 | J91: 208.47 | K91: 204 | L91: 198 | M91: 4.91673
A92: 83 | B92: GLENMARK | C92: 638.95 | D92: 640.63 | E92: 634.32 | F92: 629.68 | G92: 623.37 | H92: 645.27 | I92: 651.58 | J92: 656.22 | K92: 646.95 | L92: 636 | M92: 8.52001
A93: 84 | B93: GODREJAGRO | C93: 632.35 | D93: 626.17 | E93: 591.18 | F93: 550.02 | G93: 515.03 | H93: 667.33 | I93: 702.32 | J93: 743.48 | K93: 661.15 | L93: 585 | M93: 78.81902
A94: 85 | B94: GODREJCP | C94: 880.75 | D94: 880.38 | E94: 874.07 | F94: 867.38 | G94: 861.07 | H94: 887.07 | I94: 893.38 | J94: 900.07 | K94: 886.7 | L94: 873.7 | M94: 12.21549
A95: 86 | B95: GODREJIND | C95: 576.65 | D95: 564.23 | E95: 543.47 | F95: 510.28 | G95: 489.52 | H95: 597.42 | I95: 618.18 | J95: 651.37 | K95: 585 | L95: 531.05 | M95: 19.68832
A96: 87 | B96: GODREJPROP | C96: 1405.3 | D96: 1406.07 | E96: 1395.63 | F96: 1385.97 | G96: 1375.53 | H96: 1415.73 | I96: 1426.17 | J96: 1435.83 | K96: 1416.5 | L96: 1396.4 | M96: 3.83816
A97: 88 | B97: GRASIM | C97: 1498.75 | D97: 1498.33 | E97: 1484.42 | F97: 1470.08 | G97: 1456.17 | H97: 1512.67 | I97: 1526.58 | J97: 1540.92 | K97: 1512.25 | L97: 1484 | M97: 9.73788
A98: 89 | B98: GUJGASLTD | C98: 652.9 | D98: 661.13 | E98: 642.87 | F98: 632.83 | G98: 614.57 | H98: 671.17 | I98: 689.43 | J98: 699.47 | K98: 679.4 | L98: 651.1 | M98: 21.63622
A99: 90 | B99: GSPL | C99: 333.65 | D99: 333.63 | E99: 326.37 | F99: 319.08 | G99: 311.82 | H99: 340.92 | I99: 348.18 | J99: 355.47 | K99: 340.9 | L99: 326.35 | M99: 12.64734
A100: 91 | B100: HCLTECH | C100: 972.9 | D100: 976.30 | E100: 967.60 | F100: 962.30 | G100: 953.60 | H100: 981.60 | I100: 990.30 | J100: 995.60 | K100: 985 | L100: 971 | M100: 23.95543
A101: 92 | B101: HDFCAMC | C101: 2946.8 | D101: 2956.63 | E101: 2926.37 | F101: 2905.93 | G101: 2875.67 | H101: 2977.07 | I101: 3007.33 | J101: 3027.77 | K101: 2986.9 | L101: 2936.2 | M101: 1.17904
A102: 93 | B102: HDFCBANK | C102: 1485.5 | D102: 1487.30 | E102: 1476.80 | F102: 1468.10 | G102: 1457.60 | H102: 1496.00 | I102: 1506.50 | J102: 1515.20 | K102: 1497.8 | L102: 1478.6 | M102: 39.22434
A103: 94 | B103: HDFCLIFE | C103: 717.75 | D103: 719.25 | E103: 714.85 | F103: 711.95 | G103: 707.55 | H103: 722.15 | I103: 726.55 | J103: 729.45 | K103: 723.65 | L103: 716.35 | M103: 18.93116
A104: 95 | B104: HAVELLS | C104: 998.5 | D104: 999.80 | E104: 992.00 | F104: 985.50 | G104: 977.70 | H104: 1006.30 | I104: 1014.10 | J104: 1020.60 | K104: 1007.6 | L104: 993.3 | M104: 9.89715
A105: 96 | B105: HEROMOTOCO | C105: 2928.35 | D105: 2948.12 | E105: 2901.23 | F105: 2874.12 | G105: 2827.23 | H105: 2975.23 | I105: 3022.12 | J105: 3049.23 | K105: 2995 | L105: 2921 | M105: 19.11546
A106: 97 | B106: HINDALCO | C106: 368.1 | D106: 370.82 | E106: 364.63 | F106: 361.17 | G106: 354.98 | H106: 374.28 | I106: 380.47 | J106: 383.93 | K106: 377 | L106: 367.35 | M106: 142.95574
A107: 98 | B107: HINDPETRO | C107: 300.25 | D107: 301.42 | E107: 297.68 | F107: 295.12 | G107: 291.38 | H107: 303.98 | I107: 307.72 | J107: 310.28 | K107: 305.15 | L107: 298.85 | M107: 23.7137
A108: 99 | B108: HINDUNILVR | C108: 2480.5 | D108: 2484.23 | E108: 2454.47 | F108: 2428.43 | G108: 2398.67 | H108: 2510.27 | I108: 2540.03 | J108: 2566.07 | K108: 2514 | L108: 2458.2 | M108: 10.35668
A109: 100 | B109: HINDZINC | C109: 331.45 | D109: 331.83 | E109: 327.17 | F109: 322.88 | G109: 318.22 | H109: 336.12 | I109: 340.78 | J109: 345.07 | K109: 336.5 | L109: 327.55 | M109: 10.78467
A110: 101 | B110: HUDCO | C110: 54.3 | D110: 54.72 | E110: 53.63 | F110: 52.97 | G110: 51.88 | H110: 55.38 | I110: 56.47 | J110: 57.13 | K110: 55.8 | L110: 54.05 | M110: 71.08831
A111: 102 | B111: HDFC | C111: 2497.2 | D111: 2509.07 | E111: 2481.13 | F111: 2465.07 | G111: 2437.13 | H111: 2525.13 | I111: 2553.07 | J111: 2569.13 | K111: 2537 | L111: 2493 | M111: 21.79551
A112: 103 | B112: ICICIBANK | C112: 624.7 | D112: 627.72 | E112: 620.43 | F112: 616.17 | G112: 608.88 | H112: 631.98 | I112: 639.27 | J112: 643.53 | K112: 635 | L112: 623.45 | M112: 109.50633
A113: 104 | B113: ICICIGI | C113: 1533.6 | D113: 1533.87 | E113: 1517.73 | F113: 1501.87 | G113: 1485.73 | H113: 1549.73 | I113: 1565.87 | J113: 1581.73 | K113: 1550 | L113: 1518 | M113: 4.26814
A114: 105 | B114: ICICIPRULI | C114: 605.35 | D114: 606.05 | E114: 598.60 | F114: 591.85 | G114: 584.40 | H114: 612.80 | I114: 620.25 | J114: 627.00 | K114: 613.5 | L114: 599.3 | M114: 30.56544
A115: 106 | B115: ISEC | C115: 634.45 | D115: 636.33 | E115: 623.67 | F115: 612.88 | G115: 600.22 | H115: 647.12 | I115: 659.78 | J115: 670.57 | K115: 649 | L115: 625.55 | M115: 4.05913
A116: 107 | B116: IDFCFIRSTB | C116: 57.75 | D116: 57.97 | E116: 57.33 | F116: 56.92 | G116: 56.28 | H116: 58.38 | I116: 59.02 | J116: 59.43 | K116: 58.6 | L116: 57.55 | M116: 238.25952
A117: 108 | B117: ITC | C117: 203.95 | D117: 204.47 | E117: 203.08 | F117: 202.22 | G117: 200.83 | H117: 205.33 | I117: 206.72 | J117: 207.58 | K117: 205.85 | L117: 203.6 | M117: 125.7521
A118: 109 | B118: IBULHSGFIN | C118: 268.15 | D118: 271.23 | E118: 263.47 | F118: 258.78 | G118: 251.02 | H118: 275.92 | I118: 283.68 | J118: 288.37 | K118: 279 | L118: 266.55 | M118: 180.09719
A119: 110 | B119: INDHOTEL | C119: 142.75 | D119: 143.10 | E119: 140.25 | F119: 137.75 | G119: 134.90 | H119: 145.60 | I119: 148.45 | J119: 150.95 | K119: 145.95 | L119: 140.6 | M119: 113.19951
A120: 111 | B120: IOC | C120: 112.9 | D120: 113.37 | E120: 112.23 | F120: 111.57 | G120: 110.43 | H120: 114.03 | I120: 115.17 | J120: 115.83 | K120: 114.5 | L120: 112.7 | M120: 54.65048
A121: 112 | B121: IRCTC | C121: 2078.25 | D121: 2087.22 | E121: 2063.03 | F121: 2047.82 | G121: 2023.63 | H121: 2102.43 | I121: 2126.62 | J121: 2141.83 | K121: 2111.4 | L121: 2072 | M121: 8.09624
A122: 113 | B122: IGL | C122: 518.55 | D122: 523.17 | E122: 512.98 | F122: 507.42 | G122: 497.23 | H122: 528.73 | I122: 538.92 | J122: 544.48 | K122: 533.35 | L122: 517.6 | M122: 20.99297
A123: 114 | B123: INDUSTOWER | C123: 242.7 | D123: 244.52 | E123: 239.03 | F123: 235.37 | G123: 229.88 | H123: 248.18 | I123: 253.67 | J123: 257.33 | K123: 250 | L123: 240.85 | M123: 89.09636
A124: 115 | B124: INDUSINDBK | C124: 999.55 | D124: 1004.62 | E124: 991.43 | F124: 983.32 | G124: 970.13 | H124: 1012.73 | I124: 1025.92 | J124: 1034.03 | K124: 1017.8 | L124: 996.5 | M124: 39.75716
A125: 116 | B125: NAUKRI | C125: 4782.75 | D125: 4821.88 | E125: 4720.87 | F125: 4658.98 | G125: 4557.97 | H125: 4883.77 | I125: 4984.78 | J125: 5046.67 | K125: 4922.9 | L125: 4760 | M125: 4.55304
A126: 117 | B126: INFY | C126: 1503.15 | D126: 1508.93 | E126: 1492.87 | F126: 1482.58 | G126: 1466.52 | H126: 1519.22 | I126: 1535.28 | J126: 1545.57 | K126: 1525 | L126: 1498.65 | M126: 55.29809
A127: 118 | B127: INDIGO | C127: 1708.85 | D127: 1718.18 | E127: 1692.77 | F127: 1676.68 | G127: 1651.27 | H127: 1734.27 | I127: 1759.68 | J127: 1775.77 | K127: 1743.6 | L127: 1702.1 | M127: 5.7475
A128: 119 | B128: IPCALAB | C128: 2000.1 | D128: 1998.22 | E128: 1977.78 | F128: 1955.47 | G128: 1935.03 | H128: 2020.53 | I128: 2040.97 | J128: 2063.28 | K128: 2018.65 | L128: 1975.9 | M128: 1.1051
A129: 120 | B129: JSWENERGY | C129: 161.4 | D129: 161.43 | E129: 158.37 | F129: 155.33 | G129: 152.27 | H129: 164.47 | I129: 167.53 | J129: 170.57 | K129: 164.5 | L129: 158.4 | M129: 30.3407
A130: 121 | B130: JSWSTEEL | C130: 665.5 | D130: 671.55 | E130: 658.10 | F130: 650.70 | G130: 637.25 | H130: 678.95 | I130: 692.40 | J130: 699.80 | K130: 685 | L130: 664.15 | M130: 60.59813
A131: 122 | B131: JINDALSTEL | C131: 385.2 | D131: 387.73 | E131: 380.67 | F131: 376.13 | G131: 369.07 | H131: 392.27 | I131: 399.33 | J131: 403.87 | K131: 394.8 | L131: 383.2 | M131: 51.67908
A132: 123 | B132: JUBLFOOD | C132: 3220.75 | D132: 3217.73 | E132: 3184.32 | F132: 3147.88 | G132: 3114.47 | H132: 3254.17 | I132: 3287.58 | J132: 3324.02 | K132: 3251.15 | L132: 3181.3 | M132: 3.56744
A133: 124 | B133: KOTAKBANK | C133: 1736.7 | D133: 1742.65 | E133: 1721.30 | F133: 1705.90 | G133: 1684.55 | H133: 1758.05 | I133: 1779.40 | J133: 1794.80 | K133: 1764 | L133: 1727.25 | M133: 76.02349
A134: 125 | B134: L&TFH | C134: 95.05 | D134: 94.53 | E134: 93.12 | F134: 91.18 | G134: 89.77 | H134: 96.47 | I134: 97.88 | J134: 99.82 | K134: 95.95 | L134: 92.6 | M134: 230.6866
A135: 126 | B135: LTTS | C135: 2825.2 | D135: 2833.40 | E135: 2811.80 | F135: 2798.40 | G135: 2776.80 | H135: 2846.80 | I135: 2868.40 | J135: 2881.80 | K135: 2855 | L135: 2820 | M135: 1.33258
A136: 127 | B136: LICHSGFIN | C136: 464.85 | D136: 468.00 | E136: 460.50 | F136: 456.15 | G136: 448.65 | H136: 472.35 | I136: 479.85 | J136: 484.20 | K136: 475.5 | L136: 463.65 | M136: 29.30478
A137: 128 | B137: LTI | C137: 4118.9 | D137: 4132.97 | E137: 4095.93 | F137: 4072.97 | G137: 4035.93 | H137: 4155.93 | I137: 4192.97 | J137: 4215.93 | K137: 4170 | L137: 4110 | M137: 1.39644
A138: 129 | B138: LT | C138: 1479.25 | D138: 1487.45 | E138: 1467.90 | F138: 1456.55 | G138: 1437.00 | H138: 1498.80 | I138: 1518.35 | J138: 1529.70 | K138: 1507 | L138: 1476.1 | M138: 18.18874
A139: 130 | B139: LUPIN | C139: 1154.45 | D139: 1159.92 | E139: 1146.03 | F139: 1137.62 | G139: 1123.73 | H139: 1168.33 | I139: 1182.22 | J139: 1190.63 | K139: 1173.8 | L139: 1151.5 | M139: 12.4435
A140: 131 | B140: MRF | C140: 81970.55 | D140: 82073.50 | E140: 81647.05 | F140: 81323.55 | G140: 80897.10 | H140: 82397.00 | I140: 82823.45 | J140: 83146.95 | K140: 82499.95 | L140: 81750 | M140: 0.04801
A141: 132 | B141: MGL | C141: 1168.25 | D141: 1175.90 | E141: 1157.35 | F141: 1146.45 | G141: 1127.90 | H141: 1186.80 | I141: 1205.35 | J141: 1216.25 | K141: 1194.45 | L141: 1165 | M141: 3.52331
A142: 133 | B142: M&MFIN | C142: 156.6 | D142: 157.33 | E142: 155.52 | F142: 154.43 | G142: 152.62 | H142: 158.42 | I142: 160.23 | J142: 161.32 | K142: 159.15 | L142: 156.25 | M142: 61.4526
A143: 134 | B143: M&M | C143: 781.95 | D143: 780.98 | E143: 775.97 | F143: 769.98 | G143: 764.97 | H143: 786.97 | I143: 791.98 | J143: 797.97 | K143: 786 | L143: 775 | M143: 27.00327
A144: 135 | B144: MANAPPURAM | C144: 161.8 | D144: 162.58 | E144: 160.27 | F144: 158.73 | G144: 156.42 | H144: 164.12 | I144: 166.43 | J144: 167.97 | K144: 164.9 | L144: 161.05 | M144: 36.62994
A145: 136 | B145: MARICO | C145: 515.5 | D145: 516.22 | E145: 512.93 | F145: 510.37 | G145: 507.08 | H145: 518.78 | I145: 522.07 | J145: 524.63 | K145: 519.5 | L145: 513.65 | M145: 10.42655
A146: 137 | B146: MARUTI | C146: 7432.7 | D146: 7383.92 | E146: 7288.83 | F146: 7144.97 | G146: 7049.88 | H146: 7527.78 | I146: 7622.87 | J146: 7766.73 | K146: 7479 | L146: 7240.05 | M146: 22.27399
A147: 138 | B147: MFSL | C147: 1015.55 | D147: 1011.85 | E147: 1003.70 | F147: 991.85 | G147: 983.70 | H147: 1023.70 | I147: 1031.85 | J147: 1043.70 | K147: 1020 | L147: 1000 | M147: 5.69191
A148: 139 | B148: MINDTREE | C148: 2480.65 | D148: 2487.70 | E148: 2468.40 | F148: 2456.15 | G148: 2436.85 | H148: 2499.95 | I148: 2519.25 | J148: 2531.50 | K148: 2507 | L148: 2475.45 | M148: 2.46387
A149: 140 | B149: MOTHERSUMI | C149: 237.95 | D149: 239.58 | E149: 235.47 | F149: 232.98 | G149: 228.87 | H149: 242.07 | I149: 246.18 | J149: 248.67 | K149: 243.7 | L149: 237.1 | M149: 107.99838
A150: 141 | B150: MPHASIS | C150: 1985.3 | D150: 2001.35 | E150: 1963.95 | F150: 1942.60 | G150: 1905.20 | H150: 2022.70 | I150: 2060.10 | J150: 2081.45 | K150: 2038.75 | L150: 1980 | M150: 2.52588
A151: 142 | B151: MUTHOOTFIN | C151: 1478.8 | D151: 1487.60 | E151: 1461.20 | F151: 1443.60 | G151: 1417.20 | H151: 1505.20 | I151: 1531.60 | J151: 1549.20 | K151: 1514 | L151: 1470 | M151: 8.08478
A152: 143 | B152: NATCOPHARM | C152: 1072.45 | D152: 1078.00 | E152: 1059.00 | F152: 1045.55 | G152: 1026.55 | H152: 1091.45 | I152: 1110.45 | J152: 1123.90 | K152: 1097 | L152: 1064.55 | M152: 3.60543
A153: 144 | B153: NMDC | C153: 178.8 | D153: 181.95 | E153: 174.90 | F153: 171.00 | G153: 163.95 | H153: 185.85 | I153: 192.90 | J153: 196.80 | K153: 189 | L153: 178.05 | M153: 384.83641
A154: 145 | B154: NTPC | C154: 117.25 | D154: 117.68 | E154: 116.52 | F154: 115.78 | G154: 114.62 | H154: 118.42 | I154: 119.58 | J154: 120.32 | K154: 118.85 | L154: 116.95 | M154: 125.90251
A155: 146 | B155: NATIONALUM | C155: 69 | D155: 69.55 | E155: 68.20 | F155: 67.40 | G155: 66.05 | H155: 70.35 | I155: 71.70 | J155: 72.50 | K155: 70.9 | L155: 68.75 | M155: 231.38982
A156: 147 | B156: NAVINFLUOR | C156: 3402.55 | D156: 3423.20 | E156: 3369.35 | F156: 3336.15 | G156: 3282.30 | H156: 3456.40 | I156: 3510.25 | J156: 3543.45 | K156: 3477.05 | L156: 3390 | M156: 1.75215
A157: 148 | B157: NESTLEIND | C157: 17414.8 | D157: 17448.27 | E157: 17336.53 | F157: 17258.27 | G157: 17146.53 | H157: 17526.53 | I157: 17638.27 | J157: 17716.53 | K157: 17560 | L157: 17370 | M157: 0.37084
A158: 149 | B158: NAM-INDIA | C158: 358.6 | D158: 357.53 | E158: 354.07 | F158: 349.53 | G158: 346.07 | H158: 362.07 | I158: 365.53 | J158: 370.07 | K158: 361 | L158: 353 | M158: 8.53784
A159: 150 | B159: OBEROIRLTY | C159: 614.85 | D159: 618.07 | E159: 609.13 | F159: 603.42 | G159: 594.48 | H159: 623.78 | I159: 632.72 | J159: 638.43 | K159: 627 | L159: 612.35 | M159: 2.09125
A160: 151 | B160: ONGC | C160: 123.35 | D160: 123.17 | E160: 121.93 | F160: 120.52 | G160: 119.28 | H160: 124.58 | I160: 125.82 | J160: 127.23 | K160: 124.4 | L160: 121.75 | M160: 219.7887
A161: 152 | B161: OIL | C161: 152.6 | D161: 152.87 | E161: 150.73 | F161: 148.87 | G161: 146.73 | H161: 154.73 | I161: 156.87 | J161: 158.73 | K161: 155 | L161: 151 | M161: 23.37979
A162: 153 | B162: OFSS | C162: 3584.25 | D162: 3576.15 | E162: 3549.30 | F162: 3514.35 | G162: 3487.50 | H162: 3611.10 | I162: 3637.95 | J162: 3672.90 | K162: 3603 | L162: 3541.2 | M162: 0.5202
A163: 154 | B163: PIIND | C163: 2849.35 | D163: 2832.78 | E163: 2779.57 | F163: 2709.78 | G163: 2656.57 | H163: 2902.57 | I163: 2955.78 | J163: 3025.57 | K163: 2886 | L163: 2763 | M163: 2.8443
A164: 155 | B164: PAGEIND | C164: 29436.45 | D164: 29528.65 | E164: 29258.80 | F164: 29081.15 | G164: 28811.30 | H164: 29706.30 | I164: 29976.15 | J164: 30153.80 | K164: 29798.5 | L164: 29351 | M164: 0.24733
A165: 156 | B165: PETRONET | C165: 231.1 | D165: 231.25 | E165: 230.15 | F165: 229.20 | G165: 228.10 | H165: 232.20 | I165: 233.30 | J165: 234.25 | K165: 232.35 | L165: 230.3 | M165: 46.07065
A166: 157 | B166: PFIZER | C166: 5587.95 | D166: 5572.65 | E166: 5495.30 | F166: 5402.65 | G166: 5325.30 | H166: 5665.30 | I166: 5742.65 | J166: 5835.30 | K166: 5650 | L166: 5480 | M166: 1.04864
A167: 158 | B167: PIDILITIND | C167: 2133.15 | D167: 2138.67 | E167: 2121.33 | F167: 2109.52 | G167: 2092.18 | H167: 2150.48 | I167: 2167.82 | J167: 2179.63 | K167: 2156 | L167: 2126.85 | M167: 1.67479
A168: 159 | B168: PEL | C168: 2432.55 | D168: 2453.18 | E168: 2400.62 | F168: 2368.68 | G168: 2316.12 | H168: 2485.12 | I168: 2537.68 | J168: 2569.62 | K168: 2505.75 | L168: 2421.25 | M168: 19.29439
A169: 160 | B169: POLYCAB | C169: 1996.1 | D169: 1981.53 | E169: 1954.77 | F169: 1913.43 | G169: 1886.67 | H169: 2022.87 | I169: 2049.63 | J169: 2090.97 | K169: 2008.3 | L169: 1940.2 | M169: 2.2176
A170: 161 | B170: PFC | C170: 123.15 | D170: 124.12 | E170: 121.98 | F170: 120.82 | G170: 118.68 | H170: 125.28 | I170: 127.42 | J170: 128.58 | K170: 126.25 | L170: 122.95 | M170: 60.92579
A171: 162 | B171: POWERGRID | C171: 232.25 | D171: 233.42 | E171: 230.83 | F171: 229.42 | G171: 226.83 | H171: 234.83 | I171: 237.42 | J171: 238.83 | K171: 236 | L171: 232 | M171: 60.30649
A172: 163 | B172: PRESTIGE | C172: 286.15 | D172: 287.57 | E172: 283.63 | F172: 281.12 | G172: 277.18 | H172: 290.08 | I172: 294.02 | J172: 296.53 | K172: 291.5 | L172: 285.05 | M172: 2.68518
A173: 164 | B173: PGHH | C173: 13566.2 | D173: 13493.73 | E173: 13312.47 | F173: 13058.73 | G173: 12877.47 | H173: 13747.47 | I173: 13928.73 | J173: 14182.47 | K173: 13675 | L173: 13240 | M173: 0.06963
A174: 165 | B174: PNB | C174: 42.25 | D174: 42.17 | E174: 41.38 | F174: 40.52 | G174: 39.73 | H174: 43.03 | I174: 43.82 | J174: 44.68 | K174: 42.95 | L174: 41.3 | M174: 2057.72277
A175: 166 | B175: RBLBANK | C175: 208.35 | D175: 209.38 | E175: 206.97 | F175: 205.58 | G175: 203.17 | H175: 210.77 | I175: 213.18 | J175: 214.57 | K175: 211.8 | L175: 208 | M175: 64.62646
A176: 167 | B176: RECLTD | C176: 144.95 | D176: 145.17 | E176: 143.93 | F176: 142.92 | G176: 141.68 | H176: 146.18 | I176: 147.42 | J176: 148.43 | K176: 146.4 | L176: 144.15 | M176: 30.58094
A177: 168 | B177: RAJESHEXPO | C177: 585.25 | D177: 587.33 | E177: 580.92 | F177: 576.58 | G177: 570.17 | H177: 591.67 | I177: 598.08 | J177: 602.42 | K177: 593.75 | L177: 583 | M177: 2.26584
A178: 169 | B178: RELIANCE | C178: 2205.35 | D178: 2219.22 | E178: 2187.83 | F178: 2170.32 | G178: 2138.93 | H178: 2236.73 | I178: 2268.12 | J178: 2285.63 | K178: 2250.6 | L178: 2201.7 | M178: 76.85796
A179: 170 | B179: SBICARD | C179: 933.7 | D179: 944.90 | E179: 919.80 | F179: 905.90 | G179: 880.80 | H179: 958.80 | I179: 983.90 | J179: 997.80 | K179: 970 | L179: 931 | M179: 99.3442
A180: 171 | B180: SBILIFE | C180: 1000.55 | D180: 1004.87 | E180: 994.68 | F180: 988.82 | G180: 978.63 | H180: 1010.73 | I180: 1020.92 | J180: 1026.78 | K180: 1015.05 | L180: 999 | M180: 18.02617
A181: 172 | B181: SRF | C181: 6904.75 | D181: 6943.92 | E181: 6840.83 | F181: 6776.92 | G181: 6673.83 | H181: 7007.83 | I181: 7110.92 | J181: 7174.83 | K181: 7047 | L181: 6880 | M181: 0.79553
A182: 173 | B182: SANOFI | C182: 7722.1 | D182: 7704.03 | E182: 7618.07 | F182: 7514.03 | G182: 7428.07 | H182: 7808.07 | I182: 7894.03 | J182: 7998.07 | K182: 7790 | L182: 7600 | M182: 0.1203
A183: 174 | B183: SHREECEM | C183: 28867.2 | D183: 28977.47 | E183: 28639.53 | F183: 28411.87 | G183: 28073.93 | H183: 29205.13 | I183: 29543.07 | J183: 29770.73 | K183: 29315.4 | L183: 28749.8 | M183: 0.24623
A184: 175 | B184: SRTRANSFIN | C184: 1366.8 | D184: 1371.32 | E184: 1356.63 | F184: 1346.47 | G184: 1331.78 | H184: 1381.48 | I184: 1396.17 | J184: 1406.33 | K184: 1386 | L184: 1361.15 | M184: 9.84983
A185: 176 | B185: SIEMENS | C185: 2028.25 | D185: 2022.83 | E185: 1997.67 | F185: 1967.08 | G185: 1941.92 | H185: 2053.42 | I185: 2078.58 | J185: 2109.17 | K185: 2048 | L185: 1992.25 | M185: 3.90929
A186: 177 | B186: SBIN | C186: 418.85 | D186: 419.53 | E186: 414.32 | F186: 409.78 | G186: 404.57 | H186: 424.07 | I186: 429.28 | J186: 433.82 | K186: 424.75 | L186: 415 | M186: 275.64829
A187: 178 | B187: SAIL | C187: 124.1 | D187: 125.68 | E187: 122.07 | F187: 120.03 | G187: 116.42 | H187: 127.72 | I187: 131.33 | J187: 133.37 | K187: 129.3 | L187: 123.65 | M187: 416.82651
A188: 179 | B188: SUNPHARMA | C188: 665.25 | D188: 667.28 | E188: 662.22 | F188: 659.18 | G188: 654.12 | H188: 670.32 | I188: 675.38 | J188: 678.42 | K188: 672.35 | L188: 664.25 | M188: 26.31031
A189: 180 | B189: SUNTV | C189: 538.45 | D189: 544.42 | E189: 530.03 | F189: 521.62 | G189: 507.23 | H189: 552.83 | I189: 567.22 | J189: 575.63 | K189: 558.8 | L189: 536 | M189: 18.61306
A190: 181 | B190: SYNGENE | C190: 577.2 | D190: 581.27 | E190: 571.83 | F190: 566.47 | G190: 557.03 | H190: 586.63 | I190: 596.07 | J190: 601.43 | K190: 590.7 | L190: 575.9 | M190: 3.15052
A191: 182 | B191: TVSMOTOR | C191: 619.55 | D191: 621.67 | E191: 615.33 | F191: 611.12 | G191: 604.78 | H191: 625.88 | I191: 632.22 | J191: 636.43 | K191: 628 | L191: 617.45 | M191: 13.5123
A192: 183 | B192: TATACHEM | C192: 714.9 | D192: 719.27 | E192: 708.78 | F192: 702.67 | G192: 692.18 | H192: 725.38 | I192: 735.87 | J192: 741.98 | K192: 729.75 | L192: 713.15 | M192: 18.13984
A193: 184 | B193: TCS | C193: 3261.4 | D193: 3282.27 | E193: 3235.53 | F193: 3209.67 | G193: 3162.93 | H193: 3308.13 | I193: 3354.87 | J193: 3380.73 | K193: 3329 | L193: 3256.4 | M193: 14.67104
A194: 185 | B194: TATACONSUM | C194: 757.85 | D194: 758.23 | E194: 751.47 | F194: 745.08 | G194: 738.32 | H194: 764.62 | I194: 771.38 | J194: 777.77 | K194: 765 | L194: 751.85 | M194: 29.5236
A195: 186 | B195: TATAMOTORS | C195: 335.25 | D195: 337.60 | E195: 331.95 | F195: 328.65 | G195: 323.00 | H195: 340.90 | I195: 346.55 | J195: 349.85 | K195: 343.25 | L195: 334.3 | M195: 257.41628
A196: 187 | B196: TATAPOWER | C196: 120.75 | D196: 121.50 | E196: 119.80 | F196: 118.85 | G196: 117.15 | H196: 122.45 | I196: 124.15 | J196: 125.10 | K196: 123.2 | L196: 120.55 | M196: 293.38636
A197: 188 | B197: TATASTEEL | C197: 1100.1 | D197: 1108.50 | E197: 1089.45 | F197: 1078.80 | G197: 1059.75 | H197: 1119.15 | I197: 1138.20 | J197: 1148.85 | K197: 1127.55 | L197: 1097.85 | M197: 78.06336
A198: 189 | B198: TECHM | C198: 1056.45 | D198: 1052.40 | E198: 1042.50 | F198: 1028.55 | G198: 1018.65 | H198: 1066.35 | I198: 1076.25 | J198: 1090.20 | K198: 1062.3 | L198: 1038.45 | M198: 41.30539
A199: 190 | B199: RAMCOCEM | C199: 1024.8 | D199: 1021.93 | E199: 1011.87 | F199: 998.93 | G199: 988.87 | H199: 1034.87 | I199: 1044.93 | J199: 1057.87 | K199: 1032 | L199: 1009 | M199: 2.96987
A200: 191 | B200: TITAN | C200: 1782.55 | D200: 1774.53 | E200: 1763.07 | F200: 1743.58 | G200: 1732.12 | H200: 1794.02 | I200: 1805.48 | J200: 1824.97 | K200: 1786 | L200: 1755.05 | M200: 16.08518
A201: 192 | B201: TORNTPHARM | C201: 2903.7 | D201: 2914.78 | E201: 2888.87 | F201: 2874.03 | G201: 2848.12 | H201: 2929.62 | I201: 2955.53 | J201: 2970.37 | K201: 2940.7 | L201: 2899.95 | M201: 0.84925
A202: 193 | B202: TORNTPOWER | C202: 457.5 | D202: 457.02 | E202: 453.53 | F202: 449.57 | G202: 446.08 | H202: 460.98 | I202: 464.47 | J202: 468.43 | K202: 460.5 | L202: 453.05 | M202: 9.40388
A203: 194 | B203: TRENT | C203: 857.5 | D203: 858.08 | E203: 848.42 | F203: 839.33 | G203: 829.67 | H203: 867.17 | I203: 876.83 | J203: 885.92 | K203: 867.75 | L203: 849 | M203: 4.37812
A204: 195 | B204: UPL | C204: 804 | D204: 802.68 | E204: 794.42 | F204: 784.83 | G204: 776.57 | H204: 812.27 | I204: 820.53 | J204: 830.12 | K204: 810.95 | L204: 793.1 | M204: 54.98823
A205: 196 | B205: ULTRACEMCO | C205: 6903.35 | D205: 6879.68 | E205: 6805.67 | F205: 6707.98 | G205: 6633.97 | H205: 6977.37 | I205: 7051.38 | J205: 7149.07 | K205: 6953.7 | L205: 6782 | M205: 4.38444
... 29 more rows

Sheet MidCap Intra
L5: Back To Main Page
A6: FOR INTRA DAY TRADING | K6: =Main!B10 -> 2021-06-24
A9: Sr.no | B9: Scrip | C9: CLOSE RATE | D9: Pivot Point | E9: Supports | H9: Resistances
C10: Point | E10: S1 | F10: S2 | G10: S3 | H10: R1 | I10: R2 | J10: R3 | K10: HIGH | L10: LOW | M10: Total Trade Quanity in Lakhs
A11: 1 | B11: 3MINDIA | C11: 25495.55 | D11: 25519.02 | E11: 25312.53 | F11: 25129.52 | G11: 24923.03 | H11: 25702.03 | I11: 25908.52 | J11: 26091.53 | K11: 25725.5 | L11: 25336 | M11: 0.01329
A12: 2 | B12: ABB | C12: 1806.55 | D12: 1798.63 | E12: 1746.17 | F12: 1685.78 | G12: 1633.32 | H12: 1859.02 | I12: 1911.48 | J12: 1971.87 | K12: 1851.1 | L12: 1738.25 | M12: 7.47874
A13: 3 | B13: POWERINDIA | C13: 1818.35 | D13: 1836.43 | E13: 1796.92 | F13: 1775.48 | G13: 1735.97 | H13: 1857.87 | I13: 1897.38 | J13: 1918.82 | K13: 1875.95 | L13: 1815 | M13: 0.64768
A14: 4 | B14: ACC | C14: 2030.55 | D14: 2038.48 | E14: 2017.07 | F14: 2003.58 | G14: 1982.17 | H14: 2051.97 | I14: 2073.38 | J14: 2086.87 | K14: 2059.9 | L14: 2025 | M14: 2.68921
A15: 5 | B15: AIAENG | C15: 2030 | D15: 2024.80 | E15: 1996.20 | F15: 1962.40 | G15: 1933.80 | H15: 2058.60 | I15: 2087.20 | J15: 2121.00 | K15: 2053.4 | L15: 1991 | M15: 0.30135
A16: 6 | B16: APLAPOLLO | C16: 1588.5 | D16: 1594.83 | E16: 1566.67 | F16: 1544.83 | G16: 1516.67 | H16: 1616.67 | I16: 1644.83 | J16: 1666.67 | K16: 1623 | L16: 1573 | M16: 5.92502
A17: 7 | B17: AUBANK | C17: 1017.15 | D17: 1026.27 | E17: 1005.38 | F17: 993.62 | G17: 972.73 | H17: 1038.03 | I17: 1058.92 | J17: 1070.68 | K17: 1047.15 | L17: 1014.5 | M17: 6.10559
A18: 8 | B18: AARTIDRUGS | C18: 711.2 | D18: 714.28 | E18: 706.92 | F18: 702.63 | G18: 695.27 | H18: 718.57 | I18: 725.93 | J18: 730.22 | K18: 721.65 | L18: 710 | M18: 2.14954
A19: 9 | B19: AARTIIND | C19: 864.4 | D19: 870.87 | E19: 855.13 | F19: 845.87 | G19: 830.13 | H19: 880.13 | I19: 895.87 | J19: 905.13 | K19: 886.6 | L19: 861.6 | M19: 8.41152
A20: 10 | B20: AAVAS | C20: 2507.75 | D20: 2527.60 | E20: 2480.15 | F20: 2452.55 | G20: 2405.10 | H20: 2555.20 | I20: 2602.65 | J20: 2630.25 | K20: 2575.05 | L20: 2500 | M20: 0.25968
A21: 11 | B21: ABBOTINDIA | C21: 16427.6 | D21: 16523.87 | E21: 16303.73 | F21: 16179.87 | G21: 15959.73 | H21: 16647.73 | I21: 16867.87 | J21: 16991.73 | K21: 16744 | L21: 16400 | M21: 0.10592
A22: 12 | B22: ADANIENT | C22: 1504.75 | D22: 1518.67 | E22: 1467.38 | F22: 1430.02 | G22: 1378.73 | H22: 1556.03 | I22: 1607.32 | J22: 1644.68 | K22: 1569.95 | L22: 1481.3 | M22: 126.79703
A23: 13 | B23: ADANIGREEN | C23: 1166.15 | D23: 1159.12 | E23: 1122.03 | F23: 1077.92 | G23: 1040.83 | H23: 1203.23 | I23: 1240.32 | J23: 1284.43 | K23: 1196.2 | L23: 1115 | M23: 12.21164
A24: 14 | B24: ADANIPORTS | C24: 718.7 | D24: 730.40 | E24: 703.80 | F24: 688.90 | G24: 662.30 | H24: 745.30 | I24: 771.90 | J24: 786.80 | K24: 757 | L24: 715.5 | M24: 311.68761
A25: 15 | B25: ATGL | C25: 1318.05 | D25: 1350.70 | E25: 1285.40 | F25: 1252.75 | G25: 1187.45 | H25: 1383.35 | I25: 1448.65 | J25: 1481.30 | K25: 1416 | L25: 1318.05 | M25: 5.79237
A26: 16 | B26: ADANITRANS | C26: 1321.45 | D26: 1343.12 | E26: 1277.23 | F26: 1233.02 | G26: 1167.13 | H26: 1387.33 | I26: 1453.22 | J26: 1497.43 | K26: 1409 | L26: 1298.9 | M26: 3.43449
A27: 17 | B27: ABCAPITAL | C27: 119.55 | D27: 119.97 | E27: 118.68 | F27: 117.82 | G27: 116.53 | H27: 120.83 | I27: 122.12 | J27: 122.98 | K27: 121.25 | L27: 119.1 | M27: 14.08249
A28: 18 | B28: ABFRL | C28: 212.2 | D28: 212.33 | E28: 209.12 | F28: 206.03 | G28: 202.82 | H28: 215.42 | I28: 218.63 | J28: 221.72 | K28: 215.55 | L28: 209.25 | M28: 32.74778
A29: 19 | B29: ADVENZYMES | C29: 411.95 | D29: 415.82 | E29: 406.63 | F29: 401.32 | G29: 392.13 | H29: 421.13 | I29: 430.32 | J29: 435.63 | K29: 425 | L29: 410.5 | M29: 2.01616
A30: 20 | B30: AEGISCHEM | C30: 349.7 | D30: 353.25 | E30: 344.45 | F30: 339.20 | G30: 330.40 | H30: 358.50 | I30: 367.30 | J30: 372.55 | K30: 362.05 | L30: 348 | M30: 3.90531
A31: 21 | B31: AFFLE | C31: 4597.6 | D31: 4605.87 | E31: 4536.73 | F31: 4475.87 | G31: 4406.73 | H31: 4666.73 | I31: 4735.87 | J31: 4796.73 | K31: 4675 | L31: 4545 | M31: 0.30266
A32: 22 | B32: AJANTPHARM | C32: 1939.8 | D32: 1949.80 | E32: 1926.00 | F32: 1912.20 | G32: 1888.40 | H32: 1963.60 | I32: 1987.40 | J32: 2001.20 | K32: 1973.6 | L32: 1936 | M32: 0.2823
A33: 23 | B33: AKZOINDIA | C33: 2325.55 | D33: 2316.35 | E33: 2297.20 | F33: 2268.85 | G33: 2249.70 | H33: 2344.70 | I33: 2363.85 | J33: 2392.20 | K33: 2335.5 | L33: 2288 | M33: 0.17918
A34: 24 | B34: ALEMBICLTD | C34: 128.5 | D34: 129.58 | E34: 126.97 | F34: 125.43 | G34: 122.82 | H34: 131.12 | I34: 133.73 | J34: 135.27 | K34: 132.2 | L34: 128.05 | M34: 4.64984
A35: 25 | B35: APLLTD | C35: 980.1 | D35: 987.55 | E35: 970.10 | F35: 960.10 | G35: 942.65 | H35: 997.55 | I35: 1015.00 | J35: 1025.00 | K35: 1005 | L35: 977.55 | M35: 1.83011
A36: 26 | B36: ALKEM | C36: 3109.95 | D36: 3119.28 | E36: 3083.77 | F36: 3057.58 | G36: 3022.07 | H36: 3145.47 | I36: 3180.98 | J36: 3207.17 | K36: 3154.8 | L36: 3093.1 | M36: 0.65488
A37: 27 | B37: ALKYLAMINE | C37: 3551.6 | D37: 3570.00 | E37: 3511.60 | F37: 3471.60 | G37: 3413.20 | H37: 3610.00 | I37: 3668.40 | J37: 3708.40 | K37: 3628.4 | L37: 3530 | M37: 0.32828
A38: 28 | B38: ALOKINDS | C38: 27.7 | D38: 27.85 | E38: 27.30 | F38: 26.90 | G38: 26.35 | H38: 28.25 | I38: 28.80 | J38: 29.20 | K38: 28.4 | L38: 27.45 | M38: 158.65555
A39: 29 | B39: AMARAJABAT | C39: 750 | D39: 751.08 | E39: 746.17 | F39: 742.33 | G39: 737.42 | H39: 754.92 | I39: 759.83 | J39: 763.67 | K39: 756 | L39: 747.25 | M39: 8.11408
A40: 30 | B40: AMBER | C40: 2910.95 | D40: 2912.83 | E40: 2850.67 | F40: 2790.38 | G40: 2728.22 | H40: 2973.12 | I40: 3035.28 | J40: 3095.57 | K40: 2975 | L40: 2852.55 | M40: 6.28736
A41: 31 | B41: AMBUJACEM | C41: 345.15 | D41: 345.72 | E41: 342.93 | F41: 340.72 | G41: 337.93 | H41: 347.93 | I41: 350.72 | J41: 352.93 | K41: 348.5 | L41: 343.5 | M41: 16.90045
A42: 32 | B42: APOLLOHOSP | C42: 3244.8 | D42: 3243.92 | E42: 3212.88 | F42: 3180.97 | G42: 3149.93 | H42: 3275.83 | I42: 3306.87 | J42: 3338.78 | K42: 3274.95 | L42: 3212 | M42: 5.04942
A43: 33 | B43: APOLLOTYRE | C43: 224.15 | D43: 226.45 | E43: 221.25 | F43: 218.35 | G43: 213.15 | H43: 229.35 | I43: 234.55 | J43: 237.45 | K43: 231.65 | L43: 223.55 | M43: 56.42837
A44: 34 | B44: ASHOKLEY | C44: 119.1 | D44: 119.05 | E44: 117.90 | F44: 116.70 | G44: 115.55 | H44: 120.25 | I44: 121.40 | J44: 122.60 | K44: 120.2 | L44: 117.85 | M44: 104.68704
A45: 35 | B45: ASHOKA | C45: 101.65 | D45: 101.62 | E45: 99.23 | F45: 96.82 | G45: 94.43 | H45: 104.03 | I45: 106.42 | J45: 108.83 | K45: 104 | L45: 99.2 | M45: 66.19664
A46: 36 | B46: ASIANPAINT | C46: 2987.35 | D46: 3000.28 | E46: 2970.57 | F46: 2953.78 | G46: 2924.07 | H46: 3017.07 | I46: 3046.78 | J46: 3063.57 | K46: 3030 | L46: 2983.5 | M46: 10.09007
A47: 37 | B47: ASTERDM | C47: 153.35 | D47: 153.07 | E47: 151.33 | F47: 149.32 | G47: 147.58 | H47: 155.08 | I47: 156.82 | J47: 158.83 | K47: 154.8 | L47: 151.05 | M47: 14.45978
A48: 38 | B48: ASTRAZEN | C48: 3667.1 | D48: 3677.65 | E48: 3641.45 | F48: 3615.80 | G48: 3579.60 | H48: 3703.30 | I48: 3739.50 | J48: 3765.15 | K48: 3713.85 | L48: 3652 | M48: 0.13755
A49: 39 | B49: ASTRAL | C49: 1979.35 | D49: 1986.62 | E49: 1968.08 | F49: 1956.82 | G49: 1938.28 | H49: 1997.88 | I49: 2016.42 | J49: 2027.68 | K49: 2005.15 | L49: 1975.35 | M49: 2.15505
A50: 40 | B50: ATUL | C50: 8790.4 | D50: 8825.80 | E50: 8726.60 | F50: 8662.80 | G50: 8563.60 | H50: 8889.60 | I50: 8988.80 | J50: 9052.60 | K50: 8925 | L50: 8762 | M50: 0.88188
A51: 41 | B51: AUROPHARMA | C51: 944.4 | D51: 947.22 | E51: 937.43 | F51: 930.47 | G51: 920.68 | H51: 954.18 | I51: 963.97 | J51: 970.93 | K51: 957 | L51: 940.25 | M51: 13.75688
A52: 42 | B52: AVANTIFEED | C52: 560.05 | D52: 561.35 | E52: 546.70 | F52: 533.35 | G52: 518.70 | H52: 574.70 | I52: 589.35 | J52: 602.70 | K52: 576 | L52: 548 | M52: 13.14077
A53: 43 | B53: DMART | C53: 3310.9 | D53: 3337.28 | E53: 3274.57 | F53: 3238.23 | G53: 3175.52 | H53: 3373.62 | I53: 3436.33 | J53: 3472.67 | K53: 3400 | L53: 3300.95 | M53: 2.4416
A54: 44 | B54: AXISBANK | C54: 732.35 | D54: 735.63 | E54: 727.52 | F54: 722.68 | G54: 714.57 | H54: 740.47 | I54: 748.58 | J54: 753.42 | K54: 743.75 | L54: 730.8 | M54: 61.54147
A55: 45 | B55: BASF | C55: 2597.15 | D55: 2607.27 | E55: 2569.88 | F55: 2542.62 | G55: 2505.23 | H55: 2634.53 | I55: 2671.92 | J55: 2699.18 | K55: 2644.65 | L55: 2580 | M55: 0.22865
A56: 46 | B56: BEML | C56: 1341.9 | D56: 1359.07 | E56: 1320.88 | F56: 1299.87 | G56: 1261.68 | H56: 1380.08 | I56: 1418.27 | J56: 1439.28 | K56: 1397.25 | L56: 1338.05 | M56: 6.3063
A57: 47 | B57: BSE | C57: 889.35 | D57: 892.63 | E57: 881.12 | F57: 872.88 | G57: 861.37 | H57: 900.87 | I57: 912.38 | J57: 920.62 | K57: 904.15 | L57: 884.4 | M57: 2.17102
A58: 48 | B58: BAJAJ-AUTO | C58: 4198.6 | D58: 4216.50 | E58: 4173.35 | F58: 4148.10 | G58: 4104.95 | H58: 4241.75 | I58: 4284.90 | J58: 4310.15 | K58: 4259.65 | L58: 4191.25 | M58: 4.18053
A59: 49 | B59: BAJAJCON | C59: 290.85 | D59: 292.30 | E59: 288.65 | F59: 286.45 | G59: 282.80 | H59: 294.50 | I59: 298.15 | J59: 300.35 | K59: 295.95 | L59: 290.1 | M59: 3.81775
A60: 50 | B60: BAJAJELEC | C60: 1040.35 | D60: 1035.45 | E60: 1025.90 | F60: 1011.45 | G60: 1001.90 | H60: 1049.90 | I60: 1059.45 | J60: 1073.90 | K60: 1045 | L60: 1021 | M60: 1.22559
A61: 51 | B61: BAJFINANCE | C61: 6015.6 | D61: 6043.87 | E61: 5972.73 | F61: 5929.87 | G61: 5858.73 | H61: 6086.73 | I61: 6157.87 | J61: 6200.73 | K61: 6115 | L61: 6001 | M61: 12.38215
A62: 52 | B62: BAJAJFINSV | C62: 12282.25 | D62: 12254.08 | E62: 12108.17 | F62: 11934.08 | G62: 11788.17 | H62: 12428.17 | I62: 12574.08 | J62: 12748.17 | K62: 12400 | L62: 12080 | M62: 3.78555
A63: 53 | B63: BAJAJHLDNG | C63: 3600.4 | D63: 3614.03 | E63: 3533.12 | F63: 3465.83 | G63: 3384.92 | H63: 3681.32 | I63: 3762.23 | J63: 3829.52 | K63: 3694.95 | L63: 3546.75 | M63: 1.16052
A64: 54 | B64: BALKRISIND | C64: 2195.9 | D64: 2201.18 | E64: 2181.92 | F64: 2167.93 | G64: 2148.67 | H64: 2215.17 | I64: 2234.43 | J64: 2248.42 | K64: 2220.45 | L64: 2187.2 | M64: 7.35128
A65: 55 | B65: BALMLAWRIE | C65: 143.3 | D65: 143.73 | E65: 141.02 | F65: 138.73 | G65: 136.02 | H65: 146.02 | I65: 148.73 | J65: 151.02 | K65: 146.45 | L65: 141.45 | M65: 15.37945
A66: 56 | B66: BALRAMCHIN | C66: 326.9 | D66: 328.43 | E66: 323.57 | F66: 320.23 | G66: 315.37 | H66: 331.77 | I66: 336.63 | J66: 339.97 | K66: 333.3 | L66: 325.1 | M66: 6.64081
A67: 57 | B67: BANDHANBNK | C67: 333.15 | D67: 336.52 | E67: 328.48 | F67: 323.82 | G67: 315.78 | H67: 341.18 | I67: 349.22 | J67: 353.88 | K67: 344.55 | L67: 331.85 | M67: 49.98318
A68: 58 | B68: BANKBARODA | C68: 82.3 | D68: 82.40 | E68: 81.15 | F68: 80.00 | G68: 78.75 | H68: 83.55 | I68: 84.80 | J68: 85.95 | K68: 83.65 | L68: 81.25 | M68: 483.68946
A69: 59 | B69: BANKINDIA | C69: 78.3 | D69: 78.62 | E69: 77.78 | F69: 77.27 | G69: 76.43 | H69: 79.13 | I69: 79.97 | J69: 80.48 | K69: 79.45 | L69: 78.1 | M69: 32.09585
A70: 60 | B70: MAHABANK | C70: 25.1 | D70: 25.37 | E70: 24.63 | F70: 24.17 | G70: 23.43 | H70: 25.83 | I70: 26.57 | J70: 27.03 | K70: 26.1 | L70: 24.9 | M70: 89.20516
A71: 61 | B71: BATAINDIA | C71: 1661.95 | D71: 1663.07 | E71: 1650.23 | F71: 1638.52 | G71: 1625.68 | H71: 1674.78 | I71: 1687.62 | J71: 1699.33 | K71: 1675.9 | L71: 1651.35 | M71: 2.23164
A72: 62 | B72: BAYERCROP | C72: 5550.75 | D72: 5551.85 | E72: 5508.90 | F72: 5467.05 | G72: 5424.10 | H72: 5593.70 | I72: 5636.65 | J72: 5678.50 | K72: 5594.8 | L72: 5510 | M72: 0.14064
A73: 63 | B73: BERGEPAINT | C73: 806.1 | D73: 809.23 | E73: 800.62 | F73: 795.13 | G73: 786.52 | H73: 814.72 | I73: 823.33 | J73: 828.82 | K73: 817.85 | L73: 803.75 | M73: 4.84591
A74: 64 | B74: BDL | C74: 356.15 | D74: 354.77 | E74: 346.73 | F74: 337.32 | G74: 329.28 | H74: 364.18 | I74: 372.22 | J74: 381.63 | K74: 362.8 | L74: 345.35 | M74: 6.58948
A75: 65 | B75: BEL | C75: 168.5 | D75: 163.67 | E75: 157.33 | F75: 146.17 | G75: 139.83 | H75: 174.83 | I75: 181.17 | J75: 192.33 | K75: 170 | L75: 152.5 | M75: 1212.97926
A76: 66 | B76: BHARATFORG | C76: 730.85 | D76: 737.28 | E76: 723.07 | F76: 715.28 | G76: 701.07 | H76: 745.07 | I76: 759.28 | J76: 767.07 | K76: 751.5 | L76: 729.5 | M76: 20.24549
A77: 67 | B77: BHEL | C77: 66.05 | D77: 66.60 | E77: 65.25 | F77: 64.45 | G77: 63.10 | H77: 67.40 | I77: 68.75 | J77: 69.55 | K77: 67.95 | L77: 65.8 | M77: 565.73877
A78: 68 | B78: BPCL | C78: 469.6 | D78: 471.25 | E78: 467.50 | F78: 465.40 | G78: 461.65 | H78: 473.35 | I78: 477.10 | J78: 479.20 | K78: 475 | L78: 469.15 | M78: 24.63779
A79: 69 | B79: BHARATRAS | C79: 12627.7 | D79: 12724.25 | E79: 12503.50 | F79: 12379.30 | G79: 12158.55 | H79: 12848.45 | I79: 13069.20 | J79: 13193.40 | K79: 12945 | L79: 12600.05 | M79: 0.02603
A80: 70 | B80: BHARTIARTL | C80: 534.05 | D80: 535.32 | E80: 531.43 | F80: 528.82 | G80: 524.93 | H80: 537.93 | I80: 541.82 | J80: 544.43 | K80: 539.2 | L80: 532.7 | M80: 46.79563
A81: 71 | B81: BIOCON | C81: 397.55 | D81: 399.70 | E81: 394.45 | F81: 391.35 | G81: 386.10 | H81: 402.80 | I81: 408.05 | J81: 411.15 | K81: 404.95 | L81: 396.6 | M81: 18.24603
A82: 72 | B82: BIRLACORPN | C82: 1182.25 | D82: 1183.07 | E82: 1168.13 | F82: 1154.02 | G82: 1139.08 | H82: 1197.18 | I82: 1212.12 | J82: 1226.23 | K82: 1198 | L82: 1168.95 | M82: 1.59224
A83: 73 | B83: BSOFT | C83: 387.8 | D83: 388.35 | E83: 383.00 | F83: 378.20 | G83: 372.85 | H83: 393.15 | I83: 398.50 | J83: 403.30 | K83: 393.7 | L83: 383.55 | M83: 23.15832
A84: 74 | B84: BLISSGVS | C84: 109.95 | D84: 110.07 | E84: 108.63 | F84: 107.32 | G84: 105.88 | H84: 111.38 | I84: 112.82 | J84: 114.13 | K84: 111.5 | L84: 108.75 | M84: 2.15103
A85: 75 | B85: BLUEDART | C85: 5806.85 | D85: 5823.28 | E85: 5759.62 | F85: 5712.38 | G85: 5648.72 | H85: 5870.52 | I85: 5934.18 | J85: 5981.42 | K85: 5886.95 | L85: 5776.05 | M85: 0.24749
A86: 76 | B86: BLUESTARCO | C86: 815.1 | D86: 813.80 | E86: 809.60 | F86: 804.10 | G86: 799.90 | H86: 819.30 | I86: 823.50 | J86: 829.00 | K86: 818 | L86: 808.3 | M86: 0.51118
A87: 77 | B87: BBTC | C87: 1303.65 | D87: 1310.10 | E87: 1293.95 | F87: 1284.25 | G87: 1268.10 | H87: 1319.80 | I87: 1335.95 | J87: 1345.65 | K87: 1326.25 | L87: 1300.4 | M87: 0.50317
A88: 78 | B88: BOMDYEING | C88: 89.35 | D88: 90.33 | E88: 87.77 | F88: 86.18 | G88: 83.62 | H88: 91.92 | I88: 94.48 | J88: 96.07 | K88: 92.9 | L88: 88.75 | M88: 35.78948
A89: 79 | B89: BOSCHLTD | C89: 15064.55 | D89: 15114.45 | E89: 14961.50 | F89: 14858.45 | G89: 14705.50 | H89: 15217.50 | I89: 15370.45 | J89: 15473.50 | K89: 15267.4 | L89: 15011.4 | M89: 0.43267
A90: 80 | B90: BRIGADE | C90: 290.85 | D90: 288.75 | E90: 282.65 | F90: 274.45 | G90: 268.35 | H90: 296.95 | I90: 303.05 | J90: 311.25 | K90: 294.85 | L90: 280.55 | M90: 3.42733
A91: 81 | B91: BRITANNIA | C91: 3659.3 | D91: 3658.20 | E91: 3632.10 | F91: 3604.90 | G91: 3578.80 | H91: 3685.40 | I91: 3711.50 | J91: 3738.70 | K91: 3684.3 | L91: 3631 | M91: 3.78997
A92: 82 | B92: CARERATING | C92: 722.15 | D92: 726.02 | E92: 712.13 | F92: 702.12 | G92: 688.23 | H92: 736.03 | I92: 749.92 | J92: 759.93 | K92: 739.9 | L92: 716 | M92: 4.23168
A93: 83 | B93: CCL | C93: 341.9 | D93: 342.47 | E93: 337.98 | F93: 334.07 | G93: 329.58 | H93: 346.38 | I93: 350.87 | J93: 354.78 | K93: 346.95 | L93: 338.55 | M93: 2.89343
A94: 84 | B94: CESC | C94: 765 | D94: 769.98 | E94: 759.02 | F94: 753.03 | G94: 742.07 | H94: 775.97 | I94: 786.93 | J94: 792.92 | K94: 780.95 | L94: 764 | M94: 3.47993
A95: 85 | B95: CRISIL | C95: 2882.3 | D95: 2876.08 | E95: 2782.22 | F95: 2682.13 | G95: 2588.27 | H95: 2976.17 | I95: 3070.03 | J95: 3170.12 | K95: 2969.95 | L95: 2776 | M95: 0.94712
A96: 86 | B96: CSBBANK | C96: 321.2 | D96: 323.48 | E96: 317.72 | F96: 314.23 | G96: 308.47 | H96: 326.97 | I96: 332.73 | J96: 336.22 | K96: 329.25 | L96: 320 | M96: 1.06314
A97: 87 | B97: CADILAHC | C97: 623.55 | D97: 626.05 | E97: 618.90 | F97: 614.25 | G97: 607.10 | H97: 630.70 | I97: 637.85 | J97: 642.50 | K97: 633.2 | L97: 621.4 | M97: 30.43828
A98: 88 | B98: CANFINHOME | C98: 514.95 | D98: 517.87 | E98: 508.68 | F98: 502.42 | G98: 493.23 | H98: 524.13 | I98: 533.32 | J98: 539.58 | K98: 527.05 | L98: 511.6 | M98: 2.88604
A99: 89 | B99: CANBK | C99: 151.95 | D99: 152.35 | E99: 150.50 | F99: 149.05 | G99: 147.20 | H99: 153.80 | I99: 155.65 | J99: 157.10 | K99: 154.2 | L99: 150.9 | M99: 117.03214
A100: 90 | B100: CAPLIPOINT | C100: 667.3 | D100: 666.07 | E100: 657.63 | F100: 647.97 | G100: 639.53 | H100: 675.73 | I100: 684.17 | J100: 693.83 | K100: 674.5 | L100: 656.4 | M100: 1.78014
A101: 91 | B101: CGCL | C101: 530.3 | D101: 544.95 | E101: 511.50 | F101: 492.70 | G101: 459.25 | H101: 563.75 | I101: 597.20 | J101: 616.00 | K101: 578.4 | L101: 526.15 | M101: 2.79584
A102: 92 | B102: CARBORUNIV | C102: 585.45 | D102: 587.48 | E102: 581.12 | F102: 576.78 | G102: 570.42 | H102: 591.82 | I102: 598.18 | J102: 602.52 | K102: 593.85 | L102: 583.15 | M102: 1.66572
A103: 93 | B103: CASTROLIND | C103: 145.75 | D103: 146.33 | E103: 144.92 | F103: 144.08 | G103: 142.67 | H103: 147.17 | I103: 148.58 | J103: 149.42 | K103: 147.75 | L103: 145.5 | M103: 7.5092
A104: 94 | B104: CEATLTD | C104: 1356.15 | D104: 1356.05 | E104: 1347.10 | F104: 1338.05 | G104: 1329.10 | H104: 1365.10 | I104: 1374.05 | J104: 1383.10 | K104: 1365 | L104: 1347 | M104: 1.04452
A105: 95 | B105: CENTRALBK | C105: 23.95 | D105: 24.32 | E105: 23.18 | F105: 22.42 | G105: 21.28 | H105: 25.08 | I105: 26.22 | J105: 26.98 | K105: 25.45 | L105: 23.55 | M105: 253.0474
A106: 96 | B106: CDSL | C106: 972.95 | D106: 974.87 | E106: 966.08 | F106: 959.22 | G106: 950.43 | H106: 981.73 | I106: 990.52 | J106: 997.38 | K106: 983.65 | L106: 968 | M106: 3.93617
A107: 97 | B107: CENTURYPLY | C107: 408.5 | D107: 411.43 | E107: 402.07 | F107: 395.63 | G107: 386.27 | H107: 417.87 | I107: 427.23 | J107: 433.67 | K107: 420.8 | L107: 405 | M107: 3.37226
A108: 98 | B108: CENTURYTEX | C108: 603.25 | D108: 605.35 | E108: 591.50 | F108: 579.75 | G108: 565.90 | H108: 617.10 | I108: 630.95 | J108: 642.70 | K108: 619.2 | L108: 593.6 | M108: 14.90998
A109: 99 | B109: CERA | C109: 4292.85 | D109: 4284.22 | E109: 4248.63 | F109: 4204.42 | G109: 4168.83 | H109: 4328.43 | I109: 4364.02 | J109: 4408.23 | K109: 4319.8 | L109: 4240 | M109: 0.5083
A110: 100 | B110: CHALET | C110: 179.8 | D110: 180.77 | E110: 178.03 | F110: 176.27 | G110: 173.53 | H110: 182.53 | I110: 185.27 | J110: 187.03 | K110: 183.5 | L110: 179 | M110: 0.92834
A111: 101 | B111: CHAMBLFERT | C111: 300.05 | D111: 302.32 | E111: 295.73 | F111: 291.42 | G111: 284.83 | H111: 306.63 | I111: 313.22 | J111: 317.53 | K111: 308.9 | L111: 298 | M111: 8.90665
A112: 102 | B112: CHENNPETRO | C112: 147 | D112: 145.70 | E112: 142.40 | F112: 137.80 | G112: 134.50 | H112: 150.30 | I112: 153.60 | J112: 158.20 | K112: 149 | L112: 141.1 | M112: 25.06093
A113: 103 | B113: CHOLAHLDNG | C113: 647.85 | D113: 654.80 | E113: 633.60 | F113: 619.35 | G113: 598.15 | H113: 669.05 | I113: 690.25 | J113: 704.50 | K113: 676 | L113: 640.55 | M113: 0.30484
A114: 104 | B114: CHOLAFIN | C114: 536.2 | D114: 539.50 | E114: 531.70 | F114: 527.20 | G114: 519.40 | H114: 544.00 | I114: 551.80 | J114: 556.30 | K114: 547.3 | L114: 535 | M114: 17.29953
A115: 105 | B115: CIPLA | C115: 957.75 | D115: 959.32 | E115: 952.63 | F115: 947.52 | G115: 940.83 | H115: 964.43 | I115: 971.12 | J115: 976.23 | K115: 966 | L115: 954.2 | M115: 18.07471
A116: 106 | B116: CUB | C116: 168.05 | D116: 166.97 | E116: 164.78 | F116: 161.52 | G116: 159.33 | H116: 170.23 | I116: 172.42 | J116: 175.68 | K116: 169.15 | L116: 163.7 | M116: 51.476
A117: 107 | B117: COALINDIA | C117: 148.45 | D117: 149.07 | E117: 147.53 | F117: 146.62 | G117: 145.08 | H117: 149.98 | I117: 151.52 | J117: 152.43 | K117: 150.6 | L117: 148.15 | M117: 79.8322
A118: 108 | B118: COCHINSHIP | C118: 408.9 | D118: 411.03 | E118: 405.87 | F118: 402.83 | G118: 397.67 | H118: 414.07 | I118: 419.23 | J118: 422.27 | K118: 416.2 | L118: 408 | M118: 3.06189
A119: 109 | B119: COFORGE | C119: 3935.85 | D119: 3961.52 | E119: 3894.33 | F119: 3852.82 | G119: 3785.63 | H119: 4003.03 | I119: 4070.22 | J119: 4111.73 | K119: 4028.7 | L119: 3920 | M119: 2.97161
A120: 110 | B120: COLPAL | C120: 1686.35 | D120: 1689.88 | E120: 1679.37 | F120: 1672.38 | G120: 1661.87 | H120: 1696.87 | I120: 1707.38 | J120: 1714.37 | K120: 1700.4 | L120: 1682.9 | M120: 1.9196
A121: 111 | B121: CONCOR | C121: 698.15 | D121: 703.72 | E121: 690.93 | F121: 683.72 | G121: 670.93 | H121: 710.93 | I121: 723.72 | J121: 730.93 | K121: 716.5 | L121: 696.5 | M121: 30.45052
A122: 112 | B122: COROMANDEL | C122: 890.65 | D122: 898.87 | E122: 872.78 | F122: 854.92 | G122: 828.83 | H122: 916.73 | I122: 942.82 | J122: 960.68 | K122: 924.95 | L122: 881 | M122: 3.64072
A123: 113 | B123: CREDITACC | C123: 730.9 | D123: 731.52 | E123: 724.63 | F123: 718.37 | G123: 711.48 | H123: 737.78 | I123: 744.67 | J123: 750.93 | K123: 738.4 | L123: 725.25 | M123: 0.37966
A124: 114 | B124: CROMPTON | C124: 416.2 | D124: 415.90 | E124: 413.30 | F124: 410.40 | G124: 407.80 | H124: 418.80 | I124: 421.40 | J124: 424.30 | K124: 418.5 | L124: 413 | M124: 9.52247
A125: 115 | B125: CUMMINSIND | C125: 825.55 | D125: 831.57 | E125: 817.63 | F125: 809.72 | G125: 795.78 | H125: 839.48 | I125: 853.42 | J125: 861.33 | K125: 845.5 | L125: 823.65 | M125: 5.58645
A126: 116 | B126: CYIENT | C126: 849.4 | D126: 859.35 | E126: 835.80 | F126: 822.20 | G126: 798.65 | H126: 872.95 | I126: 896.50 | J126: 910.10 | K126: 882.9 | L126: 845.75 | M126: 1.57818
A127: 117 | B127: DBCORP | C127: 108.85 | D127: 109.03 | E127: 107.07 | F127: 105.28 | G127: 103.32 | H127: 110.82 | I127: 112.78 | J127: 114.57 | K127: 111 | L127: 107.25 | M127: 8.04923
A128: 118 | B128: DCBBANK | C128: 106.75 | D128: 107.37 | E128: 105.78 | F128: 104.82 | G128: 103.23 | H128: 108.33 | I128: 109.92 | J128: 110.88 | K128: 108.95 | L128: 106.4 | M128: 10.26327
A129: 119 | B129: DCMSHRIRAM | C129: 822.5 | D129: 831.57 | E129: 796.13 | F129: 769.77 | G129: 734.33 | H129: 857.93 | I129: 893.37 | J129: 919.73 | K129: 867 | L129: 805.2 | M129: 9.34664
A130: 120 | B130: DLF | C130: 293.05 | D130: 295.28 | E130: 289.97 | F130: 286.88 | G130: 281.57 | H130: 298.37 | I130: 303.68 | J130: 306.77 | K130: 300.6 | L130: 292.2 | M130: 50.70124
A131: 121 | B131: DABUR | C131: 566.45 | D131: 565.57 | E131: 561.13 | F131: 555.82 | G131: 551.38 | H131: 570.88 | I131: 575.32 | J131: 580.63 | K131: 570 | L131: 560.25 | M131: 11.72122
A132: 122 | B132: DALBHARAT | C132: 1824.6 | D132: 1829.25 | E132: 1781.50 | F132: 1738.40 | G132: 1690.65 | H132: 1872.35 | I132: 1920.10 | J132: 1963.20 | K132: 1877 | L132: 1786.15 | M132: 1.05284
A133: 123 | B133: DEEPAKNTR | C133: 1758.9 | D133: 1762.63 | E133: 1746.27 | F133: 1733.63 | G133: 1717.27 | H133: 1775.27 | I133: 1791.63 | J133: 1804.27 | K133: 1779 | L133: 1750 | M133: 5.53644
A134: 124 | B134: DELTACORP | C134: 178.25 | D134: 179.65 | E134: 176.25 | F134: 174.25 | G134: 170.85 | H134: 181.65 | I134: 185.05 | J134: 187.05 | K134: 183.05 | L134: 177.65 | M134: 12.40921
A135: 125 | B135: DHANI | C135: 180.2 | D135: 183.57 | E135: 176.13 | F135: 172.07 | G135: 164.63 | H135: 187.63 | I135: 195.07 | J135: 199.13 | K135: 191 | L135: 179.5 | M135: 9.21265
A136: 126 | B136: DHANUKA | C136: 960.25 | D136: 959.38 | E136: 943.87 | F136: 927.48 | G136: 911.97 | H136: 975.77 | I136: 991.28 | J136: 1007.67 | K136: 974.9 | L136: 943 | M136: 1.2057
A137: 127 | B137: DBL | C137: 558.3 | D137: 558.45 | E137: 546.95 | F137: 535.60 | G137: 524.10 | H137: 569.80 | I137: 581.30 | J137: 592.65 | K137: 569.95 | L137: 547.1 | M137: 3.0547
A138: 128 | B138: DISHTV | C138: 14.4 | D138: 14.53 | E138: 14.17 | F138: 13.93 | G138: 13.57 | H138: 14.77 | I138: 15.13 | J138: 15.37 | K138: 14.9 | L138: 14.3 | M138: 81.66243
A139: 129 | B139: DCAL | C139: 197.3 | D139: 199.28 | E139: 193.57 | F139: 189.83 | G139: 184.12 | H139: 203.02 | I139: 208.73 | J139: 212.47 | K139: 205 | L139: 195.55 | M139: 5.39395
A140: 130 | B140: DIVISLAB | C140: 4224.6 | D140: 4252.02 | E140: 4193.83 | F140: 4163.07 | G140: 4104.88 | H140: 4282.78 | I140: 4340.97 | J140: 4371.73 | K140: 4310.2 | L140: 4221.25 | M140: 2.68303
A141: 131 | B141: DIXON | C141: 4483.35 | D141: 4520.02 | E141: 4415.03 | F141: 4346.72 | G141: 4241.73 | H141: 4588.33 | I141: 4693.32 | J141: 4761.63 | K141: 4625 | L141: 4451.7 | M141: 2.54051
A142: 132 | B142: LALPATHLAB | C142: 3231.05 | D142: 3213.52 | E142: 3147.53 | F142: 3064.02 | G142: 2998.03 | H142: 3297.03 | I142: 3363.02 | J142: 3446.53 | K142: 3279.5 | L142: 3130 | M142: 6.32815
A143: 133 | B143: DRREDDY | C143: 5299.35 | D143: 5312.17 | E143: 5274.38 | F143: 5249.42 | G143: 5211.63 | H143: 5337.13 | I143: 5374.92 | J143: 5399.88 | K143: 5349.95 | L143: 5287.2 | M143: 4.11143
A144: 134 | B144: EIDPARRY | C144: 429.25 | D144: 431.02 | E144: 424.33 | F144: 419.42 | G144: 412.73 | H144: 435.93 | I144: 442.62 | J144: 447.53 | K144: 437.7 | L144: 426.1 | M144: 2.40875
A145: 135 | B145: EIHOTEL | C145: 114.65 | D145: 114.88 | E145: 113.87 | F145: 113.08 | G145: 112.07 | H145: 115.67 | I145: 116.68 | J145: 117.47 | K145: 115.9 | L145: 114.1 | M145: 3.4874
A146: 136 | B146: EPL | C146: 279.45 | D146: 283.33 | E146: 274.72 | F146: 269.98 | G146: 261.37 | H146: 288.07 | I146: 296.68 | J146: 301.42 | K146: 291.95 | L146: 278.6 | M146: 4.38651
A147: 137 | B147: ESABINDIA | C147: 1875.5 | D147: 1863.52 | E147: 1837.03 | F147: 1798.57 | G147: 1772.08 | H147: 1901.98 | I147: 1928.47 | J147: 1966.93 | K147: 1890 | L147: 1825.05 | M147: 0.14461
A148: 138 | B148: EDELWEISS | C148: 74.45 | D148: 74.70 | E148: 73.65 | F148: 72.85 | G148: 71.80 | H148: 75.50 | I148: 76.55 | J148: 77.35 | K148: 75.75 | L148: 73.9 | M148: 24.23714
A149: 139 | B149: EICHERMOT | C149: 2728.6 | D149: 2733.40 | E149: 2703.80 | F149: 2679.00 | G149: 2649.40 | H149: 2758.20 | I149: 2787.80 | J149: 2812.60 | K149: 2763 | L149: 2708.6 | M149: 4.32919
A150: 140 | B150: ELGIEQUIP | C150: 214.8 | D150: 216.57 | E150: 211.63 | F150: 208.47 | G150: 203.53 | H150: 219.73 | I150: 224.67 | J150: 227.83 | K150: 221.5 | L150: 213.4 | M150: 3.07624
A151: 141 | B151: EMAMILTD | C151: 549.7 | D151: 543.82 | E151: 536.13 | F151: 522.57 | G151: 514.88 | H151: 557.38 | I151: 565.07 | J151: 578.63 | K151: 551.5 | L151: 530.25 | M151: 7.8627
A152: 142 | B152: ENDURANCE | C152: 1535.75 | D152: 1538.23 | E152: 1522.47 | F152: 1509.18 | G152: 1493.42 | H152: 1551.52 | I152: 1567.28 | J152: 1580.57 | K152: 1554 | L152: 1524.95 | M152: 0.87068
A153: 143 | B153: ENGINERSIN | C153: 81.6 | D153: 82.08 | E153: 80.92 | F153: 80.23 | G153: 79.07 | H153: 82.77 | I153: 83.93 | J153: 84.62 | K153: 83.25 | L153: 81.4 | M153: 21.85515
A154: 144 | B154: EQUITAS | C154: 94.25 | D154: 94.77 | E154: 92.93 | F154: 91.62 | G154: 89.78 | H154: 96.08 | I154: 97.92 | J154: 99.23 | K154: 96.6 | L154: 93.45 | M154: 10.2405
A155: 145 | B155: ERIS | C155: 699.05 | D155: 700.35 | E155: 693.75 | F155: 688.45 | G155: 681.85 | H155: 705.65 | I155: 712.25 | J155: 717.55 | K155: 706.95 | L155: 695.05 | M155: 0.94032
A156: 146 | B156: ESCORTS | C156: 1167.3 | D156: 1171.98 | E156: 1158.92 | F156: 1150.53 | G156: 1137.47 | H156: 1180.37 | I156: 1193.43 | J156: 1201.82 | K156: 1185.05 | L156: 1163.6 | M156: 7.32658
A157: 147 | B157: EXIDEIND | C157: 184.7 | D157: 185.27 | E157: 183.73 | F157: 182.77 | G157: 181.23 | H157: 186.23 | I157: 187.77 | J157: 188.73 | K157: 186.8 | L157: 184.3 | M157: 13.76747
A158: 148 | B158: FDC | C158: 355.5 | D158: 358.00 | E158: 351.50 | F158: 347.50 | G158: 341.00 | H158: 362.00 | I158: 368.50 | J158: 372.50 | K158: 364.5 | L158: 354 | M158: 2.3976
A159: 149 | B159: FEDERALBNK | C159: 84.8 | D159: 85.25 | E159: 84.15 | F159: 83.50 | G159: 82.40 | H159: 85.90 | I159: 87.00 | J159: 87.65 | K159: 86.35 | L159: 84.6 | M159: 135.67339
A160: 150 | B160: FINEORG | C160: 2936.9 | D160: 2930.33 | E160: 2890.67 | F160: 2844.43 | G160: 2804.77 | H160: 2976.57 | I160: 3016.23 | J160: 3062.47 | K160: 2970 | L160: 2884.1 | M160: 0.73351
A161: 151 | B161: FINCABLES | C161: 527.65 | D161: 521.02 | E161: 502.33 | F161: 477.02 | G161: 458.33 | H161: 546.33 | I161: 565.02 | J161: 590.33 | K161: 539.7 | L161: 495.7 | M161: 23.63057
A162: 152 | B162: FINPIPE | C162: 173.65 | D162: 175.08 | E162: 171.37 | F162: 169.08 | G162: 165.37 | H162: 177.37 | I162: 181.08 | J162: 183.37 | K162: 178.8 | L162: 172.8 | M162: 12.73289
A163: 153 | B163: FSL | C163: 165.25 | D163: 165.63 | E163: 163.87 | F163: 162.48 | G163: 160.72 | H163: 167.02 | I163: 168.78 | J163: 170.17 | K163: 167.4 | L163: 164.25 | M163: 20.88004
A164: 154 | B164: FORTIS | C164: 231.95 | D164: 232.73 | E164: 230.47 | F164: 228.98 | G164: 226.72 | H164: 234.22 | I164: 236.48 | J164: 237.97 | K164: 235 | L164: 231.25 | M164: 10.55758
A165: 155 | B165: FCONSUMER | C165: 10.05 | D165: 10.13 | E165: 9.82 | F165: 9.58 | G165: 9.27 | H165: 10.37 | I165: 10.68 | J165: 10.92 | K165: 10.45 | L165: 9.9 | M165: 172.53177
A166: 156 | B166: FRETAIL | C166: 67.25 | D166: 67.35 | E166: 65.50 | F166: 63.75 | G166: 61.90 | H166: 69.10 | I166: 70.95 | J166: 72.70 | K166: 69.2 | L166: 65.6 | M166: 27.01383
A167: 157 | B167: GAIL | C167: 153.35 | D167: 154.35 | E167: 151.70 | F167: 150.05 | G167: 147.40 | H167: 156.00 | I167: 158.65 | J167: 160.30 | K167: 157 | L167: 152.7 | M167: 81.90583
A168: 158 | B168: GEPIL | C168: 336.9 | D168: 343.62 | E168: 328.28 | F168: 319.67 | G168: 304.33 | H168: 352.23 | I168: 367.57 | J168: 376.18 | K168: 358.95 | L168: 335 | M168: 9.79314
A169: 159 | B169: GHCL | C169: 276.4 | D169: 278.55 | E169: 273.10 | F169: 269.80 | G169: 264.35 | H169: 281.85 | I169: 287.30 | J169: 290.60 | K169: 284 | L169: 275.25 | M169: 1.26431
A170: 160 | B170: GMMPFAUDLR | C170: 4676.2 | D170: 4700.73 | E170: 4625.47 | F170: 4574.73 | G170: 4499.47 | H170: 4751.47 | I170: 4826.73 | J170: 4877.47 | K170: 4776 | L170: 4650 | M170: 0.3465
A171: 161 | B171: GMRINFRA | C171: 32.4 | D171: 32.82 | E171: 31.73 | F171: 31.07 | G171: 29.98 | H171: 33.48 | I171: 34.57 | J171: 35.23 | K171: 33.9 | L171: 32.15 | M171: 1063.16248
A172: 162 | B172: GALAXYSURF | C172: 3041.1 | D172: 3041.02 | E172: 3013.03 | F172: 2984.97 | G172: 2956.98 | H172: 3069.08 | I172: 3097.07 | J172: 3125.13 | K172: 3069 | L172: 3012.95 | M172: 0.17482
A173: 163 | B173: GRSE | C173: 208.9 | D173: 208.98 | E173: 201.52 | F173: 194.13 | G173: 186.67 | H173: 216.37 | I173: 223.83 | J173: 231.22 | K173: 216.45 | L173: 201.6 | M173: 29.04782
A174: 164 | B174: GARFIBRES | C174: 3239.25 | D174: 3250.75 | E174: 3173.50 | F174: 3107.75 | G174: 3030.50 | H174: 3316.50 | I174: 3393.75 | J174: 3459.50 | K174: 3328 | L174: 3185 | M174: 0.13571
A175: 165 | B175: GICRE | C175: 198.7 | D175: 200.23 | E175: 196.47 | F175: 194.23 | G175: 190.47 | H175: 202.47 | I175: 206.23 | J175: 208.47 | K175: 204 | L175: 198 | M175: 4.91673
A176: 166 | B176: GILLETTE | C176: 5641.9 | D176: 5653.13 | E176: 5613.77 | F176: 5585.63 | G176: 5546.27 | H176: 5681.27 | I176: 5720.63 | J176: 5748.77 | K176: 5692.5 | L176: 5625 | M176: 0.02605
A177: 167 | B177: GLAXO | C177: 1526.4 | D177: 1523.80 | E177: 1510.60 | F177: 1494.80 | G177: 1481.60 | H177: 1539.60 | I177: 1552.80 | J177: 1568.60 | K177: 1537 | L177: 1508 | M177: 0.18732
A178: 168 | B178: GLENMARK | C178: 638.95 | D178: 640.63 | E178: 634.32 | F178: 629.68 | G178: 623.37 | H178: 645.27 | I178: 651.58 | J178: 656.22 | K178: 646.95 | L178: 636 | M178: 8.52001
A179: 169 | B179: GODFRYPHLP | C179: 950.95 | D179: 946.48 | E179: 935.57 | F179: 920.18 | G179: 909.27 | H179: 961.87 | I179: 972.78 | J179: 988.17 | K179: 957.4 | L179: 931.1 | M179: 1.13951
A180: 170 | B180: GODREJAGRO | C180: 632.35 | D180: 626.17 | E180: 591.18 | F180: 550.02 | G180: 515.03 | H180: 667.33 | I180: 702.32 | J180: 743.48 | K180: 661.15 | L180: 585 | M180: 78.81902
A181: 171 | B181: GODREJCP | C181: 880.75 | D181: 880.38 | E181: 874.07 | F181: 867.38 | G181: 861.07 | H181: 887.07 | I181: 893.38 | J181: 900.07 | K181: 886.7 | L181: 873.7 | M181: 12.21549
A182: 172 | B182: GODREJIND | C182: 576.65 | D182: 564.23 | E182: 543.47 | F182: 510.28 | G182: 489.52 | H182: 597.42 | I182: 618.18 | J182: 651.37 | K182: 585 | L182: 531.05 | M182: 19.68832
A183: 173 | B183: GODREJPROP | C183: 1405.3 | D183: 1406.07 | E183: 1395.63 | F183: 1385.97 | G183: 1375.53 | H183: 1415.73 | I183: 1426.17 | J183: 1435.83 | K183: 1416.5 | L183: 1396.4 | M183: 3.83816
A184: 174 | B184: GRANULES | C184: 314.35 | D184: 315.55 | E184: 312.70 | F184: 311.05 | G184: 308.20 | H184: 317.20 | I184: 320.05 | J184: 321.70 | K184: 318.4 | L184: 313.9 | M184: 11.2337
A185: 175 | B185: GRAPHITE | C185: 629.55 | D185: 639.78 | E185: 615.57 | F185: 601.58 | G185: 577.37 | H185: 653.77 | I185: 677.98 | J185: 691.97 | K185: 664 | L185: 625.8 | M185: 11.41369
A186: 176 | B186: GRASIM | C186: 1498.75 | D186: 1498.33 | E186: 1484.42 | F186: 1470.08 | G186: 1456.17 | H186: 1512.67 | I186: 1526.58 | J186: 1540.92 | K186: 1512.25 | L186: 1484 | M186: 9.73788
A187: 177 | B187: GESHIP | C187: 401.55 | D187: 401.27 | E187: 396.13 | F187: 390.72 | G187: 385.58 | H187: 406.68 | I187: 411.82 | J187: 417.23 | K187: 406.4 | L187: 395.85 | M187: 2.87802
A188: 178 | B188: GREAVESCOT | C188: 167.8 | D188: 167.93 | E188: 161.27 | F188: 154.73 | G188: 148.07 | H188: 174.47 | I188: 181.13 | J188: 187.67 | K188: 174.6 | L188: 161.4 | M188: 111.3269
A189: 179 | B189: GRINDWELL | C189: 1154.75 | D189: 1162.93 | E189: 1143.87 | F189: 1132.98 | G189: 1113.92 | H189: 1173.82 | I189: 1192.88 | J189: 1203.77 | K189: 1182 | L189: 1152.05 | M189: 1.10919
A190: 180 | B190: GUJALKALI | C190: 403.55 | D190: 405.25 | E190: 399.30 | F190: 395.05 | G190: 389.10 | H190: 409.50 | I190: 415.45 | J190: 419.70 | K190: 411.2 | L190: 401 | M190: 2.64622
A191: 181 | B191: GAEL | C191: 169.7 | D191: 169.18 | E191: 165.97 | F191: 162.23 | G191: 159.02 | H191: 172.92 | I191: 176.13 | J191: 179.87 | K191: 172.4 | L191: 165.45 | M191: 5.78111
A192: 182 | B192: FLUOROCHEM | C192: 1113.6 | D192: 1123.50 | E192: 1095.10 | F192: 1076.60 | G192: 1048.20 | H192: 1142.00 | I192: 1170.40 | J192: 1188.90 | K192: 1151.9 | L192: 1105 | M192: 0.23486
A193: 183 | B193: GUJGASLTD | C193: 652.9 | D193: 661.13 | E193: 642.87 | F193: 632.83 | G193: 614.57 | H193: 671.17 | I193: 689.43 | J193: 699.47 | K193: 679.4 | L193: 651.1 | M193: 21.63622
A194: 184 | B194: GMDCLTD | C194: 74.9 | D194: 75.78 | E194: 73.62 | F194: 72.33 | G194: 70.17 | H194: 77.07 | I194: 79.23 | J194: 80.52 | K194: 77.95 | L194: 74.5 | M194: 31.79313
A195: 185 | B195: GNFC | C195: 361 | D195: 363.92 | E195: 357.08 | F195: 353.17 | G195: 346.33 | H195: 367.83 | I195: 374.67 | J195: 378.58 | K195: 370.75 | L195: 360 | M195: 3.61822
A196: 186 | B196: GPPL | C196: 111.8 | D196: 112.27 | E196: 110.83 | F196: 109.87 | G196: 108.43 | H196: 113.23 | I196: 114.67 | J196: 115.63 | K196: 113.7 | L196: 111.3 | M196: 7.56563
A197: 187 | B197: GSFC | C197: 112.45 | D197: 113.18 | E197: 111.27 | F197: 110.08 | G197: 108.17 | H197: 114.37 | I197: 116.28 | J197: 117.47 | K197: 115.1 | L197: 112 | M197: 13.75755
A198: 188 | B198: GSPL | C198: 333.65 | D198: 333.63 | E198: 326.37 | F198: 319.08 | G198: 311.82 | H198: 340.92 | I198: 348.18 | J198: 355.47 | K198: 340.9 | L198: 326.35 | M198: 12.64734
A199: 189 | B199: GULFOILLUB | C199: 691.5 | D199: 695.43 | E199: 686.07 | F199: 680.63 | G199: 671.27 | H199: 700.87 | I199: 710.23 | J199: 715.67 | K199: 704.8 | L199: 690 | M199: 0.49396
A200: 190 | B200: HEG | C200: 2184.35 | D200: 2215.45 | E200: 2143.90 | F200: 2103.45 | G200: 2031.90 | H200: 2255.90 | I200: 2327.45 | J200: 2367.90 | K200: 2287 | L200: 2175 | M200: 2.12681
A201: 191 | B201: HCLTECH | C201: 972.9 | D201: 976.30 | E201: 967.60 | F201: 962.30 | G201: 953.60 | H201: 981.60 | I201: 990.30 | J201: 995.60 | K201: 985 | L201: 971 | M201: 23.95543
A202: 192 | B202: HDFCAMC | C202: 2946.8 | D202: 2956.63 | E202: 2926.37 | F202: 2905.93 | G202: 2875.67 | H202: 2977.07 | I202: 3007.33 | J202: 3027.77 | K202: 2986.9 | L202: 2936.2 | M202: 1.17904
A203: 193 | B203: HDFCBANK | C203: 1485.5 | D203: 1487.30 | E203: 1476.80 | F203: 1468.10 | G203: 1457.60 | H203: 1496.00 | I203: 1506.50 | J203: 1515.20 | K203: 1497.8 | L203: 1478.6 | M203: 39.22434
A204: 194 | B204: HDFCLIFE | C204: 717.75 | D204: 719.25 | E204: 714.85 | F204: 711.95 | G204: 707.55 | H204: 722.15 | I204: 726.55 | J204: 729.45 | K204: 723.65 | L204: 716.35 | M204: 18.93116
A205: 195 | B205: HFCL | C205: 66.7 | D205: 68.02 | E205: 63.33 | F205: 59.97 | G205: 55.28 | H205: 71.38 | I205: 76.07 | J205: 79.43 | K205: 72.7 | L205: 64.65 | M205: 1842.37347
A206: 196 | B206: HATHWAY | C206: 26.55 | D206: 26.92 | E206: 26.03 | F206: 25.52 | G206: 24.63 | H206: 27.43 | I206: 28.32 | J206: 28.83 | K206: 27.8 | L206: 26.4 | M206: 103.21068
... 321 more rows

Sheet Bulk Deals
E6: Back To Main Page
A7: Subject : | B7: BULK DEAL | D7: =Main!B10 -> 2021-06-24
A9: Date | B9: Scrip code | C9: Scrip Name | D9: Client Name | E9: Buy / Sell | F9: Quantity Traded | G9: Trade Price / Wt.Avg.trade price | H9: Exchange
A10: 2021-06-23 | B10: 500102 | C10: BALLARPUR | D10: TOPGAIN FINANCE PRIVATE LIMITED | E10: BUY | F10: 1,529 | G10: 1.91 | H10: BSE
A11: 2021-06-23 | B11: 500102 | C11: BALLARPUR | D11: TOPGAIN FINANCE PRIVATE LIMITED | E11: SELL | F11: 6,501,529 | G11: 1.98 | H11: BSE
A12: 2021-06-23 | B12: 538476 | C12: CTL | D12: GULSHAN BAJAJ | E12: SELL | F12: 460,000 | G12: 6.91 | H12: BSE
A13: 2021-06-23 | B13: 542155 | C13: DGL | D13: MAANOR INVESTMENTS PRIVATE LIMITED . | E13: SELL | F13: 106,000 | G13: 2.78 | H13: BSE
A14: 2021-06-23 | B14: 524444 | C14: EVEXIA | D14: INDIVAR TRADERS PVT LTD | E14: SELL | F14: 310,000 | G14: 109 | H14: BSE
A15: 2021-06-23 | B15: 533212 | C15: GKB | D15: CHETAN GOPALDAS CHOLERA | E15: SELL | F15: 39,243 | G15: 118.04 | H15: BSE
A16: 2021-06-23 | B16: 539697 | C16: HILIKS | D16: SUNEETHA BHUPATHI RAJU | E16: BUY | F16: 87,000 | G16: 14.86 | H16: BSE
A17: 2021-06-23 | B17: 539697 | C17: HILIKS | D17: DURGA VENKATA VARA PRASAD RAO CHADALAWADA | E17: SELL | F17: 100,000 | G17: 14.86 | H17: BSE
A18: 2021-06-23 | B18: 522183 | C18: ITL | D18: UTTAM SINGH | E18: SELL | F18: 22,376 | G18: 125.1 | H18: BSE
A19: 2021-06-23 | B19: 542446 | C19: JONJUA | D19: BHIM SHARMA | E19: BUY | F19: 26,000 | G19: 37.05 | H19: BSE
A20: 2021-06-23 | B20: 534600 | C20: JTLINFRA | D20: DUGAR GROWTH FUND PRIVATE LIMITED | E20: BUY | F20: 100,000 | G20: 460 | H20: BSE
A21: 2021-06-23 | B21: 534600 | C21: JTLINFRA | D21: JAGAN INDUSTRIES PRIVATE LIMITED | E21: SELL | F21: 100,000 | G21: 460 | H21: BSE
A22: 2021-06-23 | B22: 537669 | C22: LAXMIPATI | D22: NNM SECURITIES PVT LTD | E22: SELL | F22: 33,000 | G22: 25 | H22: BSE
A23: 2021-06-23 | B23: 537669 | C23: LAXMIPATI | D23: RISEWELL DISTRIBUTORS PVT LTD | E23: BUY | F23: 30,000 | G23: 25 | H23: BSE
A24: 2021-06-23 | B24: 500284 | C24: LORDSCHLO | D24: JFC FINANCE (INDIA) LIMITED | E24: BUY | F24: 250,000 | G24: 38 | H24: BSE
A25: 2021-06-23 | B25: 500284 | C25: LORDSCHLO | D25: PARAS WADHWA | E25: SELL | F25: 275,000 | G25: 38 | H25: BSE
A26: 2021-06-23 | B26: 505523 | C26: MAHACORP | D26: COBIA DISTRIBUTORS PRIVATE LIMITED | E26: SELL | F26: 1,600,000 | G26: 0.45 | H26: BSE
A27: 2021-06-23 | B27: 543264 | C27: NURECA | D27: HORNBILL ORCHID INDIA FUND | E27: BUY | F27: 195,766 | G27: 1549.97 | H27: BSE
A28: 2021-06-23 | B28: 531254 | C28: OPTIFIN | D28: NOPEA CAPITAL SERVICES PRIVATE LIMITED | E28: BUY | F28: 38,955 | G28: 28.04 | H28: BSE
A29: 2021-06-23 | B29: 531254 | C29: OPTIFIN | D29: VEAM CAPITALS PRIVATE LIMITED | E29: SELL | F29: 50,000 | G29: 28.05 | H29: BSE
A30: 2021-06-23 | B30: 512624 | C30: REGENTRP | D30: SAGARPRAKASHSAWANT | E30: BUY | F30: 272,000 | G30: 1.72 | H30: BSE
A31: 2021-06-23 | B31: 532092 | C31: SAGARPROD | D31: KUNAL ASHOK NAHAR | E31: SELL | F31: 251,560 | G31: 2.35 | H31: BSE
A32: 2021-06-23 | B32: 532092 | C32: SAGARPROD | D32: AVANI JASMIN AJMERA | E32: SELL | F32: 347,705 | G32: 2.18 | H32: BSE
A33: 2021-06-23 | B33: 539526 | C33: SCTL | D33: FAROOQUE A HAMID HAMDULE | E33: SELL | F33: 1,040,809 | G33: 0.74 | H33: BSE
A34: 2021-06-23 | B34: 519566 | C34: SIMRAN | D34: HEMANTBHAI SATISHBHAI PATEL | E34: SELL | F34: 21,000 | G34: 143.91 | H34: BSE
A35: 2021-06-23 | B35: 520155 | C35: STARLOG | D35: SUBRATAKUMARSAO | E35: BUY | F35: 207,000 | G35: 11.82 | H35: BSE
A36: 2021-06-23 | B36: 520155 | C36: STARLOG | D36: EASTSPRING INVESTMENTS INDIA INFRASTRUCTURE EQUITY OPEN LTD | E36: SELL | F36: 317,431 | G36: 11.43 | H36: BSE
A37: 2021-06-23 | B37: 530419 | C37: SUMEDHA | D37: CRONY VYAPAR PVT LTD | E37: SELL | F37: 50,000 | G37: 32.04 | H37: BSE
A38: 2021-06-23 | B38: 514260 | C38: SURBHIN | D38: NAIMISH PATEL | E38: BUY | F38: 22,124 | G38: 1.64 | H38: BSE
A39: 2021-06-23 | B39: 514260 | C39: SURBHIN | D39: RASHESH PATEL | E39: BUY | F39: 24,000 | G39: 1.64 | H39: BSE
A40: 2021-06-23 | B40: 514260 | C40: SURBHIN | D40: VISHAL PATEL | E40: BUY | F40: 30,000 | G40: 1.64 | H40: BSE
A41: 2021-06-23 | B41: 514260 | C41: SURBHIN | D41: RITESH PATEL | E41: BUY | F41: 40,000 | G41: 1.64 | H41: BSE
A42: 2021-06-23 | B42: 514260 | C42: SURBHIN | D42: HEMLATABEN MEHULBHAI PATEL | E42: SELL | F42: 52,500 | G42: 1.64 | H42: BSE
A43: 2021-06-23 | B43: 514260 | C43: SURBHIN | D43: MADHUBEN BHANUBHAI VEKARIA | E43: SELL | F43: 61,998 | G43: 1.64 | H43: BSE
A44: 2021-06-23 | B44: 531279 | C44: TRISHAKT | D44: SAGARMAL SURESH KUMAR PRIVATE LIMITED | E44: SELL | F44: 15,000 | G44: 13.37 | H44: BSE
A45: 2021-06-23 | B45: 532478 | C45: UBL | D45: HEINEKEN INTERNATIONAL B V | E45: BUY | F45: 39,644,346 | G45: 1471.25 | H45: BSE
A46: 2021-06-23 | B46: 532478 | C46: UBL | D46: RECOVERY OFFICER I DRT II | E46: SELL | F46: 39,644,346 | G46: 1471.25 | H46: BSE
A47: 2021-06-23 | B47: 539141 | C47: UFO | D47: P 5 ASIA HOLDING INVESTMENTS MAURITIUS LIMITED | E47: SELL | F47: 540,000 | G47: 92.4 | H47: BSE
A48: 2021-06-23 | B48: 539141 | C48: UFO | D48: QE SECURITIES | E48: BUY | F48: 147,474 | G48: 93.95 | H48: BSE
A49: 2021-06-23 | B49: 539141 | C49: UFO | D49: QE SECURITIES | E49: SELL | F49: 126,357 | G49: 95.15 | H49: BSE
A50: 2021-06-23 | B50: 513713 | C50: WHITEORG | D50: ALPHA LEON ENTERPRISES LLP | E50: SELL | F50: 180,379 | G50: 9.56 | H50: BSE
A51: 2021-06-23 | B51: 514266 | C51: ZENIFIB | D51: HIMANSHUMAHENDRABHAIPATEL | E51: BUY | F51: 31,299 | G51: 60.89 | H51: BSE
A52: 2021-06-23 | B52: 514266 | C52: ZENIFIB | D52: HIMANSHUMAHENDRABHAIPATEL | E52: SELL | F52: 30,626 | G52: 63 | H52: BSE
A53: 2021-06-23 | B53: BCP | C53: B.C. Power Controls Ltd | D53: COMFORT COMMOTRADE PRIVATE LIMITED | E53: BUY | F53: 414,000 | G53: 4 | H53: BSE
A54: 2021-06-23 | B54: BFUTILITIE | C54: BF Utilities Limited | D54: XTX MARKETS LLP | E54: BUY | F54: 199,276 | G54: 498.33 | H54: NSE
A55: 2021-06-23 | B55: CORDSCABLE | C55: Cords Cable Industries Li | D55: GRAVITON RESEARCH CAPITAL LLP | E55: BUY | F55: 81,659 | G55: 65.41 | H55: NSE
A56: 2021-06-23 | B56: CORDSCABLE | C56: Cords Cable Industries Li | D56: B M TRADERS | E56: BUY | F56: 15 | G56: 65 | H56: NSE
A57: 2021-06-23 | B57: CREATIVE | C57: Creative Peripherals and | D57: MEHUL BHARATBHAI SHAH HUF | E57: BUY | F57: 65,145 | G57: 141.05 | H57: NSE
A58: 2021-06-23 | B58: CREATIVE | C58: Creative Peripherals and | D58: SAHIL GUPTA | E58: BUY | F58: 60,365 | G58: 139.73 | H58: NSE
A59: 2021-06-23 | B59: GPTINFRA | C59: GPT Infraprojects Ltd | D59: GRAVITON RESEARCH CAPITAL LLP | E59: BUY | F59: 185,047 | G59: 89.16 | H59: NSE
A60: 2021-06-23 | B60: HFCL | C60: HFCL Limited | D60: GRAVITON RESEARCH CAPITAL LLP | E60: BUY | F60: 14,387,768 | G60: 69.52 | H60: NSE
A61: 2021-06-23 | B61: HFCL | C61: HFCL Limited | D61: ALPHAGREP SECURITIES PRIVATE LIMITED | E61: BUY | F61: 8,976,435 | G61: 69.37 | H61: NSE
A62: 2021-06-23 | B62: HSCL | C62: Himadri Speciality Chem L | D62: GRAVITON RESEARCH CAPITAL LLP | E62: BUY | F62: 3,251,446 | G62: 60.2 | H62: NSE
A63: 2021-06-23 | B63: INVENTURE | C63: Inventure Gro & Sec Ltd | D63: VANRAJ DADBHAI KAHOR | E63: BUY | F63: 592,035 | G63: 38.44 | H63: NSE
A64: 2021-06-23 | B64: JKPAPER | C64: JK Paper Limited | D64: VAIBHAV STOCK AND DERIVATIVES BROKING PRIVATE LIMITED | E64: BUY | F64: 961,639 | G64: 211.66 | H64: NSE
A65: 2021-06-23 | B65: JKPAPER | C65: JK Paper Limited | D65: GRAVITON RESEARCH CAPITAL LLP | E65: BUY | F65: 1,208,696 | G65: 211.45 | H65: NSE
A66: 2021-06-23 | B66: KESORAMIND | C66: Kesoram Industries Ltd. | D66: GRAVITON RESEARCH CAPITAL LLP | E66: BUY | F66: 1,138,800 | G66: 93.65 | H66: NSE
A67: 2021-06-23 | B67: KHADIM | C67: Khadim India Limited | D67: GRAVITON RESEARCH CAPITAL LLP | E67: BUY | F67: 108,646 | G67: 269.75 | H67: NSE
A68: 2021-06-23 | B68: LIBERTSHOE | C68: Liberty Shoes Ltd | D68: XTX MARKETS LLP | E68: BUY | F68: 97,148 | G68: 160.11 | H68: NSE
A69: 2021-06-23 | B69: LIBERTSHOE | C69: Liberty Shoes Ltd | D69: QE SECURITIES | E69: BUY | F69: 85,342 | G69: 160.65 | H69: NSE
A70: 2021-06-23 | B70: LIBERTSHOE | C70: Liberty Shoes Ltd | D70: GRAVITON RESEARCH CAPITAL LLP | E70: BUY | F70: 270,850 | G70: 160.7 | H70: NSE
A71: 2021-06-23 | B71: MOKSH | C71: Moksh Ornaments Limited | D71: ANUPAM NARAIN GUPTA | E71: BUY | F71: 100,000 | G71: 82.99 | H71: NSE
A72: 2021-06-23 | B72: ONEPOINT | C72: One Point One Sol Ltd | D72: JYOTIKA DEEPAK SHENOY | E72: BUY | F72: 139,000 | G72: 24.65 | H72: NSE
A73: 2021-06-23 | B73: ORTINLAB | C73: Ortin Laboratories Ltd | D73: KAMLESH NATWARLAL SHAH | E73: BUY | F73: 54,412 | G73: 38.51 | H73: NSE
A74: 2021-06-23 | B74: RAMCOSYS | C74: Ramco Systems Limited | D74: XTX MARKETS LLP | E74: BUY | F74: 175,433 | G74: 614.12 | H74: NSE
A75: 2021-06-23 | B75: REFEX | C75: Refex Industries Limited | D75: GRAVITON RESEARCH CAPITAL LLP | E75: BUY | F75: 135,153 | G75: 156.66 | H75: NSE
A76: 2021-06-23 | B76: REFEX | C76: Refex Industries Limited | D76: EKTA MANAVADARIYA | E76: BUY | F76: 129,648 | G76: 157.63 | H76: NSE
A77: 2021-06-23 | B77: RELCAPITAL | C77: Reliance Capital Limited | D77: CHETAN RASIKLAL SHAH | E77: BUY | F77: 1,276,979 | G77: 29.78 | H77: NSE
A78: 2021-06-23 | B78: RIIL | C78: Reliance Indl Infra Ltd | D78: QE SECURITIES | E78: BUY | F78: 84,604 | G78: 827.44 | H78: NSE
A79: 2021-06-23 | B79: SATIA | C79: Satia Industries Limited | D79: OLGA TRADING PRIVATE LIMITED | E79: BUY | F79: 638,405 | G79: 89.97 | H79: NSE
A80: 2021-06-23 | B80: SHIVAMILLS | C80: Shiva Mills Limited | D80: ASHMAVIR FINANCIAL CONSULTANTS PVT LTD | E80: BUY | F80: 50,000 | G80: 81.26 | H80: NSE
A81: 2021-06-23 | B81: SHRADHA | C81: Shradha Infraprojects Ltd | D81: NAMRATA SAJANKUMAR BAJAJ | E81: BUY | F81: 1 | G81: 54.85 | H81: NSE
A82: 2021-06-23 | B82: SHRADHA | C82: Shradha Infraprojects Ltd | D82: NOPEA CAPITAL SERVICES PRIVATE LIMITED | E82: BUY | F82: 90,000 | G82: 54.5 | H82: NSE
A83: 2021-06-23 | B83: SKMEGGPROD | C83: SKM Egg Products Export | D83: J AND J INVESTMENTS | E83: BUY | F83: 144,007 | G83: 94.61 | H83: NSE
A84: 2021-06-23 | B84: SKMEGGPROD | C84: SKM Egg Products Export | D84: GRAVITON RESEARCH CAPITAL LLP | E84: BUY | F84: 304,480 | G84: 94.6 | H84: NSE
A85: 2021-06-23 | B85: SKMEGGPROD | C85: SKM Egg Products Export | D85: XTX MARKETS LLP | E85: BUY | F85: 189,022 | G85: 94.38 | H85: NSE
A86: 2021-06-23 | B86: SOUTHBANK | C86: South Indian Bank Ltd. | D86: HI GROWTH CORPORATE SERVICES PVT LTD | E86: BUY | F86: 11,169,000 | G86: 13.12 | H86: NSE
A87: 2021-06-23 | B87: TWL | C87: Titagarh Wagons Limited | D87: GRAVITON RESEARCH CAPITAL LLP | E87: BUY | F87: 700,209 | G87: 65.45 | H87: NSE
A88: 2021-06-23 | B88: UFO | C88: UFO Moviez India Ltd. | D88: PARTH INFIN BROKERS PVT LTD | E88: BUY | F88: 549,049 | G88: 93.35 | H88: NSE
A89: 2021-06-23 | B89: UFO | C89: UFO Moviez India Ltd. | D89: VISA CAPITAL PARTNERS | E89: BUY | F89: 250,000 | G89: 95.7 | H89: NSE
A90: 2021-06-23 | B90: UFO | C90: UFO Moviez India Ltd. | D90: GRAVITON RESEARCH CAPITAL LLP | E90: BUY | F90: 804,127 | G90: 94.77 | H90: NSE
A91: 2021-06-23 | B91: UFO | C91: UFO Moviez India Ltd. | D91: B.W.TRADERS | E91: BUY | F91: 207,852 | G91: 93.3 | H91: NSE
A92: 2021-06-23 | B92: UFO | C92: UFO Moviez India Ltd. | D92: AVENUE CONSULTANCY | E92: BUY | F92: 150,000 | G92: 95.01 | H92: NSE
A93: 2021-06-23 | B93: UFO | C93: UFO Moviez India Ltd. | D93: GOENKA BUSINESS AND FINANCE LIMITED | E93: BUY | F93: 200,000 | G93: 93 | H93: NSE
A94: 2021-06-23 | B94: UFO | C94: UFO Moviez India Ltd. | D94: SECURE SHANTI ADVISORY LLP | E94: BUY | F94: 185,571 | G94: 95.74 | H94: NSE
A95: 2021-06-23 | B95: UFO | C95: UFO Moviez India Ltd. | D95: SETU SECURITIES PRIVATE LIMITED | E95: BUY | F95: 214,079 | G95: 94.67 | H95: NSE
A96: 2021-06-23 | B96: UFO | C96: UFO Moviez India Ltd. | D96: SHAH CHETAN RASIKLAL | E96: BUY | F96: 350,000 | G96: 92.9 | H96: NSE
A97: 2021-06-23 | B97: UFO | C97: UFO Moviez India Ltd. | D97: QE SECURITIES | E97: BUY | F97: 239,126 | G97: 94.82 | H97: NSE
A98: 2021-06-23 | B98: UFO | C98: UFO Moviez India Ltd. | D98: M/S. PRARTHANA ENTERPRISES | E98: BUY | F98: 514,504 | G98: 90.86 | H98: NSE
A99: 2021-06-23 | B99: UFO | C99: UFO Moviez India Ltd. | D99: KORADIYA MILE STONE PRIVATE LIMITED . | E99: BUY | F99: 150,001 | G99: 92.5 | H99: NSE
A100: 2021-06-23 | B100: UTTAMSTL | C100: Uttam Galva Steels Limite | D100: RUTANSHU BHASKARBHAI VYAS | E100: BUY | F100: 722,830 | G100: 6.29 | H100: NSE
A101: 2021-06-23 | B101: UTTAMSTL | C101: Uttam Galva Steels Limite | D101: GODHAR RAJENDRA GANGARAM | E101: BUY | F101: 770,279 | G101: 6.29 | H101: NSE
A102: 2021-06-23 | B102: VAISHALI | C102: Vaishali Pharma Limited | D102: NK SECURITIES RESEARCH PRIVATE LIMITED | E102: BUY | F102: 64,955 | G102: 44.48 | H102: NSE
A103: 2021-06-23 | B103: VECO-RE | C103: VECO-RE | D103: VIKAS GARG | E103: BUY | F103: 5,828,000 | G103: 0.22 | H103: NSE
A104: 2021-06-23 | B104: VENKEYS | C104: Venky's (India) Limited | D104: VAIBHAV STOCK AND DERIVATIVES BROKING PRIVATE LIMITED | E104: BUY | F104: 243,498 | G104: 3749.19 | H104: NSE
A105: 2021-06-23 | B105: VENKEYS | C105: Venky's (India) Limited | D105: NUMIV RESEARCH PRIVATE LIMITED | E105: BUY | F105: 90,698 | G105: 3689.83 | H105: NSE
A106: 2021-06-23 | B106: VENKEYS | C106: Venky's (India) Limited | D106: NK SECURITIES RESEARCH PRIVATE LIMITED | E106: BUY | F106: 299,598 | G106: 3726.42 | H106: NSE
A107: 2021-06-23 | B107: VENKEYS | C107: Venky's (India) Limited | D107: GOLDMINE STOCKS PRIVATE LIMITED | E107: BUY | F107: 98,213 | G107: 3719.4 | H107: NSE
A108: 2021-06-23 | B108: VENKEYS | C108: Venky's (India) Limited | D108: CHANDARANA INTERMEDIARIES BROKERS PRIVATE LIMITED | E108: BUY | F108: 85,174 | G108: 3721.75 | H108: NSE
A109: 2021-06-23 | B109: VENKEYS | C109: Venky's (India) Limited | D109: GRAVITON RESEARCH CAPITAL LLP | E109: BUY | F109: 317,333 | G109: 3725.62 | H109: NSE
A110: 2021-06-23 | B110: VENKEYS | C110: Venky's (India) Limited | D110: XTX MARKETS LLP | E110: BUY | F110: 312,634 | G110: 3722.85 | H110: NSE
A111: 2021-06-23 | B111: VERTOZ | C111: Vertoz Advertising Ltd | D111: OLGA TRADING PRIVATE LIMITED | E111: BUY | F111: 65,310 | G111: 193.31 | H111: NSE
A112: 2021-06-23 | B112: BCP | C112: B.C. Power Controls Ltd | D112: ARUN KUMAR JAIN | E112: SELL | F112: 777,643 | G112: 3.99 | H112: NSE
A113: 2021-06-23 | B113: BFUTILITIE | C113: BF Utilities Limited | D113: XTX MARKETS LLP | E113: SELL | F113: 201,187 | G113: 498.47 | H113: NSE
A114: 2021-06-23 | B114: CORDSCABLE | C114: Cords Cable Industries Li | D114: B M TRADERS | E114: SELL | F114: 110,015 | G114: 64.8 | H114: NSE
A115: 2021-06-23 | B115: CORDSCABLE | C115: Cords Cable Industries Li | D115: GRAVITON RESEARCH CAPITAL LLP | E115: SELL | F115: 81,659 | G115: 65.54 | H115: NSE
A116: 2021-06-23 | B116: CREATIVE | C116: Creative Peripherals and | D116: SAHIL GUPTA | E116: SELL | F116: 73,165 | G116: 141.05 | H116: NSE
A117: 2021-06-23 | B117: GPTINFRA | C117: GPT Infraprojects Ltd | D117: GRAVITON RESEARCH CAPITAL LLP | E117: SELL | F117: 185,047 | G117: 89.5 | H117: NSE
A118: 2021-06-23 | B118: HFCL | C118: HFCL Limited | D118: GRAVITON RESEARCH CAPITAL LLP | E118: SELL | F118: 14,387,768 | G118: 69.54 | H118: NSE
A119: 2021-06-23 | B119: HFCL | C119: HFCL Limited | D119: ALPHAGREP SECURITIES PRIVATE LIMITED | E119: SELL | F119: 8,995,588 | G119: 69.4 | H119: NSE
A120: 2021-06-23 | B120: HSCL | C120: Himadri Speciality Chem L | D120: GRAVITON RESEARCH CAPITAL LLP | E120: SELL | F120: 3,251,446 | G120: 60.2 | H120: NSE
A121: 2021-06-23 | B121: INVENTURE | C121: Inventure Gro & Sec Ltd | D121: VANRAJ DADBHAI KAHOR | E121: SELL | F121: 642,035 | G121: 39.33 | H121: NSE
A122: 2021-06-23 | B122: JKPAPER | C122: JK Paper Limited | D122: GRAVITON RESEARCH CAPITAL LLP | E122: SELL | F122: 1,208,696 | G122: 211.54 | H122: NSE
A123: 2021-06-23 | B123: JKPAPER | C123: JK Paper Limited | D123: VAIBHAV STOCK AND DERIVATIVES BROKING PRIVATE LIMITED | E123: SELL | F123: 961,639 | G123: 211.76 | H123: NSE
A124: 2021-06-23 | B124: KESORAMIND | C124: Kesoram Industries Ltd. | D124: GRAVITON RESEARCH CAPITAL LLP | E124: SELL | F124: 1,138,800 | G124: 93.69 | H124: NSE
A125: 2021-06-23 | B125: KHADIM | C125: Khadim India Limited | D125: GRAVITON RESEARCH CAPITAL LLP | E125: SELL | F125: 108,646 | G125: 269.95 | H125: NSE
A126: 2021-06-23 | B126: LIBERTSHOE | C126: Liberty Shoes Ltd | D126: GRAVITON RESEARCH CAPITAL LLP | E126: SELL | F126: 270,850 | G126: 160.75 | H126: NSE
A127: 2021-06-23 | B127: LIBERTSHOE | C127: Liberty Shoes Ltd | D127: QE SECURITIES | E127: SELL | F127: 83,908 | G127: 159.92 | H127: NSE
A128: 2021-06-23 | B128: LIBERTSHOE | C128: Liberty Shoes Ltd | D128: XTX MARKETS LLP | E128: SELL | F128: 99,159 | G128: 160.28 | H128: NSE
A129: 2021-06-23 | B129: MCDHOLDING | C129: McDowell Holdings Limited | D129: PADRONE MARKETING PVT LTD | E129: SELL | F129: 106,311 | G129: 68.45 | H129: NSE
A130: 2021-06-23 | B130: MOKSH | C130: Moksh Ornaments Limited | D130: ANUPAM NARAIN GUPTA | E130: SELL | F130: 100,000 | G130: 82.95 | H130: NSE
A131: 2021-06-23 | B131: ORTINLAB | C131: Ortin Laboratories Ltd | D131: KAMLESH NATWARLAL SHAH | E131: SELL | F131: 54,412 | G131: 38.56 | H131: NSE
A132: 2021-06-23 | B132: ORTINLAB | C132: Ortin Laboratories Ltd | D132: DASARI CHANDRASEKHAR | E132: SELL | F132: 54,000 | G132: 38.51 | H132: NSE
A133: 2021-06-23 | B133: RAMCOSYS | C133: Ramco Systems Limited | D133: XTX MARKETS LLP | E133: SELL | F133: 176,168 | G133: 615.68 | H133: NSE
A134: 2021-06-23 | B134: REFEX | C134: Refex Industries Limited | D134: GRAVITON RESEARCH CAPITAL LLP | E134: SELL | F134: 135,153 | G134: 156.71 | H134: NSE
A135: 2021-06-23 | B135: REFEX | C135: Refex Industries Limited | D135: EKTA MANAVADARIYA | E135: SELL | F135: 129,648 | G135: 157.29 | H135: NSE
A136: 2021-06-23 | B136: RELCAPITAL | C136: Reliance Capital Limited | D136: CHETAN RASIKLAL SHAH | E136: SELL | F136: 1,276,979 | G136: 29.57 | H136: NSE
A137: 2021-06-23 | B137: RELCAPITAL | C137: Reliance Capital Limited | D137: MANSI SHARES & STOCK ADVISORS PVT LTD | E137: SELL | F137: 1,318,556 | G137: 29.83 | H137: NSE
A138: 2021-06-23 | B138: RIIL | C138: Reliance Indl Infra Ltd | D138: QE SECURITIES | E138: SELL | F138: 85,610 | G138: 828.67 | H138: NSE
A139: 2021-06-23 | B139: SATIA | C139: Satia Industries Limited | D139: OLGA TRADING PRIVATE LIMITED | E139: SELL | F139: 638,405 | G139: 89.75 | H139: NSE
A140: 2021-06-23 | B140: SHIVAMILLS | C140: Shiva Mills Limited | D140: ASHMAVIR FINANCIAL CONSULTANTS PVT LTD | E140: SELL | F140: 23,885 | G140: 80.15 | H140: NSE
A141: 2021-06-23 | B141: SHRADHA | C141: Shradha Infraprojects Ltd | D141: NAMRATA SAJANKUMAR BAJAJ | E141: SELL | F141: 90,001 | G141: 54.5 | H141: NSE
A142: 2021-06-23 | B142: SKMEGGPROD | C142: SKM Egg Products Export | D142: J AND J INVESTMENTS | E142: SELL | F142: 144,007 | G142: 94.81 | H142: NSE
A143: 2021-06-23 | B143: SKMEGGPROD | C143: SKM Egg Products Export | D143: XTX MARKETS LLP | E143: SELL | F143: 183,108 | G143: 94.48 | H143: NSE
A144: 2021-06-23 | B144: SKMEGGPROD | C144: SKM Egg Products Export | D144: GRAVITON RESEARCH CAPITAL LLP | E144: SELL | F144: 304,480 | G144: 94.77 | H144: NSE
A145: 2021-06-23 | B145: SOUTHBANK | C145: South Indian Bank Ltd. | D145: HI GROWTH CORPORATE SERVICES PVT LTD | E145: SELL | F145: 11,295,000 | G145: 13.13 | H145: NSE
A146: 2021-06-23 | B146: TWL | C146: Titagarh Wagons Limited | D146: GRAVITON RESEARCH CAPITAL LLP | E146: SELL | F146: 700,209 | G146: 65.45 | H146: NSE
A147: 2021-06-23 | B147: UFO | C147: UFO Moviez India Ltd. | D147: QE SECURITIES | E147: SELL | F147: 260,243 | G147: 94.45 | H147: NSE
A148: 2021-06-23 | B148: UFO | C148: UFO Moviez India Ltd. | D148: M/S. PRARTHANA ENTERPRISES | E148: SELL | F148: 471,004 | G148: 93.85 | H148: NSE
A149: 2021-06-23 | B149: UFO | C149: UFO Moviez India Ltd. | D149: PARTH INFIN BROKERS PVT LTD | E149: SELL | F149: 493,800 | G149: 95.38 | H149: NSE
A150: 2021-06-23 | B150: UFO | C150: UFO Moviez India Ltd. | D150: KORADIYA MILE STONE PRIVATE LIMITED . | E150: SELL | F150: 150,001 | G150: 95.56 | H150: NSE
A151: 2021-06-23 | B151: UFO | C151: UFO Moviez India Ltd. | D151: GRAVITON RESEARCH CAPITAL LLP | E151: SELL | F151: 804,127 | G151: 94.66 | H151: NSE
A152: 2021-06-23 | B152: UFO | C152: UFO Moviez India Ltd. | D152: SHAH CHETAN RASIKLAL | E152: SELL | F152: 175,000 | G152: 96.59 | H152: NSE
A153: 2021-06-23 | B153: UFO | C153: UFO Moviez India Ltd. | D153: AVENUE CONSULTANCY | E153: SELL | F153: 125,000 | G153: 95.5 | H153: NSE
A154: 2021-06-23 | B154: UFO | C154: UFO Moviez India Ltd. | D154: P 5 ASIA HOLDING INVESTMENTS (MAURITIUS) LIMITED | E154: SELL | F154: 2,134,452 | G154: 92.55 | H154: NSE
A155: 2021-06-23 | B155: UFO | C155: UFO Moviez India Ltd. | D155: B.W.TRADERS | E155: SELL | F155: 89,852 | G155: 95.88 | H155: NSE
A156: 2021-06-23 | B156: UFO | C156: UFO Moviez India Ltd. | D156: SETU SECURITIES PRIVATE LIMITED | E156: SELL | F156: 65,079 | G156: 96.8 | H156: NSE
A157: 2021-06-23 | B157: UFO | C157: UFO Moviez India Ltd. | D157: SECURE SHANTI ADVISORY LLP | E157: SELL | F157: 194,071 | G157: 95.66 | H157: NSE
A158: 2021-06-23 | B158: UFO | C158: UFO Moviez India Ltd. | D158: GOENKA BUSINESS AND FINANCE LIMITED | E158: SELL | F158: 200,000 | G158: 97.28 | H158: NSE
A159: 2021-06-23 | B159: UTTAMSTL | C159: Uttam Galva Steels Limite | D159: SAINATH TRADING COMPANY PRIVATE LIMITED . | E159: SELL | F159: 2,151,169 | G159: 5.82 | H159: NSE
A160: 2021-06-23 | B160: UTTAMSTL | C160: Uttam Galva Steels Limite | D160: FOODVILLE HOSPITALITY SERVICES PVT LTD | E160: SELL | F160: 918,201 | G160: 6.29 | H160: NSE
A161: 2021-06-23 | B161: UTTAMSTL | C161: Uttam Galva Steels Limite | D161: GODHAR RAJENDRA GANGARAM | E161: SELL | F161: 447,279 | G161: 5.97 | H161: NSE
A162: 2021-06-23 | B162: UTTAMSTL | C162: Uttam Galva Steels Limite | D162: RUTANSHU BHASKARBHAI VYAS | E162: SELL | F162: 607,464 | G162: 5.97 | H162: NSE
A163: 2021-06-23 | B163: VAISHALI | C163: Vaishali Pharma Limited | D163: NK SECURITIES RESEARCH PRIVATE LIMITED | E163: SELL | F163: 64,955 | G163: 44.58 | H163: NSE
A164: 2021-06-23 | B164: VENKEYS | C164: Venky's (India) Limited | D164: CHANDARANA INTERMEDIARIES BROKERS PRIVATE LIMITED | E164: SELL | F164: 85,023 | G164: 3727.83 | H164: NSE
A165: 2021-06-23 | B165: VENKEYS | C165: Venky's (India) Limited | D165: GRAVITON RESEARCH CAPITAL LLP | E165: SELL | F165: 317,333 | G165: 3728.06 | H165: NSE
A166: 2021-06-23 | B166: VENKEYS | C166: Venky's (India) Limited | D166: XTX MARKETS LLP | E166: SELL | F166: 314,145 | G166: 3725.79 | H166: NSE
A167: 2021-06-23 | B167: VENKEYS | C167: Venky's (India) Limited | D167: GOLDMINE STOCKS PRIVATE LIMITED | E167: SELL | F167: 98,213 | G167: 3719.39 | H167: NSE
A168: 2021-06-23 | B168: VENKEYS | C168: Venky's (India) Limited | D168: NUMIV RESEARCH PRIVATE LIMITED | E168: SELL | F168: 90,698 | G168: 3691.55 | H168: NSE
A169: 2021-06-23 | B169: VENKEYS | C169: Venky's (India) Limited | D169: VAIBHAV STOCK AND DERIVATIVES BROKING PRIVATE LIMITED | E169: SELL | F169: 243,498 | G169: 3750.61 | H169: NSE
A170: 2021-06-23 | B170: VENKEYS | C170: Venky's (India) Limited | D170: NK SECURITIES RESEARCH PRIVATE LIMITED | E170: SELL | F170: 299,598 | G170: 3728.36 | H170: NSE
A171: 2021-06-23 | B171: VERTOZ | C171: Vertoz Advertising Ltd | D171: OLGA TRADING PRIVATE LIMITED | E171: SELL | F171: 65,310 | G171: 191.65 | H171: NSE

Sheet Call Tracker (Equity & F&O)
M5: Back To Main Page
A6: Retail Research Technical Calls & Fundamental Performance Report for the month of June-2021
M7: =Main!B10 -> 2021-06-24
B8: Positional Call
A9: Sr.no | B9: Date | D9: Company | E9: Rec | F9: Rec Price | G9: Stop Loss*** | H9: Call Closed At | I9: Target | J9: Remark | K9: Profit / Loss per Share | L9: All charges | M9: Net Gain / Loss % | N9: Status | O9: Closed Date
A10: 1 | B10: 2021-04-05 | D10: HDFCBANK | E10: Buy | F10: 1465-1475 | G10: 1370 | I10: 1600-1700 | J10: Open | R10: H
A11: 2 | B11: 2021-05-03 | D11: HDFCLIFE | E11: Buy | F11: 663 | G11: 619 | H11: 703.5 | I11: 720-740 | J11: Profit of Rs.40.5/- | K11: =H11-F11 -> 40.5 | L11: =(F11*-0.8)/100 -> -5.30 | M11: =(K11+L11)/F11 -> 5.31% | N11: Successful | O11: 2021-06-17 | R11: H
A12: 3 | B12: 2021-05-26 | D12: JKCEMENT | E12: Buy | F12: 2830-2850 | G12: 2650 | I12: 3100-3200 | J12: Open | R12: H
A13: 4 | B13: 2021-05-27 | D13: BHARTIARTL | E13: Buy | F13: 522.5 | G13: 488 | H13: 544 | I13: 590-610 | J13: Part Profit of Rs.21.5/- | K13: =H13-F13 -> 21.5 | L13: =(F13*-0.8)/100 -> -4.18 | M13: =(K13+L13)/F13 -> 3.31% | N13: Successful | O13: 2021-06-08 | R13: H
A14: 5 | B14: 2021-05-31 | D14: RELIANCE | E14: Buy | F14: 2085 | G14: 1970 | H14: 2,245.00 | I14: 2250-2300 | J14: Profit of Rs.160/- | K14: =H14-F14 -> 160 | L14: =(F14*-0.8)/100 -> -16.68 | M14: =(K14+L14)/F14 -> 6.87% | N14: Successful | O14: 2021-06-03 | R14: H
A15: 6 | B15: 2021-06-01 | D15: HEROMOTOCO | E15: Buy | F15: 2965-2985 | G15: 2790 | I15: 3300-3350 | J15: Open | R15: H
A16: 7 | B16: 2021-06-02 | D16: SFL | E16: Buy | F16: 2035 | G16: 1895 | H16: 2,195.00 | I16: 2250-2300 | J16: Profit of Rs.160/- | K16: =H16-F16 -> 160 | L16: =(F16*-0.8)/100 -> -16.28 | M16: =(K16+L16)/F16 -> 7.06% | N16: Successful | O16: 2021-06-04 | R16: H
A17: 8 | B17: 2021-06-03 | D17: HUHTAMAKI | E17: Buy<> | F17: 292 | G17: 275 | H17: 306.5 | I17: 317-327 | J17: Part Profit of Rs.14.5/- | K17: =H17-F17 -> 14.5 | L17: =(F17*-0.8)/100 -> -2.34 | M17: =(K17+L17)/F17 -> 4.17% | N17: Successful | O17: 2021-06-04 | R17: H
A18: 9 | B18: 2021-06-10 | D18: BRITANNIA | E18: Buy | F18: 3570-3600 | G18: 3345 | I18: 3900-4000 | J18: Open | R18: H
A19: 10 | B19: 2021-06-14 | D19: IRCTC | E19: Buy | F19: 2050-2065 | G19: 1930 | I19: 2250-2300 | J19: Open | R19: H
A20: 11 | B20: 2021-06-15 | D20: PRSMJOHNSN | E20: Buy | F20: 130-132 | G20: 123 | I20: 150 | J20: Open | R20: N
A21: 12 | B21: 2021-06-16 | D21: ESCORTS | E21: Buy | F21: 1190-1205 | G21: 1119 | I21: 1300-1350 | J21: Open | R21: H
A22: 13 | B22: 2021-06-16 | D22: HERANBA | E22: Buy | F22: 760 | G22: 710 | H22: 710.00 | I22: 830-860 | J22: Loss of Rs.50/- | K22: =H22-F22 -> -50 | L22: =(F22*-0.7)/100 -> -5.32 | M22: =(K22+L22)/F22 -> -7.28% | N22: Unsuccessful | O22: 2021-06-18 | R22: N
A27: CLBS = Closing Basis ***
A28: Dividend adjusted <> | F28: Reinitiated $
A29: Part book {} | F29: Revised stoploss #
B31: Momentum Call
A32: Sr.no | B32: Date | D32: Company | E32: Rec | F32: Rec Price | G32: Stop Loss | H32: Call Closed At | I32: Target | J32: Remark | K32: Profit / Loss per Share/Lot | L32: All charges | M32: Net Gain / Loss % | N32: Status | O32: Closed Date
A33: 1 | B33: 2021-05-21 | D33: BEML | E33: Buy | F33: 1314 | G33: 1275 | H33: 1352 | I33: 1380-1400 | J33: Profit of Rs.38/- | K33: =H33-F33 -> 38 | L33: =(F33*-0.7)/100 -> -9.20 | M33: =(K33+L33)/F33 -> 2.19% | N33: Successful | O33: 2021-06-03 | R33: N
A34: 2 | B34: 2021-05-25 | D34: EXIDEIND | E34: Buy | F34: 190.5 | G34: 185 | H34: 195.5 | I34: 200-205 | J34: Profit of Rs.5/- | K34: =H34-F34 -> 5 | L34: =(F34*-0.7)/100 -> -1.33 | M34: =(K34+L34)/F34 -> 1.92% | N34: Successful | O34: 2021-06-07 | R34: H
A35: 3 | B35: 2021-05-28 | D35: TVSMOTOR | E35: Buy | F35: 636.5 | G35: 615 | H35: 614 | I35: 665-675 | J35: Loss of Rs.22.5/- | K35: =H35-F35 -> -22.5 | L35: =(F35*-0.7)/100 -> -4.46 | M35: =(K35+L35)/F35 -> -4.23% | N35: Unsuccessful | O35: 2021-06-01 | R35: N
A36: 4 | B36: 2021-06-01 | D36: SBIN | E36: Buy | F36: 431 | G36: 418 | H36: 418 | I36: 450-455 | J36: Loss of Rs.13/- | K36: =H36-F36 -> -13 | L36: =(F36*-0.7)/100 -> -3.02 | M36: =(K36+L36)/F36 -> -3.72% | N36: Unsuccessful | O36: 2021-06-18 | R36: H
A37: 5 | B37: 2021-06-03 | D37: AMARAJABAT | E37: Buy | F37: 745 | G37: 725 | H37: 764 | I37: 780-790 | J37: Profit of Rs.19/- | K37: =H37-F37 -> 19 | L37: =(F37*-0.7)/100 -> -5.22 | M37: =(K37+L37)/F37 -> 1.85% | N37: Successful | O37: 2021-06-07 | R37: H
A38: 6 | B38: 2021-06-03 | D38: ESCORTS | E38: Buy | F38: 1195 | G38: 1160 | H38: 1217.5 | I38: 1240-1250 | J38: Profit of Rs.22.5/- | K38: =H38-F38 -> 22.5 | L38: =(F38*-0.07)/100 -> -0.84 | M38: =(K38+L38)/F38 -> 1.81% | N38: Successful | O38: 2021-06-03 | R38: H
A39: 7 | B39: 2021-06-07 | D39: IBULHSGFIN | E39: Buy | F39: 253 | G39: 245 | H39: 261 | I39: 265-270 | J39: Profit of Rs.8/- | K39: 8 | L39: =(F39*-0.7)/100 -> -1.77 | M39: 2.46% | N39: Successful | O39: 2021-06-09 | R39: H
A40: 8 | B40: 2021-06-08 | D40: IEX | E40: Buy | F40: 361 | G40: 349 | H40: 368 | I40: 375-380 | J40: Profit of Rs.7/- | K40: =H40-F40 -> 7 | L40: =(F40*-0.07)/100 -> -0.25 | M40: =(K40+L40)/F40 -> 1.87% | N40: Successful | O40: 2021-06-08 | R40: H
A41: 9 | B41: 2021-06-09 | D41: IRCTC | E41: Buy | F41: 2119 | G41: 2045 | H41: 2045 | I41: 2200-2250 | J41: Loss of Rs.74/- | K41: -74 | L41: =(F41*-0.7)/100 -> -14.83 | M41: -4.19% | N41: Unsuccessful | O41: 2021-06-14 | R41: H
A42: 10 | B42: 2021-06-10 | D42: AMBER | E42: Buy | F42: 2840 | G42: 2760 | H42: 2760 | I42: 2980-3020 | J42: Loss of Rs.80/- | K42: -80 | L42: -19.88 | M42: -3.52% | N42: Unsuccessful | O42: 2021-06-14 | R42: H
A43: 11 | B43: 2021-06-14 | D43: RECLTD | E43: Buy | F43: 158.25 | G43: 153.5 | H43: 153 | I43: 165-170 | J43: Loss of Rs.5.25/- | K43: =H43-F43 -> -5.25 | L43: -1.11 | M43: =(K43+L43)/F43 -> -4.02% | N43: Unsuccessful | O43: 2021-06-17 | R43: H
A44: 12 | B44: 2021-06-15 | D44: CARBORUNIV | E44: Buy | F44: 580 | G44: 562 | H44: 596 | I44: 610-620 | J44: Profit of Rs.16/- | K44: 16 | L44: -4.06 | M44: 2.06% | N44: Successful | O44: 2021-06-18 | R44: H
A45: 13 | B45: 2021-06-16 | D45: MIDHANI | E45: Buy | F45: 210.5 | G45: 205 | H45: 204 | I45: 220-224 | J45: Loss of Rs.6.5/- | K45: =H45-F45 -> -6.5 | L45: -1.47 | M45: =(K45+L45)/F45 -> -3.79% | N45: Unsuccessful | O45: 2021-06-18 | R45: H
A46: 14 | B46: 2021-06-21 | D46: SIEMENS | E46: Buy | F46: 1990 | G46: 1940 | H46: 2045 | I46: 2070-2090 | J46: Profit of Rs.55/- | K46: 55 | L46: -13.93 | M46: 2.06% | N46: Successful | O46: 2021-06-23 | R46: H
A47: 15 | B47: 2021-06-21 | D47: CARBORUNIV | E47: Buy | F47: 583-587 | G47: 567 | I47: 610-620 | J47: Open | R47: H
A48: 16 | B48: 2021-06-23 | D48: GICHSGFIN | E48: Buy | F48: 150.5-151.5 | G48: 146 | I48: 164 | J48: Open | R48: N
A57: CLBS = Closing Basis *** | H57: *
A58: Dividend adjusted <> | F58: Reinitiated $
F59: Revised stoploss #
A61: Master Trade High Risk
A62: Sr.no | B62: Date | D62: Company | E62: Rec | F62: Rec Price | G62: Stop Loss | H62: Call Closed At | I62: Target | J62: Remark | K62: Profit / Loss per share | L62: All charges | M62: Gain / Loss per Lot | N62: Lot | O62: Status | P62: Closed Date
A63: 1 | B63: 2021-05-27 | D63: HINDUNILVR JUNE FUT | E63: Buy | F63: 2330 | G63: 2285 | H63: 2361 | I63: 2390-2410 | J63: Profit of Rs.31/- | K63: =H63-F63 -> 31 | L63: =(H63*N63)*0.07% -> 495.81 | M63: =(K63*N63)-L63 -> 8804.2 | N63: 300 | O63: Successful | P63: 2021-06-02 | R63: H
A64: 2 | B64: 2021-06-02 | D64: HDFCLIFE JUNE FUT | E64: Buy | F64: 678.5 | G64: 668 | H64: 685.5 | I64: 695-700 | J64: Profit of Rs.7/- | K64: 7 | L64: 527.84 | M64: 7172.2 | N64: 1100 | O64: Successful | P64: 2021-06-03 | R64: H
A65: 3 | B65: 2021-06-02 | D65: PEL JUNE FUT | E65: Buy | F65: 1840 | G65: 1794 | H65: 1868.5 | I65: 1910-1930 | J65: Profit of Rs.28.5/- | K65: =H65-F65 -> 28.5 | L65: =(H65*N65)*0.07% -> 359.69 | M65: =(K65*N65)-L65 -> 7477.8 | N65: 275 | O65: Successful | P65: 2021-06-03 | R65: H
A66: 4 | B66: 2021-06-02 | D66: NAUKRI JUNE FUT | E66: Buy | F66: 4530 | G66: 4440 | H66: 4630 | I66: 4700-4750 | J66: Profit of Rs.100/- | K66: =H66-F66 -> 100 | L66: =(H66*N66)*0.07% -> 405.13 | M66: =(K66*N66)-L66 -> 12094.9 | N66: 125 | O66: Successful | P66: 2021-06-03 | R66: H
A67: 5 | B67: 2021-06-04 | D67: HINDUNILVR JUNE FUT | E67: Buy | F67: 2334 | G67: 2289 | H67: 2362 | I67: 2380-2400 | J67: Profit of Rs.28/- | K67: 28 | L67: 496.02 | M67: 7904.0 | N67: 300 | O67: Successful | P67: 2021-06-09 | R67: H
A68: 6 | B68: 2021-06-07 | D68: ESCORTS JUNE FUT | E68: Buy | F68: 1221 | G68: 1197 | H68: 1200 | I68: 1250-1260 | J68: Loss of Rs.21/- | K68: -21 | L68: 462.00 | M68: -12012.0 | N68: 550 | O68: Unsuccessful | P68: 2021-06-09 | R68: H
A69: 7 | B69: 2021-06-08 | D69: NAUKRI JUNE FUT | E69: Buy | F69: 4650 | G69: 4540 | H69: 4580 | I69: 4800-4850 | J69: Loss of Rs.70/- | K69: =H69-F69 -> -70 | L69: =(H69*N69)*0.07% -> 400.75 | M69: =(K69*N69)-L69 -> -9150.8 | N69: 125 | O69: Unsuccessful | P69: 2021-06-09 | R69: H
A70: 8 | B70: 2021-06-08 | D70: HCLTECH JUNE FUT | E70: Buy | F70: 968 | G70: 949 | H70: 980 | I70: 990-1000 | J70: Profit of Rs.12/- | K70: =H70-F70 -> 12 | L70: =(H70*N70)*0.07% -> 480.20 | M70: =(K70*N70)-L70 -> 7919.8 | N70: 700 | O70: Successful | P70: 2021-06-09 | R70: H
A71: 9 | B71: 2021-06-11 | C71: HEROMOTOCO APRIL FUT | D71: RELIANCE JUNE FUT | E71: Buy | F71: 2216 | G71: 2145 | H71: 2255 | I71: 2300 | J71: Porfit of Rs.43.5/- | K71: =H71-F71 -> 39.00 | L71: 394.63 | M71: =(43.5*250)-494.63 -> 10380.37 | N71: 250 | O71: Successful | P71: 2021-06-22 | R71: H
C72: HEROMOTOCO APR 3050 CE | D72: RELIANCE 2260 CE | E72: Sell | F72: 37 | H72: 32.5 | K72: 4.50 | L72: 100.00 | R72: H
A73: 10 | B73: 2021-06-14 | C73: HEROMOTOCO APRIL FUT | D73: DRREDDY JUNE FUT | E73: Buy | F73: 5440 | G73: 5295 | H73: 5295 | I73: 5700 | J73: Loss of Rs.89/- | K73: =H73-F73 -> -145.00 | L73: =(H73*N73)*0.07% -> 463.31 | M73: =(-89*N73)-563.31 -> -11688.31 | N73: 125 | O73: Unsuccessful | P73: 2021-06-17 | R73: H
C74: HEROMOTOCO APR 3050 CE | D74: DRREDDY 5600 CE | E74: Sell | F74: 74 | G74: 18 | K74: =F74-G74 -> 56.00 | L74: 100.00 | R74: H
A75: 11 | B75: 2021-06-15 | D75: TECHM JUN FUT | E75: Buy | F75: 1071 | G75: 1050 | H75: 1084 | I75: 1100-1110 | J75: Profit of Rs.13/- | K75: =H75-F75 -> 13 | L75: =(H75*N75)*0.07% -> 455.28 | M75: =(K75*N75)-L75 -> 7344.7 | N75: 600 | O75: Successful | P75: 2021-06-17 | R75: H
A76: 12 | B76: 2021-06-18 | C76: HEROMOTOCO APRIL FUT | D76: NIFTY JUNE FUT | E76: Buy | F76: 15500 | G76: 15370 | H76: 15595 | I76: 15700 | J76: Porfit of Rs.80/- | K76: =H76-F76 -> 95.00 | L76: 818.74 | M76: =(80*N76)-918.74 -> 5081.26 | N76: 75 | O76: Successful | P76: 2021-06-18 | R76: H
C77: HEROMOTOCO APR 3050 CE | D77: NIFTY 15600 CE | E77: Sell | F77: 102.5 | H77: 117.5 | K77: =F77-H77 -> -15.00 | L77: 100.00 | R77: H
A78: 13 | B78: 2021-06-18 | D78: TATASTEEL JUN FUT | E78: Buy | F78: 1076 | G78: 1060 | H78: 1086 | I78: 1100-1110 | J78: Profit of Rs.10/- | K78: =H78-F78 -> 10 | L78: =(H78*N78)*0.07% -> 646.17 | M78: =(K78*N78)-L78 -> 7853.8 | N78: 850 | O78: Successful | P78: 2021-06-18 | R78: H
A79: 14 | B79: 2021-06-18 | D79: HCLTECH JUN FUT | E79: Buy | F79: 980-982 | G79: 962 | I79: 1010-1020 | J79: Open | R79: N
A86: Master Trade Medium Risk
A87: Sr.no | B87: Date | D87: Company | E87: Rec | F87: Rec Price | G87: Stop Loss | H87: Call Closed At | I87: Target | J87: Remark | K87: Profit/ Loss per lot | L87: All charges | M87: Gain / Loss per Lot | N87: Lot | O87: Status | P87: Closed Date
A88: 1 | B88: 2021-05-28 | D88: M&MFIN 185 CE JUNE | E88: Sell | F88: 2.55 | G88: 3.8 | H88: 1.4 | I88: 0.1 | J88: Profit of Rs.1.15/- | K88: =F88-H88 -> 1.15 | L88: 100 | M88: =(K88*N88)-L88 -> 4500.0 | N88: 4000 | O88: Successful | P88: 2021-06-14 | R88: N
A89: 2 | B89: 2021-05-31 | D89: NIFTY 15600 CE 3 JUNE | E89: Buy | F89: 64 | G89: 17 | H89: 76 | I89: 100-120 | J89: Profit of Rs.12/- | K89: =H89-F89 -> 12 | L89: 100 | M89: 800.0 | N89: 75 | O89: Successful | P89: 2021-06-01 | R89: H
A90: 3 | B90: 2021-06-02 | D90: NIFTY 15500 CE 3 JUNE | E90: Buy | F90: 57.5 | G90: 17 | H90: 71.5 | I90: 100-110 | J90: Profit of Rs.14/- | K90: 14 | L90: 100 | M90: 950.0 | N90: 75 | O90: Successful | P90: 2021-06-02 | R90: H
A91: 4 | B91: 2021-06-07 | D91: IRCTC 2200 CE JUNE | E91: Buy | F91: 40.5 | G91: 27 | H91: 52.5 | I91: 55-60 | J91: Profit of Rs.12/- | K91: 12 | L91: 100 | M91: 3800.0 | N91: 325 | O91: Successful | P91: 2021-06-07 | R91: H
A92: 5 | B92: 2021-06-09 | D92: TECHM 1080 CE JUNE | E92: Buy | F92: 18 | G92: 9 | H92: 22 | I92: 28-32 | J92: Profit of Rs.4/- | K92: 4 | L92: 100 | M92: 2300.0 | N92: 600 | O92: Successful | P92: 2021-06-10 | R92: H
A93: 6 | B93: 2021-06-10 | D93: NIFTY 15550 PE 17 JUNE | E93: Buy | F93: 63.5 | G93: 17 | H93: 17 | I93: 110-120 | J93: Loss of Rs.46.5/- | K93: -46.5 | L93: 100 | M93: -3587.5 | N93: 75 | O93: Unsuccessful | P93: 2021-06-14 | R93: H
A94: 7 | B94: 2021-06-11 | D94: GRANULES 350 CE JUNE | E94: Buy | F94: 8.25 | G94: 4.5 | H94: 4.5 | I94: 14-16 | J94: Loss of Rs.3.75/- | K94: -3.75 | L94: 100 | M94: =(K94*N94)-L94 -> -5912.5 | N94: 1550 | O94: Unsuccessful | P94: 2021-06-16 | R94: H
A95: 8 | B95: 2021-06-15 | D95: M&MFIN 190 CE JUNE | E95: Sell | F95: 2.1 | G95: 3.6 | H95: 0.95 | I95: 0.1 | J95: Profit of Rs.1.15/- | K95: =F95-H95 -> 1.15 | L95: 100 | M95: =(K95*N95)-L95 -> 4500.0 | N95: 4000 | O95: Successful | P95: 2021-06-16 | R95: N
A96: 9 | B96: 2021-06-15 | D96: BANKNIFTY 35000 PE 17 JUNE | E96: Buy | F96: 145 | G96: 40 | H96: 210 | I96: 300-350 | J96: Profit of Rs.65/- | K96: =H96-F96 -> 65 | L96: 100 | M96: =(K96*N96)-L96 -> 1525.0 | N96: 25 | O96: Successful | P96: 2021-06-16 | R96: N
A97: 10 | B97: 2021-06-15 | D97: PETRONET 245 CE JUNE | E97: Sell | F97: 2.45 | G97: 4 | H97: 1.45 | I97: 0.1 | J97: Profit of Rs.1/- | K97: =F97-H97 -> 1 | L97: 100 | M97: 2900.0 | N97: 3000 | O97: Successful | P97: 2021-06-16 | R97: H
A98: 11 | B98: 2021-06-16 | D98: HDFCBANK 1500 CE JUNE | E98: Buy | F98: 21.5 | G98: 11 | H98: 12 | I98: 40 | J98: Loss of Rs.9.5/- | K98: =H98-F98 -> -9.5 | L98: 100 | M98: -5325.0 | N98: 550 | O98: Unsuccessful | P98: 2021-06-17 | R98: N
A99: 12 | B99: 2021-06-17 | D99: BANKNIFTY 35000 CE 24 JUNE | E99: Buy | F99: 340 | G99: 190 | H99: 190 | I99: 550-600 | J99: Loss of Rs.150/- | K99: =H99-F99 -> -150 | L99: 100 | M99: -3850.0 | N99: 25 | O99: Unsuccessful | P99: 2021-06-18 | R99: H
A100: 13 | B100: 2021-06-17 | D100: RELIANCE 2220 CE JUNE | E100: Buy | F100: 39 | G100: 18 | H100: 45.5 | I100: 75-85 | J100: Profit of Rs.6.5/- | K100: =H100-F100 -> 6.5 | L100: 100 | M100: =(K100*N100)-L100 -> 1525.0 | N100: 250 | O100: Successful | P100: 2021-06-17 | R100: H
A101: 14 | B101: 2021-06-17 | D101: NIFTY 15650 CE 17-JUNE | E101: Buy | F101: 13.5 | H101: 26 | I101: 40 | J101: Profit of Rs.12.5/- | K101: =H101-F101 -> 12.5 | L101: 100 | M101: =(K101*N101)-L101 -> 837.5 | N101: 75 | O101: Successful | P101: 2021-06-17 | R101: N
A102: 15 | B102: 2021-06-18 | D102: M&MFIN 180 CE JUN | E102: Sell | F102: 1.2 | G102: 2.25 | H102: 0.1 | I102: 0.1 | J102: Profit of Rs.1.1/- | K102: =F102-H102 -> 1.1 | L102: 100 | M102: 4300.0 | N102: 4000 | O102: Successful | P102: 2021-06-22 | R102: N
A103: 16 | B103: 2021-06-18 | D103: RELIANCE 2160 PE JUN | E103: Sell | F103: 22 | G103: 37 | H103: 5.5 | I103: 0.1 | J103: Profit of Rs.16.5/- | K103: =F103-H103 -> 16.5 | L103: 100 | M103: 4025.0 | N103: 250 | O103: Successful | P103: 2021-06-22 | R103: H
A104: 17 | B104: 2021-06-18 | D104: POWERGRID 220 PE JUN | E104: Sell | F104: 1.05 | G104: 1.8 | H104: 0.45 | I104: 0.1 | J104: Profit of Rs.0.60/- | K104: =F104-H104 -> 0.6 | L104: 100 | M104: =(K104*N104)-L104 -> 2300.0 | N104: 4000 | O104: Successful | P104: 2021-06-21 | R104: H
A105: 18 | B105: 2021-06-18 | D105: TECHM 1060 PE JUNE | E105: Sell | F105: 13 | G105: 22 | H105: 7.5 | I105: 0.1 | J105: Profit of Rs.5.5/- | K105: =F105-H105 -> 5.5 | L105: 100 | M105: 3200.0 | N105: 600 | O105: Successful | P105: 2021-06-22 | R105: H
A106: 19 | B106: 2021-06-18 | D106: NIFTY 15800 CE JUNE | E106: Sell | F106: 56 | G106: 88 | H106: 17.5 | I106: 0.1 | J106: Profit of Rs.38.5/- | K106: =F106-H106 -> 38.5 | L106: 100 | M106: =(K106*N106)-L106 -> 2787.5 | N106: 75 | O106: Successful | P106: 2021-06-21 | R106: H
A107: 20 | B107: 2021-06-21 | D107: VOLTAS 1020 CE JUN | E107: Buy | F107: 12.5 | G107: 4 | H107: 13.5 | I107: 20-25 | J107: Profit of Rs.1/- | K107: =H107-F107 -> 1 | L107: 100 | M107: 400.0 | N107: 500 | O107: Successful | P107: 2021-06-23 | R107: H
A108: 21 | B108: 2021-06-21 | D108: KOTAKBANK 1760 CE JUN | E108: Buy | F108: 16 | G108: 5 | H108: 21 | I108: 30-35 | J108: Profit of Rs.5/- | K108: =H108-F108 -> 5 | L108: 100 | M108: =(K108*N108)-L108 -> 1900.0 | N108: 400 | O108: Successful | P108: 2021-06-21 | R108: N
A109: 22 | B109: 2021-06-21 | D109: RBLBANK 215 CE JUN | E109: Sell | F109: 2.4 | G109: 3.9 | H109: 1.6 | I109: 0.1 | J109: Profit of Rs.0.80/- | K109: =F109-H109 -> 0.8 | L109: 100 | M109: 2220.0 | N109: 2900 | O109: Successful | P109: 2021-06-22 | R109: H
A110: 23 | B110: 2021-06-21 | D110: NIFTY 15800 CE JUNE | E110: Sell | F110: 52.5 | G110: 85 | H110: 85 | I110: 0.1 | J110: Loss of Rs.32.5/- | K110: =F110-H110 -> -32.5 | L110: 100 | M110: =(K110*N110)-L110 -> -2537.5 | N110: 75 | O110: Unsuccessful | P110: 2021-06-22 | R110: H
A111: 24 | B111: 2021-06-21 | D111: NIFTY 15700 PE JUN | E111: Buy | F111: 81.5 | G111: 38 | H111: 64.5 | I111: 150 | J111: Loss of Rs.17/- | K111: =H111-F111 -> -17 | L111: 100 | M111: =(K111*N111)-L111 -> -1375.0 | N111: 75 | O111: Unsuccessful | P111: 2021-06-21 | R111: N
A112: 25 | B112: 2021-06-22 | D112: HINDUNILVR 2520 CE JUN | E112: Buy | F112: 18 | G112: 3 | H112: 25.5 | I112: 35-40 | J112: Profit of Rs.7.5/- | K112: 7.5 | L112: 100 | M112: 2150.0 | N112: 300 | O112: Successful | P112: 2021-06-22 | R112: N
A113: 26 | B113: 2021-06-22 | D113: KOTAKBANK 1780 CE JUN | E113: Buy | F113: 17 | G113: 5 | H113: 5 | I113: 30-35 | J113: Loss of Rs.12/- | K113: =H113-F113 -> -12 | L113: 100 | M113: =(K113*N113)-L113 -> -4900.0 | N113: 400 | O113: Unsuccessful | P113: 2021-06-23 | R113: N
A114: 27 | B114: 2021-06-22 | D114: HINDUNILVR 2500 CE JUN | E114: Buy | F114: 13 | H114: 19.5 | I114: 35 | J114: Profit of Rs.6.5/- | K114: =H114-F114 -> 6.5 | L114: 100 | M114: =(K114*N114)-L114 -> 1850.0 | N114: 300 | O114: Successful | P114: 2021-06-22 | R114: N
A115: 28 | B115: 2021-06-22 | D115: HINDUNILVR 2500 CE JUN | E115: Buy | F115: 13.5 | H115: 20 | I115: 35 | J115: Profit of Rs.6.5/- | K115: =H115-F115 -> 6.5 | L115: 100 | M115: =(K115*N115)-L115 -> 1850.0 | N115: 300 | O115: Successful | P115: 2021-06-23 | R115: N
A116: 29 | B116: 2021-06-22 | C116: HEROMOTOCO APRIL FUT | D116: RELIANCE 2220 CE JUN | E116: Buy | F116: 29-30 | J116: Open | R116: H
C117: HEROMOTOCO APR 3050 CE | D117: RELIANCE 2260 CE JUN | E117: Sell | F117: 17-18 | R117: H
A118: 30 | B118: 2021-06-23 | D118: HINDUNILVR 2500 CE JUN | E118: Buy | F118: 12-13.0 | I118: 25-30 | J118: Open | R118: N
A119: 31 | B119: 2021-06-23 | D119: NIFTY 15700 CE JUN | E119: Buy | F119: 60-63 | G119: 20 | I119: 120 | J119: Open | R119: N
A126: Techno -Funda (positional)
A127: Sr.no | B127: Date | D127: Company | E127: Rec | F127: Rec Price | G127: Stop Loss*** | H127: Call Closed At | I127: Target | J127: Remark | K127: Profit / Loss per Share/Lot | L127: All charges | M127: Net Gain / Loss % | N127: Status | O127: Closed Date
A128: 1 | B128: 2021-05-11 | D128: RITES | E128: Buy | F128: 239 | G128: 218 | H128: 264.00 | I128: 280-290 | J128: Profit of Rs.25/- | K128: =H128-F128 -> 25 | L128: =(F128*-0.8)/100 -> -1.91 | M128: =(K128+L128)/F128 -> 9.66% | N128: Successful | O128: 2021-06-07 | R128: H
A129: 2 | B129: 2021-06-16 | D129: WHIRLPOOL | E129: Buy | F129: 2260-2300 | G129: 2070 | I129: 2600-2700 | J129: Open | R129: H
A132: CLBS = Closing Basis *** | F132: Reinitiated $
A133: Dividend adjusted <> | F133: Revised stoploss #
B135: Intrday Call
A136: Sr.no | B136: Date | D136: Company | E136: Rec | F136: Rec Price | G136: Stop Loss | H136: Call Closed At | I136: Target | J136: Remark | K136: Profit / Loss per Share/Lot | L136: Gain / Loss per Lot | M136: Lot | N136: All charges | O136: Net Gain / Loss % | P136: Status | Q136: Closed Date
B149: Investment Idea
A150: Sr.no | B150: Date | D150: Company | E150: Rec | F150: Rec Price | G150: Point of Review | H150: Close Rate | I150: Target | J150: Remark | K150: Profit / Loss per Share | L150: Gain / Loss % | M150: Status | N150: Closed Date
A151: 1 | B151: 2013-11-01 | D151: L&T Finance Holding | E151: Accu | F151: 82.00 | G151: - | H151: 100 | I151: 100.00 | J151: Target Achieved | K151: =H151-F151 -> 18.00 | L151: =K151/F151 -> 21.95% | M151: Successful | N151: 2016-10-14
A152: 2 | B152: 2014-06-04 | D152: Finolex Inds | E152: Buy | F152: 257.00 | G152: - | H152: 300 | I152: 300.00 | J152: Target Achieved | K152: 43.00 | L152: 16.73% | M152: Successful | N152: 2014-07-02
A153: 3 | B153: 2014-07-08 | D153: JK Cement | E153: Buy | F153: 393.00 | G153: - | H153: 468 | I153: 468.00 | J153: Target Achieved | K153: 75.00 | L153: 19.08% | M153: Successful | N153: 2014-08-12
A154: 4 | B154: 2014-08-06 | D154: Finolex Cables | E154: Buy | F154: 205.00 | G154: - | H154: 275 | I154: 250.00 | J154: Target Achieved | K154: 70.00 | L154: 34.15% | M154: Successful | N154: 2014-11-19
A155: 5 | B155: 2014-09-04 | D155: Exide Inds | E155: Buy | F155: 162.00 | G155: - | H155: 190 | I155: 190.00 | J155: Target Achieved | K155: 28.00 | L155: 17.28% | M155: Successful | N155: 2015-01-02
A156: 6 | B156: 2014-09-04 | D156: Deepak Nitrite | E156: Buy | F156: 75.00 | G156: - | H156: 91.5 | I156: 95-100 | J156: Profit of Rs.16.50/- | K156: 16.50 | L156: 22.00% | M156: Successful | N156: 2014-11-11
A157: 7 | B157: 2014-10-01 | D157: Mercks | E157: Buy | F157: 850.00 | G157: - | H157: 982.5 | I157: 1050.00 | J157: Profit of Rs.132.50/- | K157: 132.50 | L157: 15.59% | M157: Successful | N157: 2015-02-04
A158: 8 | B158: 2014-10-01 | D158: Grindwell Norton | E158: Buy | F158: 475.00 | G158: - | H158: 515 | I158: 600.00 | J158: Profit of Rs.40/- | K158: 40.00 | L158: 8.42% | M158: Successful | N158: 2014-10-27
A159: 9 | B159: 2014-10-01 | D159: Snowman Logistics | E159: Buy | F159: 86.00 | G159: - | H159: 99 | I159: 140.00 | J159: Profit of Rs.13.00/- | K159: 13.00 | L159: 15.12% | M159: Successful | N159: 2014-10-27
A160: 10 | B160: 2014-10-14 | D160: Birla Corp | E160: Buy | F160: 496.60 | G160: - | H160: 621 | I160: 580.00 | J160: Target Achieved | K160: 124.40 | L160: 25.05% | M160: Successful | N160: 2016-08-23
A161: 11 | B161: 2014-10-14 | D161: Ultratech Cem | E161: Buy | F161: 2481.90 | G161: - | H161: 2840 | I161: 2870.00 | J161: Profit of Rs.358.10/- | K161: 358.10 | L161: 14.43% | M161: Successful | N161: 2015-01-13
A162: 12 | B162: 2014-10-16 | D162: Sintex Inds | E162: Buy | F162: 84.50 | G162: - | H162: 93 | I162: 110.00 | J162: Profit of Rs.8.50/- | K162: 8.50 | L162: 10.06% | M162: Successful | N162: 2014-10-27
A163: 13 | B163: 2014-10-16 | D163: HSIL | E163: Buy | F163: 401.00 | G163: - | H163: 428 | I163: 450.00 | J163: Profit of Rs.27.00/- | K163: 27.00 | L163: 6.73% | M163: Successful | N163: 2015-01-16
A164: 14 | B164: 2014-10-16 | D164: Eveready Inds | E164: Buy | F164: 101.00 | G164: - | H164: 112 | I164: 120.00 | J164: Profit of Rs.11.00/- | K164: 11.00 | L164: 10.89% | M164: Successful | N164: 2014-10-27
A165: 15 | B165: 2014-11-11 | D165: Pennar Inds | E165: Buy | F165: 59.00 | G165: - | H165: 76 | I165: 76.00 | J165: Target Achieved | K165: 17.00 | L165: 28.81% | M165: Successful | N165: 2017-10-24
A166: 16 | B166: 2014-11-11 | D166: Snowman Logistics | E166: Buy | F166: 99.00 | G166: - | H166: 120 | I166: 120.00 | J166: Profit of Rs.21/- | K166: 21.00 | L166: 21.21% | M166: Successful | N166: 2014-11-17
A167: 17 | B167: 2014-11-13 | D167: Dharamsi Morarji Chem | E167: Buy | F167: 22.00 | G167: - | H167: 33.55 | I167: 32.00 | J167: Profit of Rs 11.55/- | K167: 11.55 | L167: 52.50% | M167: Successful | N167: 2015-07-03
A168: 18 | B168: 2014-12-03 | D168: Tatachem | E168: Buy | F168: 440.00 | G168: - | H168: 520 | I168: 520.00 | J168: Profit of Rs 80.00/- | K168: 80.00 | L168: 18.18% | M168: Successful | N168: 2015-07-23
A169: 19 | B169: 2014-12-03 | D169: Advanta | E169: Buy | F169: 360.00 | G169: - | H169: 427 | I169: 425.00 | J169: Profit of Rs.67.00/- | K169: 67.00 | L169: 18.61% | M169: Successful | N169: 2015-02-23
A170: 20 | B170: 2015-01-08 | D170: GDL | E170: Buy | F170: 360.00 | G170: - | H170: 455 | I170: 420.00 | J170: Profit of Rs.95.00/- | K170: 95.00 | L170: 26.39% | M170: Successful | N170: 2015-01-20
A171: 21 | B171: 2015-01-08 | D171: NRB Bearing | E171: Buy | F171: 130.00 | H171: 175.5 | I171: 165.00 | J171: Profit of Rs 45.50/- | K171: 45.50 | L171: 35.00% | M171: Successful | N171: 2017-12-19
A172: 22 | B172: 2015-02-05 | D172: GSFC | E172: Accu | F172: 98.00 | H172: 120 | I172: 120.00 | J172: Target Achieved | K172: 22.00 | L172: 22.45% | M172: Successful | N172: 2017-01-18
A173: 23 | B173: 2015-02-05 | D173: Sundrmfast | E173: Accu | F173: 196.00 | H173: 262 | I173: 255.00 | J173: Target Achieved | K173: 66.00 | L173: 33.67% | M173: Successful | N173: 2016-08-17
A174: 24 | B174: 2015-03-04 | D174: GPPL | E174: Accu | F174: 235 | H174: 77.00 | I174: 280-285 | J174: Loss of Rs.158/- | K174: -158.00 | L174: -67.23% | M174: Unsuccessful | N174: 2019-02-26
A175: 25 | B175: 2015-03-04 | D175: ORIENTCEM | E175: Accu | F175: 185.00 | H175: 224 | I175: 220-225 | J175: Target Achieved | K175: 39.00 | L175: 21.08% | M175: Successful | N175: 2016-10-04
A176: 26 | B176: 2015-03-27 | D176: PFS | E176: Accu | F176: 49.5 | H176: 15.85 | I176: 67.00 | J176: Loss of Rs.33.65/- | K176: -33.65 | L176: -68% | M176: Unsuccessful | N176: 2019-06-11
A177: 27 | B177: 2015-03-30 | D177: Walchandnagar Ind Ltd | E177: Accu | F177: 183.50 | H177: 219 | I177: 218.00 | J177: Profit of Rs.35.50/- | K177: 35.50 | L177: 19.35% | M177: Successful | N177: 2015-04-09
A178: 28 | B178: 2015-04-20 | D178: Kalpataru Power Transmission Ltd | E178: Accu | F178: =(227+237)/2 -> 232.00 | H178: 298 | I178: 298.00 | J178: Target Achieved | K178: 66.00 | L178: 28.45% | M178: Successful | N178: 2017-03-29
A179: 29 | B179: 2015-05-04 | D179: Mastek Ltd | E179: Buy | F179: 385.00 | H179: =212.5+331 -> 543.5 | I179: 510.00 | J179: Profit of Rs 158.50/- | K179: 158.50 | L179: 41.17% | M179: Successful | N179: 2015-08-19
A180: 30 | B180: 2015-05-04 | D180: Suprajit Eng | E180: Buy | F180: 115.50 | H180: 146 | I180: 142.00 | J180: Profit of Rs 30.50/- | K180: 30.50 | L180: 26.41% | M180: Successful | N180: 2015-07-17
A181: 31 | B181: 2015-05-27 | D181: TCI | E181: Buy | F181: 237.50 | H181: 279.5 | I181: 278.00 | J181: Target Achieved | K181: 42.00 | L181: 17.68% | M181: Successful | N181: 2015-08-06
A182: 32 | B182: 2015-06-19 | D182: HSIL | E182: Accu | F182: 340.00 | H182: 448 | I182: 448.00 | J182: Target Achieved | K182: 108.00 | L182: 31.76% | M182: Successful | N182: 2017-10-10
A183: 33 | B183: 2015-07-06 | D183: Capital First | E183: Accu | F183: 390.00 | H183: 460 | I183: 460.00 | J183: Target Achieved | K183: =H183-F183 -> 70.00 | L183: =K183/F183 -> 17.95% | M183: Successful | N183: 2016-04-18
A184: 34 | B184: 2015-07-10 | D184: Dolphin OffShore | E184: Accu | F184: 122.5 | H184: 61.00 | I184: 172.00 | J184: Loss of Rs.61.50/- | K184: -61.50 | L184: -50.20% | M184: Unsuccessful | N184: 2018-08-21
A185: 35 | B185: 2015-08-03 | D185: Allcargo logistics | E185: Accu | F185: 297.50 | H185: 350 | I185: 360.00 | J185: Profit of Rs 52.50/- | K185: 52.50 | L185: 17.65% | M185: Successful | N185: 2015-08-16
A186: 36 | B186: 2015-08-03 | D186: Camline Fine | E186: Accu | F186: 115.50 | H186: 149 | I186: 140.00 | J186: Profit of Rs 33.50/- | K186: 33.50 | L186: 29.00% | M186: Successful | N186: 2017-01-05
A187: 37 | B187: 2015-09-04 | D187: TCI | E187: Accu | F187: 226.00 | H187: 292 | I187: 292.00 | J187: Target Achieved | K187: 66.00 | L187: 29.20% | M187: Successful | N187: 2015-10-09
A188: 38 | B188: 2015-09-07 | D188: Kalpataru Power Transmission Ltd | E188: Accu | F188: 232.50 | H188: 312.5 | I188: 310.00 | J188: Target Achieved | K188: 80.00 | L188: 34.41% | M188: Successful | N188: 2017-03-29
A189: 39 | B189: 2015-09-21 | D189: LLOYD ELECTRIC & ENG LTD | E189: Accu | F189: 196.50 | H189: 238 | I189: 238.00 | J189: Target Achieved | K189: 41.50 | L189: 21.12% | M189: Successful | N189: 2015-10-14
A190: 40 | B190: 2015-09-24 | D190: L&T Finance Holding | E190: Accu | F190: 65.00 | H190: 82 | I190: 82.00 | J190: Target Achieved | K190: 17.00 | L190: 26.15% | M190: Successful | N190: 2016-07-27
A191: 41 | B191: 2015-10-14 | D191: KEC International ltd | E191: Accu | F191: 144.00 | H191: 182.5 | I191: 181.00 | J191: Target Achieved | K191: 38.50 | L191: 26.74% | M191: Successful | N191: 2017-03-23
A192: 42 | B192: 2015-10-14 | D192: Gruh Finance | E192: Accu | F192: 264.00 | H192: 311 | I192: 311.00 | J192: Target Achieved | K192: 47.00 | L192: 17.80% | M192: Successful | N192: 2016-08-22
A193: 43 | B193: 2015-11-10 | D193: Pidilitind | E193: Buy | F193: 549.50 | H193: 630 | I193: 630.00 | J193: Target Achieved | K193: 80.50 | L193: 14.65% | M193: Successful | N193: 2016-02-19
A194: 44 | B194: 2015-12-04 | D194: Zensar Technology | E194: Accu | F194: 1027.50 | H194: 1315 | I194: 1250.00 | J194: Target Achieved | K194: 287.50 | L194: 27.98% | M194: Successful | N194: 2018-05-24
A195: 45 | B195: 2015-12-29 | D195: Vinati Organics Ltd | E195: Accu | F195: 465.00 | H195: 540 | I195: 540.00 | J195: Target Achieved | K195: 75.00 | L195: 16.13% | M195: Successful | N195: 2016-06-09
A196: 46 | B196: 2016-01-11 | D196: GSFC | E196: Buy | F196: 81.00 | H196: 110 | I196: 110.00 | J196: Target Achieved | K196: 29.00 | L196: 35.80% | M196: Successful | N196: 2017-01-10
A197: 47 | B197: 2016-01-13 | D197: SSWL | E197: Buy | F197: 417.50 | H197: 547 | I197: 535.00 | J197: Target Achieved | K197: 129.50 | L197: 31.02% | M197: Successful | N197: 2016-07-27
A198: 48 | B198: 2016-02-08 | D198: Persistent System Ltd | E198: Accu | F198: 650.00 | H198: 800 | I198: 800.00 | J198: Target Achieved | K198: 150.00 | L198: 23.08% | M198: Successful | N198: 2018-02-23
A199: 49 | B199: 2016-03-04 | D199: UPL | E199: Accu | F199: 437.50 | H199: 504.5 | I199: 522.00 | J199: Profit of Rs.67/- | K199: 67.00 | L199: 15.31% | M199: Successful | N199: 2016-04-20
A200: 50 | B200: 2016-03-09 | D200: Ashoka Buildcon Ltd | E200: Accu | F200: 189.50 | H200: 218 | I200: 218.00 | J200: Target Achieved | K200: 28.50 | L200: 15.04% | M200: Successful | N200: 2017-10-26
A201: 51 | B201: 2016-04-11 | D201: PTC INDIA FIN SERV LTD | E201: Accu | F201: 36.5 | H201: 15.85 | I201: 60.00 | J201: Loss of Rs.20.65/- | K201: -20.65 | L201: -56.58% | M201: Unsuccessful | N201: 2019-06-11
A202: 52 | B202: 2016-04-12 | D202: CAMLINFINE $ | E202: Accu | F202: 93.00 | H202: 149 | I202: 140.00 | J202: Profit of Rs 56/- | K202: 56.00 | L202: 60.22% | M202: Successful | N202: 2017-01-05
A203: 53 | B203: 2016-04-12 | D203: Greaves Cotton Ltd. | E203: Accu | F203: 130.00 | H203: 150 | I203: 150-155 | J203: Target Achieved | K203: 20.00 | L203: 15.38% | M203: Successful | N203: 2016-07-13
A204: 54 | B204: 2016-04-13 | D204: DHFL | E204: Accu | F204: 196.00 | H204: 299 | I204: 299.00 | J204: Target Achieved | K204: 103.00 | L204: 52.55% | M204: Successful | N204: 2016-09-07
A205: 55 | B205: 2016-04-13 | D205: Magma | E205: Accu | F205: 88.00 | H205: 103 | I205: 103.00 | J205: Target Achieved | K205: 15.00 | L205: 17.05% | M205: Successful | N205: 2016-06-09
A206: 56 | B206: 2016-05-02 | D206: KEC International ltd $ | E206: Accu | F206: 127.50 | H206: 148 | I206: 148-150 | J206: Target Achieved | K206: =H206-F206 -> 20.50 | L206: =K206/F206 -> 16.08% | M206: Successful | N206: 2016-07-13
A207: 57 | B207: 2016-05-03 | D207: Mindtree | E207: Accu | F207: 675.00 | H207: 815 | I207: 790-800 | J207: Target Achieved | K207: =H207-F207 -> 140.00 | L207: =K207/F207 -> 20.74% | M207: Successful | N207: 2018-02-23
A208: 58 | B208: 2016-06-01 | D208: Atulauto | E208: Accu | F208: 500 | H208: 232.50 | I208: 565-570 | J208: Loss of Rs.267.50 /- | K208: =H208-F208 -> -267.50 | L208: =K208/F208 -> -53.50% | M208: Unsuccessful | N208: 2019-09-27
A209: 59 | B209: 2016-06-06 | D209: TRITURBINE | E209: Accu | F209: 110.00 | H209: 126.5 | I209: 125.00 | J209: Profit of Rs.16.50/- | K209: =H209-F209 -> 16.50 | L209: =K209/F209 -> 15.00% | M209: Successful | N209: 2016-07-01
A210: 60 | B210: 2016-06-17 | D210: Pennar Industries Ltd | E210: Accu | F210: 44.00 | H210: 69.5 | I210: 69.50 | J210: Profit of Rs.25.50/- | K210: =H210-F210 -> 25.50 | L210: =K210/F210 -> 57.95% | M210: Successful | N210: 2017-08-30
A211: 61 | B211: 2016-06-28 | D211: EVEREADY | E211: Accu | F211: 262.50 | H211: 340 | I211: 333.00 | J211: Profit of Rs.77.50/- | K211: 77.50 | L211: 29.52% | M211: Successful | N211: 2017-10-09
A212: 62 | B212: 2016-06-28 | D212: FIEMIND | E212: Accu | F212: 840.00 | H212: 1230 | I212: 1230.00 | J212: Target Achieved | K212: 390.00 | L212: 46.43% | M212: Successful | N212: 2016-10-06
A213: 63 | B213: 2016-07-05 | D213: Bajaj Corp Ltd | E213: Accu | F213: 395 | H213: =(468.5+342.5)/2 -> 405.50 | I213: 510.00 | J213: Profit of Rs.10.50/- | K213: =H213-F213 -> 10.50 | L213: =K213/F213 -> 3% | M213: Neutral | N213: 2019-05-21
A214: 64 | B214: 2016-08-02 | D214: GPPL $ | E214: Buy | F214: =169.5-12.8 -> 156.7 | H214: 77.00 | I214: 198-200 | J214: Loss of Rs.79.7/- | K214: -79.70 | L214: -50.86% | M214: Unsuccessful | N214: 2019-02-26
A215: 65 | B215: 2016-08-04 | D215: WONDERLA HOLIDAYS LTD | E215: Accu | F215: 400 | H215: 305.00 | I215: 475.00 | J215: Loss of Rs.95/- | K215: -95.00 | L215: -23.75% | M215: Unsuccessful | N215: 2019-05-21
A216: 66 | B216: 2016-08-11 | D216: CAMLINFINE | E216: Accu | F216: 86.50 | H216: 130 | I216: 130.00 | J216: Profit of Rs.43.50/- | K216: 43.50 | L216: 50.29% | M216: Successful | N216: 2017-12-22
A217: 67 | B217: 2016-08-18 | D217: GRANULES | E217: Accu | F217: 133.5 | H217: 126.50 | I217: 178.00 | J217: Exit | K217: -7.00 | L217: -5.24% | M217: Unsuccessful | N217: 2016-09-02
A218: 68 | B218: 2016-08-31 | D218: VA TECH WABAG | E218: Accu | F218: 560.00 | H218: 725 | I218: 725.00 | J218: Target Achieved | K218: 165.00 | L218: 29.46% | M218: Successful | N218: 2016-03-27
A219: 69 | B219: 2016-09-01 | D219: SKIPPER LIMITED | E219: Accu | F219: 160.50 | H219: 210 | I219: 210.00 | J219: Target Achieved | K219: 49.50 | L219: 30.84% | M219: Successful | N219: 2017-05-16
A220: 70 | B220: 2016-10-03 | D220: IFBIND | E220: Accu | F220: 430.00 | H220: 596 | I220: 575.00 | J220: Profit of Rs.166/- | K220: 166.00 | L220: 38.60% | M220: Successful | N220: 2017-02-03
A221: 71 | B221: 2016-10-14 | D221: ASIANTILES | E221: Accu | F221: 280.00 | H221: 345 | I221: 345.00 | J221: Target Achieved | K221: =H221-F221 -> 65.00 | L221: =K221/F221 -> 23.21% | M221: Successful | N221: 2017-03-20
A222: 72 | B222: 2016-10-14 | D222: DEEPIND | E222: Accu | F222: 245.00 | H222: 325.5 | I222: 330.00 | J222: Profit of Rs.80.5/- | K222: 80.50 | L222: =K222/F222 -> 32.86% | M222: Successful | N222: 2017-02-03
A223: 73 | B223: 2016-10-17 | D223: DCBBANK | E223: Accu | F223: 125.00 | H223: 160 | I223: 160.00 | J223: Target Achieved | K223: 35.00 | L223: 28.00% | M223: Successful | N223: 2017-03-09
A224: 74 | B224: 2016-10-17 | D224: ORIENTREF | E224: Accu | F224: 114.00 | H224: 145 | I224: 145.00 | J224: Target Achieved | K224: 31.00 | L224: =K224/F224 -> 27.19% | M224: Successful | N224: 2017-05-04
A225: 75 | B225: 2016-10-17 | D225: GANECOS | E225: Accu | F225: 212.00 | H225: 280 | I225: 276.00 | J225: Profit of Rs.68/- | K225: 68.00 | L225: =K225/F225 -> 32.08% | M225: Successful | N225: 2017-05-03
A226: 76 | B226: 2016-11-04 | D226: NBCC | E226: Accu | F226: 155.00 | H226: 210 | I226: 210.00 | J226: Profit of Rs.55/- | K226: 55.00 | L226: =K226/F226 -> 35.48% | M226: Successful | N226: 2017-07-28
A227: 77 | B227: 2016-12-06 | D227: PRECAM | E227: Accu | F227: 150.5 | H227: 72.50 | I227: 174.00 | J227: Loss of Rs.78/- | K227: -78.00 | L227: -51.83% | M227: Unsuccessful | N227: 2018-08-21
A228: 78 | B228: 2016-12-08 | D228: INFRATEL | E228: Accu | F228: 380.00 | H228: 478 | I228: 468.00 | J228: Target Achieved | K228: =H228-F228 -> 98.00 | L228: =K228/F228 -> 25.79% | M228: Successful | N228: 2017-10-17
A229: 79 | B229: 2016-12-30 | D229: GODREJPROP | E229: Accu | F229: 305.00 | H229: 375 | I229: 375.00 | J229: Target Achieved | K229: =H229-F229 -> 70.00 | L229: =K229/F229 -> 22.95% | M229: Successful | N229: 2017-02-02
A230: 80 | B230: 2017-01-04 | D230: DEEPAKNTR | E230: Accu | F230: 99.50 | H230: 158 | I230: 158.00 | J230: Target Achieved | K230: =H230-F230 -> 58.50 | L230: =K230/F230 -> 58.79% | M230: Successful | N230: 2017-06-12
A231: 81 | B231: 2017-01-04 | D231: DEEPAKNTR | E231: Accu | F231: 99.50 | H231: 158 | I231: 158.00 | J231: Target Achieved | K231: 58.50 | L231: 58.79% | M231: Successful | N231: 2017-06-12
A232: 82 | B232: 2017-02-20 | D232: RECLTD | E232: Accu | F232: 140.50 | H232: 220 | I232: 220.00 | J232: Target Achieved | K232: =H232-F232 -> 79.50 | L232: =K232/F232 -> 56.58% | M232: Successful | N232: 2017-05-09
A233: 83 | B233: 2017-02-20 | D233: SUBROS | E233: Accu | F233: 202.50 | H233: 234 | I233: 234.00 | J233: Target Achieved | K233: 31.50 | L233: 15.56% | M233: Successful | N233: 2017-04-11
A234: 84 | B234: 2017-03-24 | D234: VRLLOG | E234: Accu | F234: 300.50 | H234: 417.5 | I234: 420.00 | J234: Profit of Rs.117/- | K234: =H234-F234 -> 117.00 | L234: =K234/F234 -> 38.94% | M234: Successful | N234: 2017-12-01
A235: 85 | B235: 2017-03-24 | D235: FIEMIND | E235: Accu | F235: 850.00 | H235: 1042.5 | I235: 1023.00 | J235: Profit of Rs 192.50/- | K235: 192.50 | L235: 22.65% | M235: Successful | N235: 2017-04-05
A236: 86 | B236: 2017-04-05 | D236: RATNAMANI | E236: Accu | F236: 785.00 | H236: 930 | I236: 920.00 | J236: Profit of Rs.145/- | K236: =H236-F236 -> 145.00 | L236: =K236/F236 -> 18.47% | M236: Successful | N236: 2017-08-29
A237: 87 | B237: 2017-04-06 | D237: ZEEMEDIA | E237: Accu | F237: 40 | H237: 13.10 | I237: 60.00 | J237: Loss of Rs.26.9/- | K237: -26.90 | L237: -67.25% | M237: Unsuccessful | N237: 2018-02-07
A238: 88 | B238: 2017-04-12 | D238: DABUR | E238: Accu | F238: 289.50 | H238: 354 | I238: 360.00 | J238: Profit of Rs.64.5/- | K238: =H238-F238 -> 64.50 | L238: =K238/F238 -> 22.28% | M238: Successful | N238: 2017-11-01
A239: 89 | B239: 2017-04-20 | D239: KPRMILL | E239: Accu | F239: 700.00 | H239: 840 | I239: 840.00 | J239: Profit of Rs.140/- | K239: 140.00 | L239: 20.00% | M239: Successful | N239: 2017-06-07
A240: 90 | B240: 2017-06-01 | D240: ESSELPACK | E240: Accu | F240: 130.00 | H240: 144.25 | I240: 170.00 | J240: Profit of Rs.14.25/- | K240: 14.25 | L240: 10.96% | M240: Successful | N240: 2019-07-29
A241: 91 | B241: 2017-06-15 | D241: KEI | E241: Accu | F241: 214.50 | H241: 262 | I241: 262.00 | J241: Profit of Rs.47.5/- | K241: 47.50 | L241: 22.14% | M241: Successful | N241: 2017-08-30
A242: 92 | B242: 2017-07-17 | D242: MAYURUNIQ | E242: Accu | F242: 370.00 | H242: 447.5 | I242: 450.00 | J242: Target Achieved | K242: 77.50 | L242: 20.95% | M242: Successful | N242: 2017-10-27
A243: 93 | B243: 2017-07-27 | D243: RAMCOCEM | E243: Accu | F243: 657.50 | H243: 825 | I243: 820.00 | J243: Target Achieved | K243: 167.50 | L243: 25.48% | M243: Successful | N243: 2017-12-21
A244: 94 | B244: 2017-08-17 | D244: FINPIPE | E244: Accu | F244: 605.00 | H244: 750 | I244: 750.00 | J244: Profit of Rs.145/- | K244: 145.00 | L244: 23.97% | M244: Successful | N244: 2017-10-19
A245: 95 | B245: 2017-09-01 | D245: SHK | E245: Accu | F245: 255 | H245: 217.25 | I245: 320.00 | J245: Loss of Rs.37.75/- | K245: -37.75 | L245: -15% | M245: Unsuccessful | N245: 2019-07-15
... 73 more rows
